Workbook

Sheet Welcome en
A1: Reference-data Tool
A2: Шаблон расчета выбросов
A5: About the Reference-data tool
A7: The Reference Data Tool has been designed by the Covenant of Mayors East Office to help local authorities to calculate their CO2 and energy balance.
A8: It provides energy- and CO2 emissions -related data at the municipal level for the eleven CoM-East countries:
A9: Armenia, Azerbaijan, Belarus, Georgia, Kazakhstan, Kyrgyzstan, Republic of Moldova, Ukraine, Tajikistan, Turkmenistan and Uzbekistan.
A10: The Tool helps Covenant Signatories to elaborate their ‘Baseline Emission Inventory’ and follow up the progress in terms of CO2 emission reduction.
A12: What does it do ?
A14: The tool provides series of energy and CO2 emission data, broken down by energy carrier and by sector.
A15: For example, it provides CoM-East signatories with the final energy consumption figures (in MWh/year) from 2000 to 2009.
A17: Requirements to use it
A19: The tool was developed to run on Microsoft Excel 2007 and following versions.
A21: Partner
A23: The reference-data Tool has been developed by the Climate Alliance
A24: For more information, please contact:
A26: Climate Alliance
A27: European secretariat
A28: Galvanistraße 28
A29: 60486 Frankfurt am Main
A30: Germany
A31: Tel. +49-69-717139-0
A32: Fax: +49-69-717139-93
A33: Email: europe@climatealliance.org
A37: The funding of this project was provided by the EU
A42: DISCLAIMER: The sole responsibility for the content of this publication lies with the authors.
A43: It does not necessarily reflect the opinion of the European Communities.
A44: The European Commission is not responsible for any use that may be made of the information contained therein.

Sheet Welcome ru
A1: Reference-data Tool
A2: Шаблон расчета выбросов
A5: Информация об инструменте справочных данных
A7: Шаблон расчета выбросов разработан Офисом "Соглашения мэров - Восток", чтобы помочь местным органам власти обчислить баланс энергопотребления и выбросов CO2 для одиннадцати стран Соглашения мэров- Восток:
A8: Азербайджан, Армения, Беларусь, Грузия, Казахстан, Кыргызстан, Республика Молдова, Украина, Таджикистан, Туркменистан и Узбекистан.
A9: Этот инструмент помогает подписантам свою «Инвентаризацию базовых выбросов" и следить за прогрессом в плане сокращения выбросов CO2.
A11: Как работает шаблон?
A13: Этот инструмент предоставляет ряд данных по энергопотреблению и выбросах CO2 в разбивке по энергоносителях и секторам.
A14: Например, он предоставляет подписантам Соглашения мэров - Восток данные по конечному энергопотреблению (в МВтч / год) с 2000 по 2009.
A16: Требования к использованию шаблон
A18: Инструмент разработан для использования на основе Microsoft Excel 2007 и последующих версий.
A20: Партнер
A22: Формуляр расчета выбросов был разработан Клматическим Альянсом
A23: Для получения дополнительной информации, пожалуйста, обращайтесь:
A26: Climate Alliance
A27: European secretariat
A28: Galvanistraße 28
A29: 60486 Frankfurt am Main
A30: Germany
A31: Tel. +49-69-717139-0
A32: Fax: +49-69-717139-93
A33: Email: europe@climatealliance.org
A37: Финансирование этого проекта было обеспечено
A38: Европейским Союзом
A41: ПРЕДОСТЕРЕЖЕНИЕ: Ответственность за содержание данной публикации пренадлежит авторам.
A42: Не обязательно отражаеться точка зрения Европейского Сообщества.
A43: Европейская Комиссия не несет ответственности за любое использование информации,содержащейся в шаблоне.

Sheet Country choice
A1: Country choice
A2: Выбор страны
A5: Please choose your country
A6: Пожалуйста, выберите свою страну
A8: Country
A9: страну

Sheet DATA-INPUT
A1: Quantity matrix
A2: Кількісна матриця
A5: Please fill in the tables
A6: Пожалуйста, заполните таблици
B11: Number of inhabitants
B12: Население
A13: Year | B13: 2000 | C13: 2001 | D13: 2002 | E13: 2003 | F13: 2004 | G13: 2005 | H13: 2006 | I13: 2007 | J13: 2008 | K13: 2009
A14: Год
A15: Inhabitants
A16: Население
B19: Number of employees
B20: Количество занятых
A21: Year | B21: 2000 | C21: 2001 | D21: 2002 | E21: 2003 | F21: 2004 | G21: 2005 | H21: 2006 | I21: 2007 | J21: 2008 | K21: 2009
A22: Год
A23: Sector
A24: Сектор экономики
A25: Agriculture
A26: Сельское хозяйство
A27: Industry (non-ETS)
A28: Промышленность (не включена в европейскую систему торговли выбросами)
A29: Services (Tertiary)
A30: Третичный сектор (Услуги)
A31: Subtotal | B31: =SUM(B25:B30) -> 0 | C31: 0 | D31: 0 | E31: 0 | F31: 0 | G31: 0 | H31: 0 | I31: 0 | J31: 0 | K31: 0
A32: Сумма
A34: Before starting the calculation, please fill at least the table "Number of inhabitants" for one year.
A35: If you have available data for both tables "Number of Inhabitants" and " Number of employees", please take care about fill both tables for one corresponding year.
A37: Прежде чем приступить к расчету, пожалуйста, заполните по крайней мере таблицу "Население"за один год.
A38: Если у вас есть доступные данные для обеих таблиц "Население" и "Количество занятых", пожалуйста, позаботьтесь о заполнении обеих таблиц для одного соответствующего года.

Sheet DATA-OUTPUT EC absolute
A1: Reference Data - Final Energy consumption
A2: Справочные данные - Конечное энергопотребление
A5: Overall results - Final energy consumption
A6: Общие результаты - Конечное энергопотребление
A8: Year
A9: Год
B11: Final energy consumption (MWh)
B12: Конечное энергопотребление (МВт-ч)
A13: ='DATA-OUTPUT EC per capita'!A13 -> Category | B13: ='DATA-OUTPUT EC per capita'!B13 -> Electricity | C13: ='DATA-OUTPUT EC per capita'!C13 -> Heat / Cold | D13: ='DATA-OUTPUT EC per capita'!D13 -> Natural gas | E13: ='DATA-OUTPUT EC per capita'!E13 -> Liquid gas | F13: ='DATA-OUTPUT EC per capita'!F13 -> Heating oil/diesel | G13: ='DATA-OUTPUT EC per capita'!G13 -> Gasoline | H13: ='DATA-OUTPUT EC per capita'!H13 -> Lignite/Coal | I13: ='DATA-OUTPUT EC per capita'!I13 -> Other fossil fuels | J13: ='DATA-OUTPUT EC per capita'!J13 -> Plant oil / biofuel | K13: ='DATA-OUTPUT EC per capita'!K13 -> Total
A14: ='DATA-OUTPUT EC per capita'!A14 -> Категория | B14: ='DATA-OUTPUT EC per capita'!B14 -> Электроенергия | C14: ='DATA-OUTPUT EC per capita'!C14 -> Теплоэнергия / | D14: ='DATA-OUTPUT EC per capita'!D14 -> Природный газ | E14: ='DATA-OUTPUT EC per capita'!E14 -> Сжиженный газ | F14: ='DATA-OUTPUT EC per capita'!F14 -> Топочный | G14: ='DATA-OUTPUT EC per capita'!G14 -> Бензин | H14: ='DATA-OUTPUT EC per capita'!H14 -> Каменный | I14: ='DATA-OUTPUT EC per capita'!I14 -> Другие виды | J14: ='DATA-OUTPUT EC per capita'!J14 -> Ростительное | K14: ='DATA-OUTPUT EC per capita'!K14 -> Сумма
C15: ='DATA-OUTPUT EC per capita'!C15 -> холод | F15: ='DATA-OUTPUT EC per capita'!F15 -> мазут/дизель | H15: ='DATA-OUTPUT EC per capita'!H15 -> уголь/Бурый | I15: ='DATA-OUTPUT EC per capita'!I15 -> ископаемого | J15: ='DATA-OUTPUT EC per capita'!J15 -> масло /
H16: ='DATA-OUTPUT EC per capita'!H16 -> уголь | I16: ='DATA-OUTPUT EC per capita'!I16 -> топлива | J16: ='DATA-OUTPUT EC per capita'!J16 -> биотопливо
A17: ='DATA-OUTPUT EC per capita'!A17 -> Buildings ,equipment/facilites and Industries
A18: Здания, оборудование/ Услуги и промышленность
A19: Residential buildings | K19: =SUM(B19:J20) -> 0
A20: Жилые дома
A21: Agriculture | K21: =SUM(B21:J22) -> 0
A22: Сельское хозяйство
A23: Industries (non-ETS) | K23: =SUM(B23:J24) -> 0
A24: Промышленность (не включена в европейскую систему торговли выбросами)
A25: Tertiary buildings, equipment/ facilities (Services) | K25: =SUM(B25:J26) -> 0
A26: Третичный Здания, оборудование/ Услуги
A27: ='DATA-OUTPUT EC per capita'!A27 -> Subtotal Building and Business | B27: =SUM(B19:B26) -> 0 | C27: 0 | D27: 0 | E27: 0 | F27: 0 | G27: 0 | H27: 0 | I27: 0 | J27: 0 | K27: 0
A28: ='DATA-OUTPUT EC per capita'!A28 -> Сумма Здания и сектор бизнеса
A29: ='DATA-OUTPUT EC per capita'!A29 -> Transport
A30: ='DATA-OUTPUT EC per capita'!A30 -> Транспорт
A31: Private and Commercial Transport (road only) | K31: =SUM(B31:J32) -> 0
A32: Частные и коммерческие виды транспорта (только дорожные)
A33: Public transport (rail only) | K33: =SUM(B33:J34) -> 0
A34: Общественный транспорт (только железнодорожный)
A35: ='DATA-OUTPUT EC per capita'!A35 -> Subtotal Transport | B35: =SUM(B31:B34) -> 0 | C35: 0 | D35: 0 | E35: 0 | F35: 0 | G35: 0 | H35: 0 | I35: 0 | J35: 0 | K35: 0
A36: ='DATA-OUTPUT EC per capita'!A36 -> Сумма транспорт
A37: ='DATA-OUTPUT EC per capita'!A37 -> Total | B37: =SUM(B27,B35) -> 0 | C37: 0 | D37: 0 | E37: 0 | F37: 0 | G37: 0 | H37: 0 | I37: 0 | J37: 0 | K37: 0
A38: ='DATA-OUTPUT EC per capita'!A38 -> Сумма

Sheet DATA-OUTPUT Co2 absolute
A1: Reference Data - Final Energy consumption
A2: Справочные данные - Конечное энергопотребление
A5: Overall results absolute - CO2 emissions
A6: Общие результаты - Выбросы CO2
A8: Year
A9: Год
B11: CO2 emission (t)
B12: Выбросы CO2 (т)
A13: ='DATA-OUTPUT EC per capita'!A13 -> Category | B13: ='DATA-OUTPUT EC per capita'!B13 -> Electricity | C13: ='DATA-OUTPUT EC per capita'!C13 -> Heat / Cold | D13: ='DATA-OUTPUT EC per capita'!D13 -> Natural gas | E13: ='DATA-OUTPUT EC per capita'!E13 -> Liquid gas | F13: ='DATA-OUTPUT EC per capita'!F13 -> Heating oil/diesel | G13: ='DATA-OUTPUT EC per capita'!G13 -> Gasoline | H13: ='DATA-OUTPUT EC per capita'!H13 -> Lignite/Coal | I13: ='DATA-OUTPUT EC per capita'!I13 -> Other fossil fuels | J13: ='DATA-OUTPUT EC per capita'!J13 -> Plant oil / biofuel | K13: ='DATA-OUTPUT EC per capita'!K13 -> Total
A14: ='DATA-OUTPUT EC per capita'!A14 -> Категория | B14: ='DATA-OUTPUT EC per capita'!B14 -> Электроенергия | C14: ='DATA-OUTPUT EC per capita'!C14 -> Теплоэнергия / | D14: ='DATA-OUTPUT EC per capita'!D14 -> Природный газ | E14: ='DATA-OUTPUT EC per capita'!E14 -> Сжиженный газ | F14: ='DATA-OUTPUT EC per capita'!F14 -> Топочный | G14: ='DATA-OUTPUT EC per capita'!G14 -> Бензин | H14: ='DATA-OUTPUT EC per capita'!H14 -> Каменный | I14: ='DATA-OUTPUT EC per capita'!I14 -> Другие виды | J14: ='DATA-OUTPUT EC per capita'!J14 -> Ростительное | K14: ='DATA-OUTPUT EC per capita'!K14 -> Сумма
C15: ='DATA-OUTPUT EC per capita'!C15 -> холод | F15: ='DATA-OUTPUT EC per capita'!F15 -> мазут/дизель | H15: ='DATA-OUTPUT EC per capita'!H15 -> уголь/Бурый | I15: ='DATA-OUTPUT EC per capita'!I15 -> ископаемого | J15: ='DATA-OUTPUT EC per capita'!J15 -> масло /
H16: ='DATA-OUTPUT EC per capita'!H16 -> уголь | I16: ='DATA-OUTPUT EC per capita'!I16 -> топлива | J16: ='DATA-OUTPUT EC per capita'!J16 -> биотопливо
A17: ='DATA-OUTPUT EC per capita'!A17 -> Buildings ,equipment/facilites and Industries
A18: ='DATA-OUTPUT EC per capita'!A18 -> Здания и сектор бизнеса
A19: Residential buildings | K19: =SUM(B19:J20) -> 0
A20: Жилые дома
A21: Agriculture | K21: =SUM(B21:J22) -> 0
A22: Сельское хозяйство
A23: Industries (non-ETS) | K23: =SUM(B23:J24) -> 0
A24: Промышленность (не включена в европейскую систему торговли выбросами)
A25: Tertiary buildings, equipment/ facilities (Services) | K25: =SUM(B25:J26) -> 0
A26: Третичный Здания, оборудование/ Услуги
A27: ='DATA-OUTPUT EC per capita'!A27 -> Subtotal Building and Business | B27: =SUM(B19:B26) -> 0 | C27: =IF(AND(C19="n.a.",C21="n.a.",C23="n.a."),"",SUM(C19:C26)) -> 0 | D27: 0 | E27: 0 | F27: 0 | G27: 0 | H27: 0 | I27: 0 | J27: 0 | K27: 0
A28: ='DATA-OUTPUT EC per capita'!A28 -> Сумма Здания и сектор бизнеса
A29: ='DATA-OUTPUT EC per capita'!A29 -> Transport
A30: ='DATA-OUTPUT EC per capita'!A30 -> Транспорт
A31: Private and Commercial Transport (road only) | K31: =SUM(B31:J32) -> 0
A32: Частные и коммерческие виды транспорта (только дорожные)
A33: Public transport (rail only) | K33: =SUM(B33:J34) -> 0
A34: Общественный транспорт (только железнодорожный)
A35: ='DATA-OUTPUT EC per capita'!A35 -> Subtotal Transport | B35: =SUM(B31:B34) -> 0 | C35: =IF(AND(C31="n.a.",C33="n.a."),"",SUM(C31:C34)) -> 0 | D35: 0 | E35: 0 | F35: 0 | G35: 0 | H35: 0 | I35: 0 | J35: 0 | K35: 0
A36: ='DATA-OUTPUT EC per capita'!A36 -> Сумма транспорт
A37: ='DATA-OUTPUT EC per capita'!A37 -> Total | B37: =SUM(B27,B35) -> 0 | C37: =IF(AND(C27="",C35=""),"",SUM(C27,C35)) -> 0 | D37: 0 | E37: 0 | F37: 0 | G37: 0 | H37: 0 | I37: 0 | J37: 0 | K37: 0
A38: ='DATA-OUTPUT EC per capita'!A38 -> Сумма

Sheet DATA-OUTPUT Transport absolute
A1: Reference Data - Transportation data
A2: Справочные данные- Данные транспортного сектора
A5: Overall results absolute - Available transportion data
A6: Общие результаты - Доступные данные в секторе транспорта
A9: Transportation data
A10: Данные по транспортному сектору
A11: Passengers cars
A12: Количество пассажирских автомобилей
A13: Road
A14: Дорожные перевозки
A15: Passengers transported (pkm)
A16: Количество пассажиров, перевезенных транспортным средством (пкм)
A17: Goods transported (tkm)
A18: Количество товаров, перевезенных транспортным средством (ткм)
A19: Rail
A20: Железнодорожные перевозки
A21: Passengers (pkm)
A22: Количество пассажиров, перевезенных транспортным средством (пкм)
A23: Goods transported (tkm)
A24: Количество товаров, перевезенных транспортным средством (ткм)

Sheet DATA-OUTPUT EC per capita
A1: Reference Data - Final Energy consumption
A2: Справочные данные - Конечное энергопотребление
A5: Overall results per capita - Final energy consumption
A6: Общие результаты на душу населения - Конечное энергопотребление
A8: Year
A9: Год
B11: Final energy consumption (MWh / inhabitant)
B12: Конечное энергопотребление (МВт-ч /житель)
A13: Category | B13: Electricity | C13: Heat / Cold | D13: Natural gas | E13: Liquid gas | F13: Heating oil/diesel | G13: Gasoline | H13: Lignite/Coal | I13: Other fossil fuels | J13: Plant oil / biofuel | K13: Total
A14: Категория | B14: Электроенергия | C14: Теплоэнергия / | D14: Природный газ | E14: Сжиженный газ | F14: Топочный | G14: Бензин | H14: Каменный | I14: Другие виды | J14: Ростительное | K14: Сумма
C15: холод | F15: мазут/дизель | H15: уголь/Бурый | I15: ископаемого | J15: масло /
H16: уголь | I16: топлива | J16: биотопливо
A17: Buildings ,equipment/facilites and Industries
A18: Здания и сектор бизнеса
A19: Residential buildings | K19: =SUM(B19:J20) -> 0
A20: Жилые дома
A21: Agriculture | K21: =SUM(B21:J22) -> 0
A22: Сельское хозяйство
A23: Industries (non-ETS) | K23: =SUM(B23:J24) -> 0
A24: Промышленность (не включена в европейскую систему торговли выбросами)
A25: Tertiary buildings, equipment/ facilities (Services) | K25: =SUM(B25:J26) -> 0
A26: Третичный Здания, оборудование/ Услуги
A27: Subtotal Building and Business | B27: =SUM(B19:B26) -> 0 | C27: =SUM(C19:C26) -> 0 | D27: 0 | E27: 0 | F27: 0 | G27: 0 | H27: 0 | I27: 0 | J27: 0 | K27: 0
A28: Сумма Здания и сектор бизнеса
A29: Transport
A30: Транспорт
A31: Private and Commercial Transport (road only) | K31: =SUM(B31:J32) -> 0
A32: Частные и коммерческие виды транспорта (только дорожные)
A33: Public transport (rail only) | K33: =SUM(B33:J34) -> 0
A34: Общественный транспорт (только железнодорожный)
A35: Subtotal Transport | B35: =SUM(B31:B34) -> 0 | C35: 0 | D35: 0 | E35: 0 | F35: 0 | G35: 0 | H35: 0 | I35: 0 | J35: 0 | K35: 0
A36: Сумма транспорт
A37: Total | B37: =SUM(B27,B35) -> 0 | C37: 0 | D37: 0 | E37: 0 | F37: 0 | G37: 0 | H37: 0 | I37: 0 | J37: 0 | K37: 0
A38: Сумма
A47: * Note that data expressed in per capita units cannot be reported in the SEAP and Monitoring templates.
A48: * Заметьте, что данные приведенные на одного жителя нельзя включать в План действий устойчивого энергетического развития и отчет о его реализации.

Sheet DATA-OUTPUT Co2 per capita
A1: Reference Data - Final Energy consumption
A2: Справочные данные - Конечное энергопотребление
A5: Overall results per capita - CO2 emissions
A6: Общие результаты на душу населения - Выбросы СО2
B11: CO2 emission (t / inhabitant)
B12: Выбросы CO2 (т / житель)
A13: ='DATA-OUTPUT EC per capita'!A13 -> Category | B13: ='DATA-OUTPUT EC per capita'!B13 -> Electricity | C13: ='DATA-OUTPUT EC per capita'!C13 -> Heat / Cold | D13: ='DATA-OUTPUT EC per capita'!D13 -> Natural gas | E13: ='DATA-OUTPUT EC per capita'!E13 -> Liquid gas | F13: ='DATA-OUTPUT EC per capita'!F13 -> Heating oil/diesel | G13: ='DATA-OUTPUT EC per capita'!G13 -> Gasoline | H13: ='DATA-OUTPUT EC per capita'!H13 -> Lignite/Coal | I13: ='DATA-OUTPUT EC per capita'!I13 -> Other fossil fuels | J13: ='DATA-OUTPUT EC per capita'!J13 -> Plant oil / biofuel | K13: ='DATA-OUTPUT EC per capita'!K13 -> Total
A14: ='DATA-OUTPUT EC per capita'!A14 -> Категория | B14: ='DATA-OUTPUT EC per capita'!B14 -> Электроенергия | C14: ='DATA-OUTPUT EC per capita'!C14 -> Теплоэнергия / | D14: ='DATA-OUTPUT EC per capita'!D14 -> Природный газ | E14: ='DATA-OUTPUT EC per capita'!E14 -> Сжиженный газ | F14: ='DATA-OUTPUT EC per capita'!F14 -> Топочный | G14: ='DATA-OUTPUT EC per capita'!G14 -> Бензин | H14: ='DATA-OUTPUT EC per capita'!H14 -> Каменный | I14: ='DATA-OUTPUT EC per capita'!I14 -> Другие виды | J14: ='DATA-OUTPUT EC per capita'!J14 -> Ростительное | K14: ='DATA-OUTPUT EC per capita'!K14 -> Сумма
C15: ='DATA-OUTPUT EC per capita'!C15 -> холод | F15: ='DATA-OUTPUT EC per capita'!F15 -> мазут/дизель | H15: ='DATA-OUTPUT EC per capita'!H15 -> уголь/Бурый | I15: ='DATA-OUTPUT EC per capita'!I15 -> ископаемого | J15: ='DATA-OUTPUT EC per capita'!J15 -> масло /
H16: ='DATA-OUTPUT EC per capita'!H16 -> уголь | I16: ='DATA-OUTPUT EC per capita'!I16 -> топлива | J16: ='DATA-OUTPUT EC per capita'!J16 -> биотопливо
A17: ='DATA-OUTPUT EC per capita'!A17 -> Buildings ,equipment/facilites and Industries
A18: ='DATA-OUTPUT EC per capita'!A18 -> Здания и сектор бизнеса
A19: Residential buildings | K19: =SUM(B19:J20) -> 0
A20: Жилые дома
A21: Agriculture | K21: =SUM(B21:J22) -> 0
A22: Сельское хозяйство
A23: Industries (non-ETS) | K23: =SUM(B23:J24) -> 0
A24: Промышленность (не включена в европейскую систему торговли выбросами)
A25: Tertiary buildings, equipment/ facilities (Services) | K25: =SUM(B25:J26) -> 0
A26: Третичный Здания, оборудование/ Услуги
A27: ='DATA-OUTPUT EC per capita'!A27 -> Subtotal Building and Business | B27: =SUM(B19:B26) -> 0 | C27: =IF(AND(C19="n.a.",C21="n.a.",C23="n.a."),"",SUM(C19:C26)) -> 0 | D27: 0 | E27: 0 | F27: 0 | G27: 0 | H27: 0 | I27: 0 | J27: 0 | K27: 0
A28: ='DATA-OUTPUT EC per capita'!A28 -> Сумма Здания и сектор бизнеса
A29: ='DATA-OUTPUT EC per capita'!A29 -> Transport
A30: ='DATA-OUTPUT EC per capita'!A30 -> Транспорт
A31: Private and Commercial Transport (road only) | K31: =SUM(B31:J32) -> 0
A32: Частные и коммерческие виды транспорта (только дорожные)
A33: Public transport (rail only) | K33: =SUM(B33:J34) -> 0
A34: Общественный транспорт (только железнодорожный)
A35: ='DATA-OUTPUT EC per capita'!A35 -> Subtotal Transport | B35: =SUM(B31:B34) -> 0 | C35: =IF(AND(C31="n.a.",C33="n.a."),"",SUM(C31:C34)) -> 0 | D35: 0 | E35: 0 | F35: 0 | G35: 0 | H35: 0 | I35: 0 | J35: 0 | K35: 0
A36: ='DATA-OUTPUT EC per capita'!A36 -> Сумма транспорт
A37: ='DATA-OUTPUT EC per capita'!A37 -> Total | B37: =SUM(B27,B35) -> 0 | C37: =IF(AND(C27="",C35=""),"",SUM(C27,C35)) -> 0 | D37: 0 | E37: 0 | F37: 0 | G37: 0 | H37: 0 | I37: 0 | J37: 0 | K37: 0
A38: ='DATA-OUTPUT EC per capita'!A38 -> Сумма
A47: * Note that data expressed in per capita units cannot be reported in the SEAP and Monitoring templates.
A48: * Заметьте, что данные приведенные на одного жителя нельзя включать в План действий устойчивого энергетического развития и отчет о его реализации.

Sheet DATA-OUTPUT Transport per capit
A1: Reference Data - Transportation data
A2: Справочные данные - Данные в секторе транспорта
A5: Overall results per capita - Available transportion data
A6: Общие результаты на душу населения - Available transportion data
A9: Transportation data per inhabitant
A10: Данные по транспортному сектору
A11: Passengers cars/inhabitant
A12: Количество пассажирских автомобилей
A13: Road
A14: Дорожные перевозки
A15: Passengers transported (pkm/inhabitant)
A16: Количество пассажиров, перевезенных транспортным средством (пкм/житель)
A17: Goods transported (tkm/inhabitant)
A18: Количество товаров, перевезенных транспортным средством (ткм/житель)
A19: Rail
A20: Железнодорожные перевозки
A21: Passengers transported (pkm/inhabitant)
A22: Количество пассажиров, перевезенных транспортным средством (пкм/житель)
A23: Goods transported (tkm/inhabitant)
A24: Количество товаров, перевезенных транспортным средством (ткм/житель)
A47: * Note that data expressed in per capita units cannot be reported in the SEAP and Monitoring templates.
A48: * Заметьте, что данные приведенные на одного жителя нельзя включать в План действий устойчивого энергетического развития и отчет о его реализации.

Sheet _text (hidden)
A1: Country | B1: Category | C1: Energy | E1: displayed year
A2: Uzbekistan - Узбекистан | B2: Residential building - Жилые здания | C2: Electricity - Электроенергия | D2: - Final energy consumption (MWh) per capita per energy carrier / Конечное энергопотребление на душу население за типом энергоносителя | E2: 2001
A3: Ukraine - Украина | B3: Agriculture - Сельское хозяйство | C3: Heat and Cold - Теплоэнергия и холод | D3: - Final energy consumption (MWh) per capita per sector / Конечное энергопотребление на душу населения по секторам
A4: Turkmenistan - Туркменистан | B4: Industry - Промышленность | C4: Natural gas - Природный газ | D4: - Co2 emission (t) per capita per energy / Выбросы CO2 на душу населения за типом энергоносителя
A5: Tajikistan - Таджикистан | B5: Services - Третичный сектор | C5: Liquid gas - Сжиженный газ | D5: - Co2 emission (t) per capita per sector / Выбросы CO2 на душу населения за секторами
A6: Moldova - Республика Молдова | B6: Private and Commercial Transport (Road) - Частные и коммерческие виды транспорта (дорожные) | C6: Heating oil/diesel - Топочный мазут/дизель | D6: - Final energy consumption (MWh) absolute per energy carrier / Абсолютное (общее) конечное энергопотребление за типом энергоносителя
A7: Kyrgyzstan - Кыргызстан | B7: Public transport (Rail) - Общественный транспорт (железнодорожный) | C7: Gasoline - Бензин | D7: - Final energy consumption (MWh) absolute per sector / Абсолютное (общее) конечное энергопотребление по секторам
A8: Kazakhstan - Казахстан | C8: Lignite/Coal - Каменный уголь/Бурый уголь | D8: - Co2 emission (t) absolute per energy / Абсолютные (общие) выбросы CO2 за типом энергоносителей
A9: Georgia - Грузия | C9: Other fossil fuels - Другие виды ископаемого топлива | D9: - Co2 emission (t) absolute per sector / Абсолютные (общие) выбросы CO2 за секторами
A10: Belarus - Беларусь | C10: Plant oil, biofuel - Ростительное масло, биотопливо
A11: Azerbaijan - Азербайджан
A12: Armenia - Армения

Sheet _data (hidden)
A1: Armenia | M1: Armenia | Y1: Armenia | AK1: Armenia
A2: Energy consumption (MWh /Einwohner and Year) - Residential building (Households) | M2: Workforce (Number) - Nationale Eingabe | Y2: CO2 emission Factor (t /Mwh)
A3: Energieträger | B3: 2000 | C3: 2001 | D3: 2002 | E3: 2003 | F3: 2004 | G3: 2005 | H3: 2006 | I3: 2007 | J3: 2008 | K3: 2009 | M3: Branche of trade | N3: 2000 | O3: 2001 | P3: 2002 | Q3: 2003 | R3: 2004 | S3: 2005 | T3: 2006 | U3: 2007 | V3: 2008 | W3: 2009 | Y3: Energieträger | Z3: 2000 | AA3: 2001 | AB3: 2002 | AC3: 2003 | AD3: 2004 | AE3: 2005 | AF3: 2006 | AG3: 2007 | AH3: 2008 | AI3: 2009 | AL3: 2000 | AM3: 2001 | AN3: 2002 | AO3: 2003 | AP3: 2004 | AQ3: 2005 | AR3: 2006 | AS3: 2007 | AT3: 2008 | AU3: 2009
A4: Electricity | B4: 0.5064858142 | C4: 0.4817468938 | D4: 0.4887547744 | E4: 0.5231442122 | F4: 0.5367604153 | G4: 0.5515774572 | H4: 0.5563981608 | I4: 0.5747691644 | J4: 0.5819726576 | K4: 0.5565497997 | M4: primary sector | N4: 566700 | O4: 570000 | P4: 500800 | Q4: 509000 | R4: 507100 | S4: 507600 | T4: 504500 | U4: 506900 | V4: 493500 | W4: 496500 | Y4: Electricity | Z4: 0.609 | AA4: 0.652 | AB4: 0.375 | AC4: 0.336 | AD4: 0.374 | AE4: 0.357 | AF4: 0.265 | AG4: 0.254 | AH4: 0.252 | AI4: 0.252 | AK4: Einwohnerzahlen | AL4: 3076098 | AM4: 3065810 | AN4: 3061067 | AO4: 3060554 | AP4: 3062612 | AQ4: 3065954 | AR4: 3069844 | AS4: 3074181 | AT4: 3079087 | AU4: 3084979
A5: Heat and Cold | B5: 0.09653282972 | C5: 0.06641348 | D5: 0.05063593838 | E5: 0.04429118243 | F5: 0.04217532834 | G5: 0.07121220127 | H5: 0.06116850816 | I5: 0.07463595814 | J5: 0.06197724629 | K5: 0.03835790562 | M5: secondary sector | N5: 189800 | O5: 181000 | P5: 151700 | Q5: 146000 | R5: 139600 | S5: 140200 | T5: 140900 | U5: 166000 | V5: 188000 | W5: 164600 | Y5: Heat and Cold | Z5: n.a. | AA5: n.a. | AB5: n.a. | AC5: n.a. | AD5: n.a. | AE5: n.a. | AF5: n.a. | AG5: n.a. | AH5: n.a. | AI5: n.a. | AK5: Passengers cars | AS5: 295121.376
A6: natural gas | B6: 0.5223970252 | C6: 0.580234551 | D6: 0.5799539108 | E6: 0.7173719384 | F6: 1.104902903 | G6: 1.237153446 | H6: 1.266170022 | I6: 1.812768272 | J6: 2.004833107 | K6: 1.877916619 | M6: tertiary sector | N6: 521200 | O6: 513900 | P6: 453900 | Q6: 452600 | R6: 435000 | S6: 450000 | T6: 447000 | U6: 428700 | V6: 435900 | W6: 428300 | Y6: natural gas | Z6: 0.202 | AA6: 0.202 | AB6: 0.202 | AC6: 0.202 | AD6: 0.202 | AE6: 0.202 | AF6: 0.202 | AG6: 0.202 | AH6: 0.202 | AI6: 0.202 | AK6: Road passenger (million pkm) | AL6: 1437 | AM6: 1678 | AN6: 1813 | AO6: 1959 | AP6: 2066 | AQ6: 2223 | AR6: 2436 | AS6: 2521 | AT6: 2521 | AU6: 2356
A7: Liquid gas | B7: 0 | C7: 0 | D7: 0 | E7: 0 | F7: 0 | G7: 0 | H7: 0 | I7: 0 | J7: 0 | K7: 0 | Y7: Liquid gas | Z7: 0.231 | AA7: 0.231 | AB7: 0.231 | AC7: 0.231 | AD7: 0.231 | AE7: 0.231 | AF7: 0.231 | AG7: 0.231 | AH7: 0.231 | AI7: 0.231 | AK7: Road goods transporterd (million ton-km) | AM7: 142.8000031 | AN7: 204.5 | AO7: 79.3 | AP7: 55.3 | AQ7: 55.5 | AR7: 91.2 | AS7: 132.9 | AT7: 179.4 | AU7: 182
A8: heating oil / diesel | B8: 0 | C8: 0 | D8: 0 | E8: 0 | F8: 0 | G8: 0 | H8: 0 | I8: 0 | J8: 0 | K8: 0 | M8: Energy consumption, Business (Mwh/year) - Energy consumption - Agriculture | Y8: heating oil / diesel | Z8: 0.267 | AA8: 0.267 | AB8: 0.267 | AC8: 0.267 | AD8: 0.267 | AE8: 0.267 | AF8: 0.267 | AG8: 0.267 | AH8: 0.267 | AI8: 0.267 | AK8: Railways, passengers (million pkm) | AT8: 27 | AU8: 35
A9: gasoline | B9: 0 | C9: 0 | D9: 0.02350306101 | E9: 0.01179888057 | F9: 0 | G9: 0 | H9: 0 | I9: 0 | J9: 0 | K9: 0 | M9: Energieträger | N9: 2000 | O9: 2001 | P9: 2002 | Q9: 2003 | R9: 2004 | S9: 2005 | T9: 2006 | U9: 2007 | V9: 2008 | W9: 2009 | Y9: gasoline | Z9: 0.249 | AA9: 0.249 | AB9: 0.249 | AC9: 0.249 | AD9: 0.249 | AE9: 0.249 | AF9: 0.249 | AG9: 0.249 | AH9: 0.249 | AI9: 0.249 | AK9: Railways, goods transported (million ton-km) | AL9: 354 | AM9: 344 | AN9: 452 | AO9: 529 | AP9: 678 | AQ9: 654.136 | AT9: 705 | AU9: 718
A10: Lignite / Coal | B10: 0 | C10: 0 | D10: 0.0479135761 | E10: 0.07179165021 | F10: 0 | G10: 0.01304651016 | H10: 0.01827816368 | I10: 0.02024025984 | J10: 0.01831350946 | K10: 0.01413659902 | M10: Electricity | N10: 475833.3333 | O10: 391944.4444 | P10: 230000 | Q10: 328333.3333 | R10: 364722.2222 | S10: 228888.8889 | T10: 226944.4444 | U10: 173611.1111 | V10: 223055.5556 | W10: 123888.8889 | Y10: Lignite / Coal | Z10: 0.364 | AA10: 0.364 | AB10: 0.364 | AC10: 0.364 | AD10: 0.364 | AE10: 0.364 | AF10: 0.364 | AG10: 0.364 | AH10: 0.364 | AI10: 0.364
A11: other fossil fuels | B11: 0 | C11: 0 | D11: 0 | E11: 0 | F11: 0 | G11: 0 | H11: 0 | I11: 0 | J11: 0 | K11: 0 | M11: Heat and Cold | N11: 0 | O11: 0 | P11: 0 | Q11: 0 | R11: 0 | S11: 0 | T11: 0 | U11: 0 | V11: 0 | W11: 0 | Y11: other fossil fuels | Z11: 0.382 | AA11: 0.382 | AB11: 0.382 | AC11: 0.382 | AD11: 0.382 | AE11: 0.382 | AF11: 0.382 | AG11: 0.382 | AH11: 0.382 | AI11: 0.382
A12: Plant oil, biofuel | B12: 0 | C12: 0 | D12: 0 | E12: 0 | F12: 0 | G12: 0 | H12: 0 | I12: 0 | J12: 0 | K12: 0 | M12: natural gas | N12: 0 | O12: 266111.1111 | P12: 255833.3333 | Q12: 223055.5556 | R12: 261111.1111 | S12: 451666.6667 | T12: 0 | U12: 0 | V12: 0 | W12: 0 | Y12: Plant oil, biofuel | Z12: 0 | AA12: 0 | AB12: 0 | AC12: 0 | AD12: 0 | AE12: 0 | AF12: 0 | AG12: 0 | AH12: 0 | AI12: 0
A13: Summe | B13: =SUM(B4:B12) -> 1.125415669 | C13: 1.128394925 | D13: 1.190761261 | E13: 1.368397864 | F13: 1.683838646 | G13: 1.872989614 | H13: 1.902014854 | I13: 2.482413654 | J13: 2.66709652 | K13: 2.486960923 | M13: Liquid gas | N13: 0 | O13: 0 | P13: 0 | Q13: 0 | R13: 0 | S13: 0 | T13: 0 | U13: 0 | V13: 0 | W13: 0 | AK13: Passengers cars | AS13: 295121.376
M14: heating oil / diesel | N14: 0 | O14: 0 | P14: 0 | Q14: 0 | R14: 0 | S14: 0 | T14: 0 | U14: 0 | V14: 0 | W14: 0 | AK14: Road passenger (million pkm) | AL14: 1437 | AM14: 1678 | AN14: 1813 | AO14: 1959 | AP14: 2066 | AQ14: 2223 | AR14: 2436 | AS14: 2521 | AT14: 2521 | AU14: 2356
A15: Energy consumption (MWh /Einwohner and Year) - Primary sector (Agriculture) | M15: gasoline | N15: 0 | O15: 0 | P15: 0 | Q15: 0 | R15: 0 | S15: 0 | T15: 0 | U15: 0 | V15: 0 | W15: 0 | AK15: Road goods transporterd (million ton-km) | AM15: 142.8000031 | AN15: 204.5 | AO15: 79.3 | AP15: 55.3 | AQ15: 55.5 | AR15: 91.2 | AS15: 132.9 | AT15: 179.4 | AU15: 182
A16: Energieträger | B16: 2000 | C16: 2001 | D16: 2002 | E16: 2003 | F16: 2004 | G16: 2005 | H16: 2006 | I16: 2007 | J16: 2008 | K16: 2009 | M16: Lignite / Coal | N16: 0 | O16: 0 | P16: 0 | Q16: 0 | R16: 0 | S16: 0 | T16: 0 | U16: 0 | V16: 0 | W16: 0 | AK16: Railways, passengers (million pkm) | AT16: 27 | AU16: 35
A17: Electricity | B17: 0.1546873127 | C17: 0.1278436839 | D17: 0.07513719889 | E17: 0.1072790525 | F17: 0.1190886153 | G17: 0.07465503034 | H17: 0.07392702836 | I17: 0.05647393927 | J17: 0.07244210883 | K17: 0.04015874626 | M17: other fossil fuels | N17: 0 | O17: 0 | P17: 0 | Q17: 0 | R17: 0 | S17: 0 | T17: 0 | U17: 0 | V17: 0 | W17: 0 | AK17: Railways, goods transported (million ton-km) | AL17: 354 | AM17: 344 | AN17: 452 | AO17: 529 | AP17: 678 | AQ17: 654.136 | AT17: 705 | AU17: 718
A18: Heat and Cold | B18: 0 | C18: 0 | D18: 0 | E18: 0 | F18: 0 | G18: 0 | H18: 0 | I18: 0 | J18: 0 | K18: 0 | M18: Plant oil, biofuel | N18: 0 | O18: 0 | P18: 0 | Q18: 0 | R18: 0 | S18: 0 | T18: 0 | U18: 0 | V18: 0 | W18: 0 | AL18: 2000 | AM18: 2001 | AN18: 2002 | AO18: 2003 | AP18: 2004 | AQ18: 2005 | AR18: 2006 | AS18: 2007 | AT18: 2008 | AU18: 2009
A19: natural gas | B19: 0 | C19: 0.0867996096 | D19: 0.08357652196 | E19: 0.07288077765 | F19: 0.08525765298 | G19: 0.1473168438 | H19: 0 | I19: 0 | J19: 0 | K19: 0 | M19: Summe | N19: =SUM(N10:N18) -> 475833.3333 | O19: =SUM(O10:O18) -> 658055.5556 | P19: 485833.3333 | Q19: 551388.8889 | R19: 625833.3333 | S19: 680555.5556 | T19: 226944.4444 | U19: 173611.1111 | V19: 223055.5556 | W19: 123888.8889 | AK19: Passengers cars | AL19: =IFERROR(AL13/AL5-1,"") ->  | AM19: =IFERROR(AM13/AM5-1,"") ->  | AS19: 0
A20: Liquid gas | B20: 0 | C20: 0 | D20: 0 | E20: 0 | F20: 0 | G20: 0 | H20: 0 | I20: 0 | J20: 0 | K20: 0 | AK20: Road passenger (million pkm) | AL20: =IFERROR(AL14/AL6-1,"") -> 0 | AM20: 0 | AN20: 0 | AO20: 0 | AP20: 0 | AQ20: 0 | AR20: 0 | AS20: 0 | AT20: 0 | AU20: 0
A21: heating oil / diesel | B21: 0 | C21: 0 | D21: 0 | E21: 0 | F21: 0 | G21: 0 | H21: 0 | I21: 0 | J21: 0 | K21: 0 | M21: Energy consumption, Business (Mwh/year) - Energy consumption - Industry | AK21: Road goods transporterd (million ton-km) | AM21: 0 | AN21: 0 | AO21: 0 | AP21: 0 | AQ21: 0 | AR21: 0 | AS21: 0 | AT21: 0 | AU21: 0
A22: gasoline | B22: 0 | C22: 0 | D22: 0 | E22: 0 | F22: 0 | G22: 0 | H22: 0 | I22: 0 | J22: 0 | K22: 0 | M22: =M$9 -> Energieträger | N22: 2000 | O22: 2001 | P22: 2002 | Q22: 2003 | R22: 2004 | S22: 2005 | T22: 2006 | U22: 2007 | V22: 2008 | W22: 2009 | AK22: Railways, passengers (million pkm) | AT22: 0 | AU22: 0
A23: Lignite / Coal | B23: 0 | C23: 0 | D23: 0 | E23: 0 | F23: 0 | G23: 0 | H23: 0 | I23: 0 | J23: 0 | K23: 0 | M23: =M$10 -> Electricity | N23: 696000 | O23: 773888.8889 | P23: 768055.5556 | Q23: 795000 | R23: 911111.1111 | S23: 953055.5556 | T23: 1038888.889 | U23: 1210000 | V23: 1171111.111 | W23: 1008888.889 | AK23: Railways, goods transported (million ton-km) | AL23: 0 | AM23: 0 | AN23: 0 | AO23: 0 | AP23: 0 | AQ23: 0 | AT23: 0 | AU23: 0
A24: other fossil fuels | B24: 0 | C24: 0 | D24: 0 | E24: 0 | F24: 0 | G24: 0 | H24: 0 | I24: 0 | J24: 0 | K24: 0 | M24: =M$11 -> Heat and Cold | N24: 353055.5556 | O24: 242222.2222 | P24: 184166.6667 | Q24: 161111.1111 | R24: 153611.1111 | S24: 259444.4444 | T24: 223333.3333 | U24: 273055.5556 | V24: 223888.8889 | W24: 138888.8889
A25: Plant oil, biofuel | B25: 0 | C25: 0 | D25: 0 | E25: 0 | F25: 0 | G25: 0 | H25: 0 | I25: 0 | J25: 0 | K25: 0 | M25: =M$12 -> natural gas | N25: 3977222.222 | O25: 4403055.556 | P25: 4232500 | Q25: 5434722.222 | R25: 6036666.667 | S25: 7475833.333 | T25: 7905000 | U25: 6438888.889 | V25: 7396388.889 | W25: 5291111.111
A26: Summe | B26: =SUM(B17:B25) -> 0.1546873127 | C26: 0.2146432935 | D26: 0.1587137208 | E26: 0.1801598302 | F26: 0.2043462683 | G26: 0.2219718742 | H26: 0.07392702836 | I26: 0.05647393927 | J26: 0.07244210883 | K26: 0.04015874626 | M26: =M$13 -> Liquid gas | N26: 0 | O26: 0 | P26: 0 | Q26: 0 | R26: 0 | S26: 0 | T26: 0 | U26: 0 | V26: 0 | W26: 0
M27: =M$14 -> heating oil / diesel | N27: 0 | O27: 0 | P27: 0 | Q27: 0 | R27: 0 | S27: 0 | T27: 0 | U27: 0 | V27: 0 | W27: 0
A28: Energy consumption (MWh /Einwohner and Year) - Secondary sector (Industrie) | M28: =M$15 -> gasoline | N28: 0 | O28: 0 | P28: 0 | Q28: 0 | R28: 0 | S28: 0 | T28: 0 | U28: 0 | V28: 0 | W28: 0
A29: Energieträger | B29: 2000 | C29: 2001 | D29: 2002 | E29: 2003 | F29: 2004 | G29: 2005 | H29: 2006 | I29: 2007 | J29: 2008 | K29: 2009 | M29: =M$16 -> Lignite / Coal | N29: 0 | O29: 0 | P29: 0 | Q29: 0 | R29: 0 | S29: 0 | T29: 0 | U29: 0 | V29: 0 | W29: 0
A30: Electricity | B30: 0.2262606718 | C30: 0.252425587 | D30: 0.2509110567 | E30: 0.2597568937 | F30: 0.2974947891 | G30: 0.3108512246 | H30: 0.338417486 | I30: 0.3936007672 | J30: 0.3803436249 | K30: 0.3270326602 | M30: =M$17 -> other fossil fuels | N30: 0 | O30: 0 | P30: 0 | Q30: 0 | R30: 0 | S30: 0 | T30: 0 | U30: 0 | V30: 0 | W30: 0
A31: Heat and Cold | B31: 0.1147738322 | C31: 0.07900757784 | D31: 0.06016420636 | E31: 0.05264115945 | F31: 0.05015689585 | G31: 0.08462111449 | H31: 0.07275071089 | I31: 0.08882221169 | J31: 0.07271275183 | K31: 0.04502101599 | M31: =M$18 -> Plant oil, biofuel | N31: 0 | O31: 0 | P31: 0 | Q31: 0 | R31: 0 | S31: 0 | T31: 0 | U31: 0 | V31: 0 | W31: 0
A32: natural gas | B32: 1.292943925 | C32: 1.436180179 | D32: 1.382687801 | E32: 1.775731525 | F32: 1.971084377 | G32: 2.438338388 | H32: 2.575049416 | I32: 2.09450546 | J32: 2.402137026 | K32: 1.715120625 | M32: Summe | N32: =SUM(N23:N31) -> 5026277.778 | O32: 5419166.667 | P32: 5184722.222 | Q32: 6390833.333 | R32: 7101388.889 | S32: 8688333.333 | T32: 9167222.222 | U32: 7921944.444 | V32: 8791388.889 | W32: 6438888.889
A33: Liquid gas | B33: 0 | C33: 0 | D33: 0 | E33: 0 | F33: 0 | G33: 0 | H33: 0 | I33: 0 | J33: 0 | K33: 0
A34: heating oil / diesel | B34: 0 | C34: 0 | D34: 0 | E34: 0 | F34: 0 | G34: 0 | H34: 0 | I34: 0 | J34: 0 | K34: 0 | M34: Energy consumption, Business (Mwh/year) - Energy consumption - Services
A35: gasoline | B35: 0 | C35: 0 | D35: 0 | E35: 0 | F35: 0 | G35: 0 | H35: 0 | I35: 0 | J35: 0 | K35: 0 | M35: =M$9 -> Energieträger | N35: 2000 | O35: 2001 | P35: 2002 | Q35: 2003 | R35: 2004 | S35: 2005 | T35: 2006 | U35: 2007 | V35: 2008 | W35: 2009
A36: Lignite / Coal | B36: 0 | C36: 0 | D36: 0 | E36: 0 | F36: 0 | G36: 0 | H36: 0 | I36: 0 | J36: 0 | K36: 0 | M36: =M$10 -> Electricity | N36: 608333.3333 | O36: 716944.4444 | P36: 798888.8889 | Q36: 933055.5556 | R36: 1038055.556 | S36: 1275000 | T36: 1438888.889 | U36: 1485000 | V36: 1596111.111 | W36: 1518055.556
A37: other fossil fuels | B37: 0 | C37: 0 | D37: 0 | E37: 0 | F37: 0 | G37: 0 | H37: 0 | I37: 0 | J37: 0 | K37: 0 | M37: =M$11 -> Heat and Cold | N37: 0 | O37: 0 | P37: 0 | Q37: 0 | R37: 0 | S37: 0 | T37: 0 | U37: 0 | V37: 0 | W37: 0
A38: Plant oil, biofuel | B38: 0 | C38: 0 | D38: 0 | E38: 0 | F38: 0 | G38: 0 | H38: 0 | I38: 0 | J38: 0 | K38: 0 | M38: =M$12 -> natural gas | N38: 84444.44444 | O38: 93611.11111 | P38: 93333.33333 | Q38: 115555.5556 | R38: 178055.5556 | S38: 199722.2222 | T38: 204444.4444 | U38: 284722.2222 | V38: 373888.8889 | W38: 373611.1111
A39: Summe | B39: =SUM(B30:B38) -> 1.633978429 | C39: 1.767613344 | D39: 1.693763064 | E39: 2.088129578 | F39: 2.318736062 | G39: 2.833810727 | H39: 2.986217613 | I39: 2.576928439 | J39: 2.855193403 | K39: 2.087174301 | M39: =M$13 -> Liquid gas | N39: 0 | O39: 0 | P39: 0 | Q39: 0 | R39: 0 | S39: 0 | T39: 0 | U39: 0 | V39: 0 | W39: 0
M40: =M$14 -> heating oil / diesel | N40: 820555.5556 | O40: 779166.6667 | P40: 779166.6667 | Q40: 1286666.667 | R40: 1286388.889 | S40: 1369444.444 | T40: 1333888.889 | U40: 1429444.444 | V40: 1534166.667 | W40: 1400555.556
A41: Energy consumption (MWh /Einwohner and Year) - Tertiary sector (Services) | M41: =M$15 -> gasoline | N41: 0 | O41: 0 | P41: 0 | Q41: 0 | R41: 0 | S41: 0 | T41: 0 | U41: 0 | V41: 0 | W41: 0
A42: Energieträger | B42: 2000 | C42: 2001 | D42: 2002 | E42: 2003 | F42: 2004 | G42: 2005 | H42: 2006 | I42: 2007 | J42: 2008 | K42: 2009 | M42: =M$16 -> Lignite / Coal | N42: 0 | O42: 0 | P42: 0 | Q42: 0 | R42: 0 | S42: 0 | T42: 0 | U42: 0 | V42: 0 | W42: 0
A43: Electricity | B43: 0.197761363 | C43: 0.2338515578 | D43: 0.2609837971 | E43: 0.3048649217 | F43: 0.3389445204 | G43: 0.4158575112 | H43: 0.4687172667 | I43: 0.483055487 | J43: 0.5183715534 | K43: 0.4920797048 | M43: =M$17 -> other fossil fuels | N43: 0 | O43: 12777.77778 | P43: 12777.77778 | Q43: 0 | R43: 0 | S43: 253055.5556 | T43: 189722.2222 | U43: 144166.6667 | V43: 113888.8889 | W43: 95000
A44: Heat and Cold | B44: 0 | C44: 0 | D44: 0 | E44: 0 | F44: 0 | G44: 0 | H44: 0 | I44: 0 | J44: 0 | K44: 0 | M44: =M$18 -> Plant oil, biofuel | N44: 0 | O44: 118333.3333 | P44: 128333.3333 | Q44: 153888.8889 | R44: 161388.8889 | S44: 98333.33333 | T44: 160000 | U44: 101388.8889 | V44: 101388.8889 | W44: 101388.8889
A45: natural gas | B45: 0.02745180565 | C45: 0.0305338919 | D45: 0.03049045752 | E45: 0.03775641781 | F45: 0.05813846336 | G45: 0.06514195002 | H45: 0.06659766569 | I45: 0.09261726041 | J45: 0.1214284913 | K45: 0.121106533 | M45: Summe | N45: =SUM(N36:N44) -> 1513333.333 | O45: 1720833.333 | P45: 1812500 | Q45: 2489166.667 | R45: 2663888.889 | S45: 3195555.556 | T45: 3326944.444 | U45: 3444722.222 | V45: 3719444.444 | W45: 3488611.111
A46: Liquid gas | B46: 0 | C46: 0 | D46: 0 | E46: 0 | F46: 0 | G46: 0 | H46: 0 | I46: 0 | J46: 0 | K46: 0
A47: heating oil / diesel | B47: 0.2667520851 | C47: 0.2541470824 | D47: 0.2545408731 | E47: 0.4204031906 | F47: 0.4200299904 | G47: 0.4466617713 | H47: 0.4345135743 | I47: 0.4649838264 | J47: 0.4982537573 | K47: 0.4539919252
A48: gasoline | B48: 0 | C48: 0 | D48: 0 | E48: 0 | F48: 0 | G48: 0 | H48: 0 | I48: 0 | J48: 0 | K48: 0
A49: Lignite / Coal | B49: 0 | C49: 0 | D49: 0 | E49: 0 | F49: 0 | G49: 0 | H49: 0 | I49: 0 | J49: 0 | K49: 0
A50: other fossil fuels | B50: 0 | C50: 0.004167830941 | D50: 0.004174288827 | E50: 0 | F50: 0 | G50: 0.08253729689 | H50: 0.06180190988 | I50: 0.04689595917 | J50: 0.03698787624 | K50: 0.03079437494
A51: Plant oil, biofuel | B51: 0 | C51: 0.03859773872 | D51: 0.04192437909 | E51: 0.05028138333 | F51: 0.05269648551 | G51: 0.0320726708 | H51: 0.05211991228 | I51: 0.03298078054 | J51: 0.03292823129 | K51: 0.03286534167
A52: Summe | B52: =SUM(B43:B51) -> 0.4919652538 | C52: 0.5612981018 | D52: 0.5921137956 | E52: 0.8133059135 | F52: 0.8698094597 | G52: 1.0422712 | H52: 1.083750329 | I52: 1.120533313 | J52: 1.207969909 | K52: 1.13083788
A54: Energy consumption (MWh /Einwohner and Year) - Road
A55: Energieträger | B55: 2000 | C55: 2001 | D55: 2002 | E55: 2003 | F55: 2004 | G55: 2005 | H55: 2006 | I55: 2007 | J55: 2008 | K55: 2009
A56: Electricity | B56: 0 | C56: 0 | D56: 0 | E56: 0 | F56: 0 | G56: 0 | H56: 0 | I56: 0 | J56: 0 | K56: 0
A57: Heat and Cold | B57: 0 | C57: 0 | D57: 0 | E57: 0 | F57: 0 | G57: 0 | H57: 0 | I57: 0 | J57: 0 | K57: 0
A58: natural gas | B58: 0 | C58: 0 | D58: 0 | E58: 0 | F58: 0.05006619622 | G58: 0.1983250745 | H58: 0.2519129094 | I58: 0.972978205 | J58: 1.169809247 | K58: 1.037284208
A59: Liquid gas | B59: 0 | C59: 0 | D59: 0 | E59: 0 | F59: 0 | G59: 0 | H59: 0 | I59: 0 | J59: 0 | K59: 0
A60: heating oil / diesel | B60: 0 | C60: 0 | D60: 0 | E60: 0 | F60: 0 | G60: 0 | H60: 0 | I60: 0 | J60: 0 | K60: 0
A61: gasoline | B61: 0.74607506 | C61: 0.7408772523 | D61: 0.7460180098 | E61: 0.7661103912 | F61: 0.7576140163 | G61: 0.7328695879 | H61: 0.6841643347 | I61: 0.6708200403 | J61: 0.7852255483 | K61: 0.7283499967
A62: Lignite / Coal | B62: 0 | C62: 0 | D62: 0 | E62: 0 | F62: 0 | G62: 0 | H62: 0 | I62: 0 | J62: 0 | K62: 0
A63: other fossil fuels | B63: 0 | C63: 0 | D63: 0 | E63: 0 | F63: 0 | G63: 0 | H63: 0 | I63: 0 | J63: 0 | K63: 0
A64: Plant oil, biofuel | B64: 0 | C64: 0 | D64: 0 | E64: 0 | F64: 0 | G64: 0 | H64: 0 | I64: 0 | J64: 0 | K64: 0
A65: Summe | B65: =SUM(B56:B64) -> 0.74607506 | C65: 0.7408772523 | D65: 0.7460180098 | E65: 0.7661103912 | F65: 0.8076802125 | G65: 0.9311946624 | H65: 0.936077244 | I65: 1.643798245 | J65: 1.955034795 | K65: 1.765634205
A67: Energy consumption (MWh /Einwohner and Year) - Rail
A68: Energieträger | B68: 2000 | C68: 2001 | D68: 2002 | E68: 2003 | F68: 2004 | G68: 2005 | H68: 2006 | I68: 2007 | J68: 2008 | K68: 2009
A69: Electricity | B69: 0.0221059277 | C69: 0.02083915471 | D69: 0.02350306101 | E69: 0.02414232485 | F69: 0.0241261018 | G69: 0.02708962873 | H69: 0.02216905991 | I69: 0.02313172553 | J69: 0.02174165408 | K69: 0.02143000361
A70: Heat and Cold | B70: 0 | C70: 0 | D70: 0 | E70: 0 | F70: 0 | G70: 0 | H70: 0 | I70: 0 | J70: 0 | K70: 0
A71: natural gas | B71: 0 | C71: 0 | D71: 0 | E71: 0 | F71: 0 | G71: 0 | H71: 0 | I71: 0 | J71: 0 | K71: 0
A72: Liquid gas | B72: 0 | C72: 0 | D72: 0 | E72: 0 | F72: 0 | G72: 0 | H72: 0 | I72: 0 | J72: 0 | K72: 0
A73: heating oil / diesel | B73: 0 | C73: 0 | D73: 0 | E73: 0 | F73: 0 | G73: 0 | H73: 0 | I73: 0 | J73: 0 | K73: 0
A74: gasoline | B74: 0 | C74: 0 | D74: 0 | E74: 0 | F74: 0 | G74: 0 | H74: 0 | I74: 0 | J74: 0 | K74: 0
A75: Lignite / Coal | B75: 0 | C75: 0 | D75: 0 | E75: 0 | F75: 0 | G75: 0 | H75: 0 | I75: 0 | J75: 0 | K75: 0
A76: other fossil fuels | B76: 0 | C76: 0 | D76: 0 | E76: 0 | F76: 0 | G76: 0 | H76: 0 | I76: 0 | J76: 0 | K76: 0
A77: Plant oil, biofuel | B77: 0 | C77: 0 | D77: 0 | E77: 0 | F77: 0 | G77: 0 | H77: 0 | I77: 0 | J77: 0 | K77: 0
A78: Summe | B78: =SUM(B69:B77) -> 0.0221059277 | C78: 0.02083915471 | D78: 0.02350306101 | E78: 0.02414232485 | F78: 0.0241261018 | G78: 0.02708962873 | H78: 0.02216905991 | I78: 0.02313172553 | J78: 0.02174165408 | K78: 0.02143000361
A81: Azerbaijan | M81: Azerbaijan | Y81: Azerbaijan | AK81: Azerbaijan
A82: Energy consumption (MWh /Einwohner and Year) - Residential building (Households) | M82: Workforce (Number) - Nationale Eingabe | Y82: CO2 emission Factor (t /Mwh)
A83: Energieträger | B83: 2000 | C83: 2001 | D83: 2002 | E83: 2003 | F83: 2004 | G83: 2005 | H83: 2006 | I83: 2007 | J83: 2008 | K83: 2009 | M83: Branche of trade | N83: 2000 | O83: 2001 | P83: 2002 | Q83: 2003 | R83: 2004 | S83: 2005 | T83: 2006 | U83: 2007 | V83: 2008 | W83: 2009 | Y83: Energieträger | Z83: 2000 | AA83: 2001 | AB83: 2002 | AC83: 2003 | AD83: 2004 | AE83: 2005 | AF83: 2006 | AG83: 2007 | AH83: 2008 | AI83: 2009 | AL83: 2000 | AM83: 2001 | AN83: 2002 | AO83: 2003 | AP83: 2004 | AQ83: 2005 | AR83: 2006 | AS83: 2007 | AT83: 2008 | AU83: 2009
A84: Electricity | B84: 1.401485973 | C84: 1.254061599 | D84: 1.273495854 | E84: 1.466934928 | F84: 1.433081188 | G84: 1.340950512 | H84: 1.625896482 | I84: 0.9712009447 | J84: 0.8493976209 | K84: 0.6535222327 | M84: primary sector | N84: 1549000 | O84: 1563000 | P84: 1569000 | Q84: 1585000 | R84: 1594000 | S84: 1616000 | T84: 1625000 | U84: 1642000 | V84: 1655000 | W84: 1673000 | Y84: Electricity | Z84: 0.874 | AA84: 0.81 | AB84: 0.778 | AC84: 0.737 | AD84: 0.701 | AE84: 0.68 | AF84: 0.713 | AG84: 0.9 | AH84: 0.891 | AI84: 0.891 | AK84: Einwohnerzahlen | AL84: 8048600 | AM84: 8111200 | AN84: 8171950 | AO84: 8234100 | AP84: 8306500 | AQ84: 8391850 | AR84: 8484550 | AS84: 8581300 | AT84: 8763400 | AU84: 8947243
A85: Heat and Cold | B85: 0.3446424085 | C85: 0 | D85: 0 | E85: 0 | F85: 0 | G85: 0 | H85: 0.03686439207 | I85: 0.03868230273 | J85: 0.04431309005 | K85: 0.04778008153 | M85: secondary sector | N85: 187000 | O85: 188000 | P85: 191000 | Q85: 192000 | R85: 199000 | S85: 198000 | T85: 203000 | U85: 207000 | V85: 211000 | W85: 214000 | Y85: Heat and Cold | Z85: n.a. | AA85: n.a. | AB85: n.a. | AC85: n.a. | AD85: n.a. | AE85: n.a. | AF85: n.a. | AG85: n.a. | AH85: n.a. | AI85: n.a. | AK85: Passengers cars | AL85: 329992.6 | AM85: 340670.4 | AN85: 351393.85 | AO85: 403470.9 | AP85: 440244.5 | AQ85: 478335.45 | AR85: 551495.75 | AS85: 617853.6 | AT85: 709835.4 | AU85: 769462.898
A86: natural gas | B86: 3.05218713 | C86: 2.611854939 | D86: 3.071720268 | E86: 3.271793855 | F86: 3.51010253 | G86: 3.57774375 | H86: 3.561637198 | I86: 3.128508113 | J86: 3.806012633 | K86: 3.382916702 | M86: tertiary sector | N86: 1882000 | O86: 1903000 | P86: 1929000 | Q86: 1948000 | R86: 1970000 | S86: 1981000 | T86: 1991000 | U86: 2014000 | V86: 2068000 | W86: 2096000 | Y86: natural gas | Z86: 0.202 | AA86: 0.202 | AB86: 0.202 | AC86: 0.202 | AD86: 0.202 | AE86: 0.202 | AF86: 0.202 | AG86: 0.202 | AH86: 0.202 | AI86: 0.202 | AK86: Road passenger (million pkm) | AL86: 9153 | AM86: 9442 | AN86: 9603 | AO86: 9861 | AP86: 10279 | AQ86: 10892 | AR86: 11786 | AS86: 12893 | AT86: 14041 | AU86: 15291
A87: Liquid gas | B87: 0 | C87: 0 | D87: 0 | E87: 0 | F87: 0 | G87: 0 | H87: 0 | I87: 0 | J87: 0 | K87: 0 | Y87: Liquid gas | Z87: 0.231 | AA87: 0.231 | AB87: 0.231 | AC87: 0.231 | AD87: 0.231 | AE87: 0.231 | AF87: 0.231 | AG87: 0.231 | AH87: 0.231 | AI87: 0.231 | AK87: Road goods transporterd (million ton-km) | AL87: 3513 | AM87: 4843 | AN87: 5334 | AO87: 6241 | AP87: 6965 | AQ87: 7536 | AR87: 8222 | AS87: 9134 | AT87: 9947 | AU87: 10634
A88: heating oil / diesel | B88: 0.07002598105 | C88: 0 | D88: 0 | E88: 0 | F88: 0 | G88: 0 | H88: 0 | I88: 0.02201168691 | J88: 0.02019130069 | K88: 0.01583355528 | M88: Energy consumption, Business (Mwh/year) - Energy consumption - Agriculture | Y88: heating oil / diesel | Z88: 0.267 | AA88: 0.267 | AB88: 0.267 | AC88: 0.267 | AD88: 0.267 | AE88: 0.267 | AF88: 0.267 | AG88: 0.267 | AH88: 0.267 | AI88: 0.267 | AK88: Railways, passengers (million pkm) | AT88: 1049 | AU88: 1024
A89: gasoline | B89: 0 | C89: 0 | D89: 0 | E89: 0 | F89: 0 | G89: 0 | H89: 0 | I89: 0.01123243435 | J89: 0.01372501287 | K89: 0.005402036508 | M89: Energieträger | N89: 2000 | O89: 2001 | P89: 2002 | Q89: 2003 | R89: 2004 | S89: 2005 | T89: 2006 | U89: 2007 | V89: 2008 | W89: 2009 | Y89: gasoline | Z89: 0.249 | AA89: 0.249 | AB89: 0.249 | AC89: 0.249 | AD89: 0.249 | AE89: 0.249 | AF89: 0.249 | AG89: 0.249 | AH89: 0.249 | AI89: 0.249 | AK89: Railways, goods transported (million ton-km) | AL89: 5770 | AM89: 6142 | AN89: 6980 | AO89: 7719 | AP89: 7551 | AR89: 11059 | AS89: 10374 | AT89: 10021 | AU89: 7582
A90: Lignite / Coal | B90: 0 | C90: 0 | D90: 0 | E90: 0 | F90: 0 | G90: 0 | H90: 0 | I90: 0 | J90: 0 | K90: 0 | M90: =M$10 -> Electricity | N90: 803055.5556 | O90: 826944.4444 | P90: 865000 | Q90: 0 | R90: 486944.4444 | S90: 498888.8889 | T90: 510000 | U90: 610000 | V90: 640000 | W90: 636388.8889 | Y90: Lignite / Coal | Z90: 0.364 | AA90: 0.364 | AB90: 0.364 | AC90: 0.364 | AD90: 0.364 | AE90: 0.364 | AF90: 0.364 | AG90: 0.364 | AH90: 0.364 | AI90: 0.364
A91: other fossil fuels | B91: 0 | C91: 0.04523923026 | D91: 0.04643254602 | E91: 0.08450630103 | F91: 0.09898539965 | G91: 0.09648912007 | H91: 0.09094962805 | I91: 0.1179567457 | J91: 0.1212745941 | K91: 0.08059590101 | M91: =M$11 -> Heat and Cold | N91: 0 | O91: 0 | P91: 0 | Q91: 0 | R91: 0 | S91: 0 | T91: 0 | U91: 2500 | V91: 3888.888889 | W91: 402222.2222 | Y91: other fossil fuels | Z91: 0.382 | AA91: 0.382 | AB91: 0.382 | AC91: 0.382 | AD91: 0.382 | AE91: 0.382 | AF91: 0.382 | AG91: 0.382 | AH91: 0.382 | AI91: 0.382
A92: Plant oil, biofuel | B92: 0 | C92: 0 | D92: 0 | E92: 0 | F92: 0 | G92: 0 | H92: 0 | I92: 0.08574846857 | J92: 0.07889505088 | K92: 0.06286852833 | M92: =M$12 -> natural gas | N92: 46944.44444 | O92: 20833.33333 | P92: 62777.77778 | Q92: 239722.2222 | R92: 325277.7778 | S92: 335000 | T92: 416666.6667 | U92: 173055.5556 | V92: 129722.2222 | W92: 65000 | Y92: Plant oil, biofuel | Z92: 0 | AA92: 0 | AB92: 0 | AC92: 0 | AD92: 0 | AE92: 0 | AF92: 0 | AG92: 0 | AH92: 0 | AI92: 0
A93: Summe | B93: =SUM(B84:B92) -> 4.868341492 | C93: 3.911155768 | D93: 4.391648668 | E93: 4.823235083 | F93: 5.042169118 | G93: 5.015183382 | H93: 5.315347701 | I93: 4.375340696 | J93: 4.933809303 | K93: 4.248919037 | M93: =M$13 -> Liquid gas | N93: 0 | O93: 0 | P93: 0 | Q93: 0 | R93: 0 | S93: 0 | T93: 0 | U93: 0 | V93: 0 | W93: 0 | AK93: Passengers cars | AL93: 329992.6 | AM93: 340670.4 | AN93: 351393.85 | AO93: 403470.9 | AP93: 440244.5 | AQ93: 478335.45 | AR93: 551495.75 | AS93: 617853.6 | AT93: 709835.4 | AU93: 769462.898
M94: =M$14 -> heating oil / diesel | N94: 1087500 | O94: 885277.7778 | P94: 708333.3333 | Q94: 661111.1111 | R94: 944444.4444 | S94: 247777.7778 | T94: 294166.6667 | U94: 2112777.778 | V94: 2631944.444 | W94: 3521666.667 | AK94: Road passenger (million pkm) | AL94: 9153 | AM94: 9442 | AN94: 9603 | AO94: 9861 | AP94: 10279 | AQ94: 10892 | AR94: 11786 | AS94: 12893 | AT94: 14041 | AU94: 15291
A95: Energy consumption (MWh /Einwohner and Year) - Primary sector (Agriculture) | M95: =M$15 -> gasoline | N95: 0 | O95: 0 | P95: 0 | Q95: 0 | R95: 24444.44444 | S95: 0 | T95: 11944.44444 | U95: 0 | V95: 0 | W95: 0 | AK95: Road goods transporterd (million ton-km) | AL95: 3513 | AM95: 4843 | AN95: 5334 | AO95: 6241 | AP95: 6965 | AQ95: 7536 | AR95: 8222 | AS95: 9134 | AT95: 9947 | AU95: 10634
A96: Energieträger | B96: 2000 | C96: 2001 | D96: 2002 | E96: 2003 | F96: 2004 | G96: 2005 | H96: 2006 | I96: 2007 | J96: 2008 | K96: 2009 | M96: =M$16 -> Lignite / Coal | N96: 0 | O96: 0 | P96: 0 | Q96: 0 | R96: 0 | S96: 0 | T96: 0 | U96: 0 | V96: 0 | W96: 0 | AK96: Railways, passengers (million pkm) | AT96: 1049 | AU96: 1024
A97: Electricity | B97: 0.09977580642 | C97: 0.1019509375 | D97: 0.1058498889 | E97: 0 | F97: 0.05862209648 | G97: 0.05944921428 | H97: 0.06010925741 | I97: 0.07108480067 | J97: 0.07303101536 | K97: 0.07112681402 | M97: =M$17 -> other fossil fuels | N97: 0 | O97: 0 | P97: 0 | Q97: 0 | R97: 0 | S97: 0 | T97: 0 | U97: 0 | V97: 0 | W97: 0 | AK97: Railways, goods transported (million ton-km) | AL97: 5770 | AM97: 6142 | AN97: 6980 | AO97: 7719 | AP97: 7551 | AR97: 11059 | AS97: 10374 | AT97: 10021 | AU97: 7582
A98: Heat and Cold | B98: 0 | C98: 0 | D98: 0 | E98: 0 | F98: 0 | G98: 0 | H98: 0 | I98: 0.0002913311503 | J98: 0.0004437648503 | K98: 0.04495487853 | M98: =M$18 -> Plant oil, biofuel | N98: 0 | O98: 0 | P98: 0 | Q98: 0 | R98: 0 | S98: 0 | T98: 0 | U98: 4722.222222 | V98: 8888.888889 | W98: 189444.4444 | AL98: 2000 | AM98: 2001 | AN98: 2002 | AO98: 2003 | AP98: 2004 | AQ98: 2005 | AR98: 2006 | AS98: 2007 | AT98: 2008 | AU98: 2009
A99: natural gas | B99: 0.005832622375 | C99: 0.002568465003 | D99: 0.007682104978 | E99: 0.02911334842 | F99: 0.03915942669 | G99: 0.03991968398 | H99: 0.04910887044 | I99: 0.02016658963 | J99: 0.01480272751 | K99: 0.007264807718 | M99: Summe | N99: =SUM(N90:N98) -> 1937500 | O99: 1733055.556 | P99: 1636111.111 | Q99: 900833.3333 | R99: 1781111.111 | S99: 1081666.667 | T99: 1232777.778 | U99: 2903055.556 | V99: 3414444.444 | W99: 4814722.222 | AK99: Passengers cars | AL99: =IFERROR(AL93/AL85-1,"") -> 0 | AM99: =IFERROR(AM93/AM85-1,"") -> 0 | AN99: 0 | AO99: 0 | AP99: 0 | AQ99: 0 | AR99: 0 | AS99: 0 | AT99: 0 | AU99: 0
A100: Liquid gas | B100: 0 | C100: 0 | D100: 0 | E100: 0 | F100: 0 | G100: 0 | H100: 0 | I100: 0 | J100: 0 | K100: 0 | AK100: Road passenger (million pkm) | AL100: =IFERROR(AL94/AL86-1,"") -> 0 | AM100: 0 | AN100: 0 | AO100: 0 | AP100: 0 | AQ100: 0 | AR100: 0 | AS100: 0 | AT100: 0 | AU100: 0
A101: heating oil / diesel | B101: 0.1351166663 | C101: 0.1091426395 | D101: 0.08667861812 | E101: 0.08028941974 | F101: 0.1136994455 | G101: 0.02952600175 | H101: 0.03467086253 | I101: 0.2462071921 | J101: 0.3003337112 | K101: 0.3936035566 | M101: Energy consumption, Business (Mwh/year) - Energy consumption - Industry | AK101: Road goods transporterd (million ton-km) | AL101: =IFERROR(AL95/AL87-1,"") -> 0 | AM101: 0 | AN101: 0 | AO101: 0 | AP101: 0 | AQ101: 0 | AR101: 0 | AS101: 0 | AT101: 0 | AU101: 0
A102: gasoline | B102: 0 | C102: 0 | D102: 0 | E102: 0 | F102: 0.002942809179 | G102: 0 | H102: 0.001407787619 | I102: 0 | J102: 0 | K102: 0 | M102: =M$9 -> Energieträger | N102: 2000 | O102: 2001 | P102: 2002 | Q102: 2003 | R102: 2004 | S102: 2005 | T102: 2006 | U102: 2007 | V102: 2008 | W102: 2009 | AK102: Railways, passengers (million pkm) | AL102: =IFERROR(AL96/AL88-1,"") ->  | AT102: 0 | AU102: 0
A103: Lignite / Coal | B103: 0 | C103: 0 | D103: 0 | E103: 0 | F103: 0 | G103: 0 | H103: 0 | I103: 0 | J103: 0 | K103: 0 | M103: =M$10 -> Electricity | N103: 740000 | O103: 1841944.444 | P103: 2085000 | Q103: 4390000 | R103: 3940000 | S103: 4358888.889 | T103: 4610000 | U103: 2960555.556 | V103: 3172500 | W103: 2065555.556 | AK103: Railways, goods transported (million ton-km) | AL103: =IFERROR(AL97/AL89-1,"") -> 0 | AM103: 0 | AN103: 0 | AO103: 0 | AP103: 0 | AR103: 0 | AS103: 0 | AT103: 0 | AU103: 0
A104: other fossil fuels | B104: 0 | C104: 0 | D104: 0 | E104: 0 | F104: 0 | G104: 0 | H104: 0 | I104: 0 | J104: 0 | K104: 0 | M104: =M$11 -> Heat and Cold | N104: 1187222.222 | O104: 3767777.778 | P104: 4097777.778 | Q104: 4444444.444 | R104: 5046666.667 | S104: 4551388.889 | T104: 4684166.667 | U104: 3784722.222 | V104: 4692777.778 | W104: 2535277.778
A105: Plant oil, biofuel | B105: 0 | C105: 0 | D105: 0 | E105: 0 | F105: 0 | G105: 0 | H105: 0 | I105: 0.0005502921728 | J105: 0.001014319658 | K105: 0.02117349942 | M105: =M$12 -> natural gas | N105: 12541111.11 | O105: 10053333.33 | P105: 9330833.333 | Q105: 8244166.667 | R105: 4183611.111 | S105: 4262500 | T105: 9254722.222 | U105: 3971666.667 | V105: 5317222.222 | W105: 3533611.111
A106: Summe | B106: =SUM(B97:B105) -> 0.240725095 | C106: =SUM(C97:C105) -> 0.2136620421 | D106: =SUM(D97:D105) -> 0.200210612 | E106: =SUM(E97:E105) -> 0.1094027682 | F106: =SUM(F97:F105) -> 0.2144237779 | G106: =SUM(G97:G105) -> 0.1288949 | H106: =SUM(H97:H105) -> 0.145296778 | I106: =SUM(I97:I105) -> 0.3383002057 | J106: =SUM(J97:J105) -> 0.3896255385 | K106: =SUM(K97:K105) -> 0.5381235563 | M106: =M$13 -> Liquid gas | N106: 0 | O106: 0 | P106: 0 | Q106: 0 | R106: 0 | S106: 0 | T106: 0 | U106: 0 | V106: 0 | W106: 0
M107: =M$14 -> heating oil / diesel | N107: 3579722.222 | O107: 1404722.222 | P107: 70833.33333 | Q107: 897222.2222 | R107: 885277.7778 | S107: 295000 | T107: 899722.2222 | U107: 735555.5556 | V107: 836666.6667 | W107: 1193888.889
A108: Energy consumption (MWh /Einwohner and Year) - Secondary sector (Industrie) | M108: =M$15 -> gasoline | N108: 5748611.111 | O108: 4057500 | P108: 3101388.889 | Q108: 3787777.778 | R108: 305277.7778 | S108: 3334166.667 | T108: 180000 | U108: 325277.7778 | V108: 336111.1111 | W108: 48055.55556
A109: Energieträger | B109: 2000 | C109: 2001 | D109: 2002 | E109: 2003 | F109: 2004 | G109: 2005 | H109: 2006 | I109: 2007 | J109: 2008 | K109: 2009 | M109: =M$16 -> Lignite / Coal | N109: 0 | O109: 0 | P109: 0 | Q109: 0 | R109: 0 | S109: 0 | T109: 0 | U109: 0 | V109: 0 | W109: 0
A110: Electricity | B110: 0.09194145566 | C110: 0.2270865525 | D110: 0.2551410618 | E110: 0.5331487351 | F110: 0.474327334 | G110: 0.5194193043 | H110: 0.5433405425 | I110: 0.3450008222 | J110: 0.3620170254 | K110: 0.2308594453 | M110: =M$17 -> other fossil fuels | N110: 404722.2222 | O110: 227777.7778 | P110: 316388.8889 | Q110: 227777.7778 | R110: 240277.7778 | S110: 151944.4444 | T110: 113888.8889 | U110: 25277.77778 | V110: 12777.77778 | W110: 75833.33333
A111: Heat and Cold | B111: 0.1475066747 | C111: 0.4645154574 | D111: 0.5014443037 | E111: 0.539760805 | F111: 0.6075563314 | G111: 0.5423582272 | H111: 0.5520819215 | I111: 0.4410429914 | J111: 0.5354973843 | K111: 0.2833585472 | M111: =M$18 -> Plant oil, biofuel | N111: 0 | O111: 0 | P111: 0 | Q111: 0 | R111: 0 | S111: 0 | T111: 0 | U111: 833.3333333 | V111: 1111.111111 | W111: 277.7777778
A112: natural gas | B112: 1.558172988 | C112: 1.239438472 | D112: 1.141812338 | E112: 1.001222558 | F112: 0.5036551028 | G112: 0.5079332924 | H112: 1.090773491 | I112: 0.4628280874 | J112: 0.6067533403 | K112: 0.3949385426 | M112: Summe | N112: =SUM(N103:N111) -> 24201388.89 | O112: 21353055.56 | P112: 19002222.22 | Q112: 21991388.89 | R112: 14601111.11 | S112: 16953888.89 | T112: 19742500 | U112: 11803888.89 | V112: 14369166.67 | W112: 9452500
A113: Liquid gas | B113: 0 | C113: 0 | D113: 0 | E113: 0 | F113: 0 | G113: 0 | H113: 0 | I113: 0 | J113: 0 | K113: 0
A114: heating oil / diesel | B114: 0.4447633405 | C114: 0.1731830336 | D114: 0.008667861812 | E114: 0.1089642125 | F114: 0.1065765097 | G114: 0.03515315455 | H114: 0.1060424209 | I114: 0.08571609844 | J114: 0.09547283779 | K114: 0.133436511 | M114: Energy consumption, Business (Mwh/year) - Energy consumption - Services
A115: gasoline | B115: 0.7142373967 | C115: 0.500234244 | D115: 0.3795163809 | E115: 0.4600111461 | F115: 0.03675167372 | G115: 0.3973100886 | H115: 0.02121503203 | I115: 0.03790541967 | J115: 0.03835396206 | K115: 0.005370990321 | M115: =M$9 -> Energieträger | N115: 2000 | O115: 2001 | P115: 2002 | Q115: 2003 | R115: 2004 | S115: 2005 | T115: 2006 | U115: 2007 | V115: 2008 | W115: 2009
A116: Lignite / Coal | B116: 0 | C116: 0 | D116: 0 | E116: 0 | F116: 0 | G116: 0 | H116: 0 | I116: 0 | J116: 0 | K116: 0 | M116: =M$10 -> Electricity | N116: 1606111.111 | O116: 1580000 | P116: 1516111.111 | Q116: 588055.5556 | R116: 1481944.444 | S116: 1498888.889 | T116: 1100000 | U116: 3556388.889 | V116: 3904722.222 | W116: 3402222.222
A117: other fossil fuels | B117: 0.05028479763 | C117: 0.02808188403 | D117: 0.03871644943 | E117: 0.02766274126 | F117: 0.02892647659 | G117: 0.01810619166 | H117: 0.01342309125 | I117: 0.002945681631 | J117: 0.001458084508 | K117: 0.008475609004 | M117: =M$11 -> Heat and Cold | N117: 95000 | O117: 1555833.333 | P117: 1851111.111 | Q117: 1858611.111 | R117: 1257777.778 | S117: 1511944.444 | T117: 110555.5556 | U117: 218055.5556 | V117: 385833.3333 | W117: 402222.2222
A118: Plant oil, biofuel | B118: 0 | C118: 0 | D118: 0 | E118: 0 | F118: 0 | G118: 0 | H118: 0 | I118: 9.711038343e-05 | J118: 0.0001267899572 | K118: 3.104618683e-05 | M118: =M$12 -> natural gas | N118: 4207500 | O118: 8723611.111 | P118: 6650000 | Q118: 3177500 | R118: 216666.6667 | S118: 230555.5556 | T118: 376111.1111 | U118: 350833.3333 | V118: 505277.7778 | W118: 464166.6667
A119: Summe | B119: =SUM(B110:B118) -> 3.006906653 | C119: =SUM(C110:C118) -> 2.632539643 | D119: =SUM(D110:D118) -> 2.325298395 | E119: =SUM(E110:E118) -> 2.670770198 | F119: =SUM(F110:F118) -> 1.757793428 | G119: =SUM(G110:G118) -> 2.020280259 | H119: =SUM(H110:H118) -> 2.326876499 | I119: =SUM(I110:I118) -> 1.375536211 | J119: =SUM(J110:J118) -> 1.639679424 | K119: =SUM(K110:K118) -> 1.056470692 | M119: =M$13 -> Liquid gas | N119: 0 | O119: 0 | P119: 0 | Q119: 0 | R119: 0 | S119: 0 | T119: 0 | U119: 0 | V119: 0 | W119: 0
M120: =M$14 -> heating oil / diesel | N120: 149722.2222 | O120: 932500 | P120: 1640833.333 | Q120: 590277.7778 | R120: 531111.1111 | S120: 3954444.444 | T120: 57500 | U120: 128611.1111 | V120: 140000 | W120: 151666.6667
A121: Energy consumption (MWh /Einwohner and Year) - Tertiary sector (Services) | M121: =M$15 -> gasoline | N121: 2100000 | O121: 971944.4444 | P121: 1716111.111 | Q121: 1716111.111 | R121: 1716111.111 | S121: 1416111.111 | T121: 288055.5556 | U121: 84166.66667 | V121: 48333.33333 | W121: 24166.66667
A122: Energieträger | B122: 2000 | C122: 2001 | D122: 2002 | E122: 2003 | F122: 2004 | G122: 2005 | H122: 2006 | I122: 2007 | J122: 2008 | K122: 2009 | M122: =M$16 -> Lignite / Coal | N122: 0 | O122: 0 | P122: 0 | Q122: 0 | R122: 0 | S122: 0 | T122: 0 | U122: 0 | V122: 0 | W122: 0
A123: Electricity | B123: 0.1995516128 | C123: 0.1947923858 | D123: 0.1855262344 | E123: 0.07141710151 | F123: 0.1784078065 | G123: 0.17861245 | H123: 0.129647418 | I123: 0.4144347464 | J123: 0.4455716072 | K123: 0.3802536963 | M123: =M$17 -> other fossil fuels | N123: 0 | O123: 0 | P123: 0 | Q123: 0 | R123: 0 | S123: 0 | T123: 0 | U123: 126388.8889 | V123: 25277.77778 | W123: 0
A124: Heat and Cold | B124: 0 | C124: 0 | D124: 0 | E124: 0 | F124: 0 | G124: 0 | H124: 0 | I124: 0 | J124: 0 | K124: 0 | M124: =M$18 -> Plant oil, biofuel | N124: 67777.77778 | O124: 66666.66667 | P124: 66666.66667 | Q124: 51388.88889 | R124: 102777.7778 | S124: 182777.7778 | T124: 165000 | U124: 181111.1111 | V124: 197500 | W124: 189444.4444
A125: natural gas | B125: 0.5227617225 | C125: 1.075501912 | D125: 0.8137592619 | E125: 0.3858952405 | F125: 0.02608399045 | G125: 0.02747374602 | H125: 0.04432894038 | I125: 0.04088347142 | J125: 0.05765773305 | K125: 0.05187817819 | M125: Summe | N125: =SUM(N116:N124) -> 8226111.111 | O125: 13830555.56 | P125: 13440833.33 | Q125: 7981944.444 | R125: 5306388.889 | S125: 8794722.222 | T125: 2097222.222 | U125: 4645555.556 | V125: 5206944.444 | W125: 4633888.889
A126: Liquid gas | B126: 0 | C126: 0 | D126: 0 | E126: 0 | F126: 0 | G126: 0 | H126: 0 | I126: 0 | J126: 0 | K126: 0
A127: heating oil / diesel | B127: 0.01860226899 | C127: 0.1149644935 | D127: 0.2007884695 | E127: 0.07168698191 | F127: 0.06393921761 | G127: 0.4712243956 | H127: 0.00677702412 | I127: 0.01498736918 | J127: 0.01597553461 | K127: 0.01695121801
A128: gasoline | B128: 0.2609149417 | C128: 0.1198274539 | D128: 0.2100001972 | E128: 0.2084151408 | F128: 0.2065985808 | G128: 0.1687483822 | H128: 0.0339505991 | I128: 0.009808148726 | J128: 0.005515363139 | K128: 0.002701018254
A129: Lignite / Coal | B129: 0 | C129: 0 | D129: 0 | E129: 0 | F129: 0 | G129: 0 | H129: 0 | I129: 0 | J129: 0 | K129: 0
A130: other fossil fuels | B130: 0 | C130: 0 | D130: 0 | E130: 0 | F130: 0 | G130: 0 | H130: 0 | I130: 0.01472840815 | J130: 0.002884471527 | K130: 0
A131: Plant oil, biofuel | B131: 0.008421064257 | C131: 0.00821908801 | D131: 0.008157987588 | E131: 0.006240984308 | F131: 0.01237317496 | G131: 0.02178039142 | H131: 0.01944711269 | I131: 0.02110532333 | J131: 0.0225369149 | K131: 0.02117349942
A132: Summe | B132: =SUM(B123:B131) -> 1.01025161 | C132: =SUM(C123:C131) -> 1.513305334 | D132: =SUM(D123:D131) -> 1.41823215 | E132: =SUM(E123:E131) -> 0.7436554491 | F132: =SUM(F123:F131) -> 0.4874027703 | G132: =SUM(G123:G131) -> 0.8678393653 | H132: =SUM(H123:H131) -> 0.2341510942 | I132: =SUM(I123:I131) -> 0.5159474672 | J132: =SUM(J123:J131) -> 0.5501416244 | K132: =SUM(K123:K131) -> 0.4729576101
A134: Energy consumption (MWh /Einwohner and Year) - Road
A135: Energieträger | B135: 2000 | C135: 2001 | D135: 2002 | E135: 2003 | F135: 2004 | G135: 2005 | H135: 2006 | I135: 2007 | J135: 2008 | K135: 2009
A136: Electricity | B136: 0 | C136: 0 | D136: 0 | E136: 0 | F136: 0 | G136: 0 | H136: 0 | I136: 0 | J136: 0 | K136: 0
A137: Heat and Cold | B137: 0 | C137: 0 | D137: 0 | E137: 0 | F137: 0 | G137: 0 | H137: 0 | I137: 0 | J137: 0 | K137: 0
A138: natural gas | B138: 0 | C138: 0 | D138: 0 | E138: 0 | F138: 0 | G138: 0 | H138: 0 | I138: 0 | J138: 0 | K138: 0
A139: Liquid gas | B139: 0 | C139: 0 | D139: 0 | E139: 0 | F139: 0 | G139: 0 | H139: 0 | I139: 0 | J139: 0 | K139: 0
A140: heating oil / diesel | B140: 0.5045390917 | C140: 0.3769136777 | D140: 0.4940341317 | E140: 0.467365387 | F140: 0.7517539812 | G140: 0.5654626546 | H140: 0.925211119 | I140: 0.4498152961 | J140: 0.724699698 | K140: 0.4248360206
A141: gasoline | B141: 0.4870412246 | C141: 0.5946852637 | D141: 0.5947512868 | E141: 0.6688648425 | F141: 0.6409639038 | G141: 0.83818096 | H141: 1.037703172 | I141: 1.10427454 | J141: 1.309867048 | K141: 1.336165789
A142: Lignite / Coal | B142: 0 | C142: 0 | D142: 0 | E142: 0 | F142: 0 | G142: 0 | H142: 0 | I142: 0 | J142: 0 | K142: 0
A143: other fossil fuels | B143: 0.07544445273 | C143: 0.07174578909 | D143: 0.0727760476 | E143: 0.1075473404 | F143: 0.1264070306 | G143: 0.1236318571 | H143: 0.1162898052 | I143: 0.07225012527 | J143: 0.01588044214 | K143: 0.0410120128
A144: Plant oil, biofuel | B144: 0 | C144: 0 | D144: 0 | E144: 0 | F144: 0 | G144: 0 | H144: 0 | I144: 0 | J144: 0 | K144: 0
A145: Summe | B145: =SUM(B136:B144) -> 1.067024769 | C145: 1.04334473 | D145: 1.161561466 | E145: 1.24377757 | F145: 1.519124916 | G145: 1.527275472 | H145: 2.079204096 | I145: 1.626339961 | J145: 2.050447188 | K145: 1.802013822
A147: Energy consumption (MWh /Einwohner and Year) - Rail
A148: Energieträger | B148: 2000 | C148: 2001 | D148: 2002 | E148: 2003 | F148: 2004 | G148: 2005 | H148: 2006 | I148: 2007 | J148: 2008 | K148: 2009
A149: Electricity | B149: 0.04745476784 | C149: 0.05832127867 | D149: 0.05078347273 | E149: 0.05282908879 | F149: 0.05297056522 | G149: 0.06004503046 | H149: 0.04079310171 | I149: 0.05318411999 | J149: 0.05176200004 | K149: 0.04504801709
A150: Heat and Cold | B150: 0 | C150: 0 | D150: 0 | E150: 0 | F150: 0 | G150: 0 | H150: 0 | I150: 0 | J150: 0 | K150: 0
A151: natural gas | B151: 0 | C151: 0 | D151: 0 | E151: 0 | F151: 0 | G151: 0 | H151: 0 | I151: 0 | J151: 0 | K151: 0
A152: Liquid gas | B152: 0 | C152: 0 | D152: 0 | E152: 0 | F152: 0 | G152: 0 | H152: 0 | I152: 0 | J152: 0 | K152: 0
A153: heating oil / diesel | B153: 0.01573772664 | C153: 0 | D153: 0 | E153: 0 | F153: 0 | G153: 0 | H153: 0.2431871264 | I153: 0.2461424519 | J153: 0.1436530215 | K153: 0.01446752306
A154: gasoline | B154: 0 | C154: 0 | D154: 0 | E154: 0 | F154: 0 | G154: 0 | H154: 0 | I154: 0 | J154: 0 | K154: 0
A155: Lignite / Coal | B155: 0 | C155: 0 | D155: 0 | E155: 0 | F155: 0 | G155: 0 | H155: 0 | I155: 0 | J155: 0 | K155: 0
A156: other fossil fuels | B156: 0 | C156: 0 | D156: 0 | E156: 0 | F156: 0 | G156: 0 | H156: 0 | I156: 0 | J156: 0 | K156: 0
A157: Plant oil, biofuel | B157: 0 | C157: 0 | D157: 0 | E157: 0 | F157: 0 | G157: 0 | H157: 0 | I157: 0 | J157: 0 | K157: 0
A158: Summe | B158: =SUM(B149:B157) -> 0.06319249448 | C158: 0.05832127867 | D158: 0.05078347273 | E158: 0.05282908879 | F158: 0.05297056522 | G158: 0.06004503046 | H158: 0.2839802281 | I158: 0.2993265719 | J158: 0.1954150216 | K158: 0.05951554015
A161: Belarus | M161: Belarus | Y161: Belarus | AK161: Belarus
A162: Energy consumption (MWh /Einwohner and Year) - Residential building (Households) | M162: Workforce (Number) - Nationale Eingabe | Y162: CO2 emission Factor (t /Mwh)
A163: Energieträger | B163: 2000 | C163: 2001 | D163: 2002 | E163: 2003 | F163: 2004 | G163: 2005 | H163: 2006 | I163: 2007 | J163: 2008 | K163: 2009 | M163: Branche of trade | N163: 2000 | O163: 2001 | P163: 2002 | Q163: 2003 | R163: 2004 | S163: 2005 | T163: 2006 | U163: 2007 | V163: 2008 | W163: 2009 | Y163: Energieträger | Z163: 2000 | AA163: 2001 | AB163: 2002 | AC163: 2003 | AD163: 2004 | AE163: 2005 | AF163: 2006 | AG163: 2007 | AH163: 2008 | AI163: 2009 | AL163: 2000 | AM163: 2001 | AN163: 2002 | AO163: 2003 | AP163: 2004 | AQ163: 2005 | AR163: 2006 | AS163: 2007 | AT163: 2008 | AU163: 2009
A164: Electricity | B164: 0.5562218891 | C164: 0.5592743932 | D164: 0.5821718444 | E164: 0.6135380989 | F164: 0.6160072819 | G164: 0.6095681467 | H164: 0.5895767332 | I164: 0.6193453813 | J164: 0.658716934 | K164: 0.6801421175 | M164: primary sector | N164: 676900 | O164: 639000 | P164: 588000 | Q164: 545000 | R164: 522000 | S164: 525300 | T164: 518000 | U164: 509700 | V164: 500700 | W164: 501800 | Y164: Electricity | Z164: 0.78 | AA164: 0.752 | AB164: 0.805 | AC164: 0.801 | AD164: 0.902 | AE164: 0.901 | AF164: 0.898 | AG164: 0.899 | AH164: 0.961 | AI164: 0.961 | AK164: Einwohnerzahlen | AL164: 10005000 | AM164: 9970260 | AN164: 9925000 | AO164: 9873968 | AP164: 9824469 | AQ164: 9775591 | AR164: 9732500 | AS164: 9702000 | AT164: 9602000 | AU164: 9507000
A165: Heat and Cold | B165: 2.738186462 | C165: 3.121366277 | D165: 2.81063532 | E165: 3.143872858 | F165: 2.991453731 | G165: 2.903802838 | H165: 2.927134172 | I165: 2.673503745 | J165: 2.540819042 | K165: 2.699969613 | M165: secondary sector | N165: 2220900 | O165: 2251000 | P165: 2319000 | Q165: 2322000 | R165: 2314000 | S165: 2580600 | T165: 2395000 | U165: 2446600 | V165: 2511300 | W165: 2548800 | Y165: Heat and Cold | Z165: 0.1875353786 | AA165: 0.1875353786 | AB165: 0.1875353786 | AC165: 0.1875353786 | AD165: 0.1875353786 | AE165: 0.1875353786 | AF165: 0.1875353786 | AG165: 0.1875353786 | AH165: 0.1752597911 | AI165: 0.1752597911 | AK165: Passengers cars | AL165: 1420710 | AM165: 1465628.22 | AN165: 1548300 | AO165: 1658826.624 | AP165: 1709457.606 | AQ165: 1769381.971 | AR165: 1781047.5 | AS165: 2328480 | AT165: 2192400 | AU165: 2340000
A166: natural gas | B166: 1.296407352 | C166: 1.431117254 | D166: 1.477637839 | E166: 1.465722798 | F166: 1.491061643 | G166: 1.53974777 | H166: 1.580728944 | I166: 1.597866419 | J166: 1.612279849 | K166: 1.76039877 | M166: tertiary sector | N166: 1545800 | O166: 1532000 | P166: 1480000 | Q166: 1480000 | R166: 1490000 | S166: 1532700 | T166: 1557000 | U166: 1562000 | V166: 1598500 | W166: 1591800 | Y166: natural gas | Z166: 0.202 | AA166: 0.202 | AB166: 0.202 | AC166: 0.202 | AD166: 0.202 | AE166: 0.202 | AF166: 0.202 | AG166: 0.202 | AH166: 0.202 | AI166: 0.202 | AK166: Road passenger (million pkm) | AL166: 9235 | AM166: 9493 | AN166: 9397 | AO166: 9768 | AP166: 9382 | AQ166: 9231 | AR166: 9343 | AS166: 9353 | AT166: 8220 | AU166: 9135
A167: Liquid gas | B167: 0 | C167: 0 | D167: 0 | E167: 0 | F167: 0 | G167: 0 | H167: 0 | I167: 0 | J167: 0 | K167: 0 | Y167: Liquid gas | Z167: 0.231 | AA167: 0.231 | AB167: 0.231 | AC167: 0.231 | AD167: 0.231 | AE167: 0.231 | AF167: 0.231 | AG167: 0.231 | AH167: 0.231 | AI167: 0.231 | AK167: Road goods transporterd (million ton-km) | AN167: 11400 | AO167: 12710 | AP167: 13969 | AQ167: 15045 | AR167: 15779 | AS167: 19200 | AT167: 22767
A168: heating oil / diesel | B168: 0.1427619524 | C168: 0.1764135428 | D168: 0.152225021 | E168: 0.2666101409 | F168: 0.2403013673 | G168: 0.3670991463 | H168: 0.5421697063 | I168: 0.485466914 | J168: 0.646653475 | K168: 0.3910861003 | M168: Energy consumption, Business (Mwh/year) - Energy consumption - Agriculture | Y168: heating oil / diesel | Z168: 0.267 | AA168: 0.267 | AB168: 0.267 | AC168: 0.267 | AD168: 0.267 | AE168: 0.267 | AF168: 0.267 | AG168: 0.267 | AH168: 0.267 | AI168: 0.267 | AK168: Railways, passengers (million pkm) | AT168: 8188 | AU168: 7401
A169: gasoline | B169: 0 | C169: 0 | D169: 0.002406940946 | E169: 0.004866893994 | F169: 0.4971430687 | G169: 0.5833122746 | H169: 0.7050831978 | I169: 0.7009723081 | J169: 0.7553403226 | K169: 0.7834285848 | M169: Energieträger | N169: 2000 | O169: 2001 | P169: 2002 | Q169: 2003 | R169: 2004 | S169: 2005 | T169: 2006 | U169: 2007 | V169: 2008 | W169: 2009 | Y169: gasoline | Z169: 0.249 | AA169: 0.249 | AB169: 0.249 | AC169: 0.249 | AD169: 0.249 | AE169: 0.249 | AF169: 0.249 | AG169: 0.249 | AH169: 0.249 | AI169: 0.249 | AK169: Railways, goods transported (million ton-km) | AL169: 31425 | AM169: 29727 | AN169: 34169 | AO169: 38402 | AP169: 40331 | AQ169: 43559 | AR169: 45723 | AS169: 47933 | AT169: 47933 | AU169: 42742
A170: Lignite / Coal | B170: 0.5721861292 | C170: 0.4244289183 | D170: 0.3947663028 | E170: 0.3678302831 | F170: 0.326395927 | G170: 0.3760500118 | H170: 0.3929274767 | I170: 0.357343274 | J170: 0.3227047606 | K170: 0.2877704148 | M170: =M$10 -> Electricity | N170: 1843888.889 | O170: 1725000 | P170: 1576944.444 | Q170: 1441944.444 | R170: 1376944.444 | S170: 1413055.556 | T170: 1541944.444 | U170: 1426111.111 | V170: 1433055.556 | W170: 1468055.556 | Y170: Lignite / Coal | Z170: 0.364 | AA170: 0.364 | AB170: 0.364 | AC170: 0.364 | AD170: 0.364 | AE170: 0.364 | AF170: 0.364 | AG170: 0.364 | AH170: 0.364 | AI170: 0.364
A171: other fossil fuels | B171: 0.3009328669 | C171: 0.2753466587 | D171: 0.2434648755 | E171: 0.2267747542 | F171: 0.2253443813 | G171: 0.2394285477 | H171: 0.245683135 | I171: 0.2646934195 | J171: 0.2621849615 | K171: 0.2381870668 | M171: =M$11 -> Heat and Cold | N171: 0 | O171: 0 | P171: 0 | Q171: 0 | R171: 1878055.556 | S171: 1910000 | T171: 1919444.444 | U171: 1825277.778 | V171: 1869166.667 | W171: 1929166.667 | Y171: other fossil fuels | Z171: 0.382 | AA171: 0.382 | AB171: 0.382 | AC171: 0.382 | AD171: 0.382 | AE171: 0.382 | AF171: 0.382 | AG171: 0.382 | AH171: 0.382 | AI171: 0.382
A172: Plant oil, biofuel | B172: 0.5801543673 | C172: 0.6409617759 | D172: 0.6586621886 | E172: 0.6018913121 | F172: 0.6073271407 | G172: 0.6673083329 | H172: 0.7393612467 | I172: 0.7627865961 | J172: 0.7976058229 | K172: 0.7454156586 | M172: =M$12 -> natural gas | N172: 268333.3333 | O172: 278888.8889 | P172: 257500 | Q172: 246666.6667 | R172: 311111.1111 | S172: 321944.4444 | T172: 375555.5556 | U172: 515000 | V172: 729444.4444 | W172: 933611.1111 | Y172: Plant oil, biofuel | Z172: 0 | AA172: 0 | AB172: 0 | AC172: 0 | AD172: 0 | AE172: 0 | AF172: 0 | AG172: 0 | AH172: 0 | AI172: 0
A173: Summe | B173: =SUM(B164:B172) -> 6.186851019 | C173: =SUM(C164:C172) -> 6.628908819 | D173: =SUM(D164:D172) -> 6.321970333 | E173: =SUM(E164:E172) -> 6.691107139 | F173: =SUM(F164:F172) -> 6.995034541 | G173: =SUM(G164:G172) -> 7.286317068 | H173: =SUM(H164:H172) -> 7.722664612 | I173: =SUM(I164:I172) -> 7.461978057 | J173: =SUM(J164:J172) -> 7.596305168 | K173: =SUM(K164:K172) -> 7.586398326 | M173: =M$13 -> Liquid gas | N173: 0 | O173: 0 | P173: 0 | Q173: 0 | R173: 0 | S173: 0 | T173: 0 | U173: 0 | V173: 0 | W173: 0 | AK173: Passengers cars | AL173: 1420710 | AM173: 1465628.22 | AN173: 1548300 | AO173: 1658826.624 | AP173: 1709457.606 | AQ173: 1769381.971 | AR173: 1781047.5 | AS173: 2328480 | AT173: 2192400 | AU173: 2340000
M174: =M$14 -> heating oil / diesel | N174: 6975833.333 | O174: 6386111.111 | P174: 6243888.889 | Q174: 6468333.333 | R174: 6846388.889 | S174: 7424722.222 | T174: 8003333.333 | U174: 8393055.556 | V174: 9412777.778 | W174: 7948333.333 | AK174: Road passenger (million pkm) | AL174: 9235 | AM174: 9493 | AN174: 9397 | AO174: 9768 | AP174: 9382 | AQ174: 9231 | AR174: 9343 | AS174: 9353 | AT174: 8220 | AU174: 9135
A175: Energy consumption (MWh /Einwohner and Year) - Primary sector (Agriculture) | M175: =M$15 -> gasoline | N175: 842500 | O175: 525000 | P175: 549444.4444 | Q175: 427500 | R175: 415277.7778 | S175: 403055.5556 | T175: 415277.7778 | U175: 427500 | V175: 415277.7778 | W175: 85277.77778 | AK175: Road goods transporterd (million ton-km) | AN175: 11400 | AO175: 12710 | AP175: 13969 | AQ175: 15045 | AR175: 15779 | AS175: 19200 | AT175: 22767
A176: Energieträger | B176: 2000 | C176: 2001 | D176: 2002 | E176: 2003 | F176: 2004 | G176: 2005 | H176: 2006 | I176: 2007 | J176: 2008 | K176: 2009 | M176: =M$16 -> Lignite / Coal | N176: 18888.88889 | O176: 8333.333333 | P176: 21666.66667 | Q176: 43611.11111 | R176: 40555.55556 | S176: 36944.44444 | T176: 43888.88889 | U176: 41666.66667 | V176: 43333.33333 | W176: 55555.55556 | AK176: Railways, passengers (million pkm) | AT176: 8188 | AU176: 7401
A177: Electricity | B177: 0.1842967405 | C177: 0.1730145453 | D177: 0.1588860901 | E177: 0.1460349522 | F177: 0.140154592 | G177: 0.1445493736 | H177: 0.1584325142 | I177: 0.1469914565 | J177: 0.1492455276 | K177: 0.1544183818 | M177: =M$17 -> other fossil fuels | N177: 12777.77778 | O177: 38055.55556 | P177: 12777.77778 | Q177: 0 | R177: 0 | S177: 0 | T177: 0 | U177: 0 | V177: 0 | W177: 0 | AK177: Railways, goods transported (million ton-km) | AL177: 31425 | AM177: 29727 | AN177: 34169 | AO177: 38402 | AP177: 40331 | AQ177: 43559 | AR177: 45723 | AS177: 47933 | AT177: 47933 | AU177: 42742
A178: Heat and Cold | B178: 0 | C178: 0 | D178: 0 | E178: 0 | F178: 0.1911610241 | G178: 0.1953846064 | H178: 0.1972200816 | I178: 0.1881341762 | J178: 0.194664306 | K178: 0.202920655 | M178: =M$18 -> Plant oil, biofuel | N178: 138333.3333 | O178: 162777.7778 | P178: 179166.6667 | Q178: 285000 | R178: 286111.1111 | S178: 309444.4444 | T178: 336388.8889 | U178: 337500 | V178: 330277.7778 | W178: 370000 | AL178: 2000 | AM178: 2001 | AN178: 2002 | AO178: 2003 | AP178: 2004 | AQ178: 2005 | AR178: 2006 | AS178: 2007 | AT178: 2008 | AU178: 2009
A179: natural gas | B179: 0.02681992337 | C179: 0.02797207785 | D179: 0.02594458438 | E179: 0.02498151368 | F179: 0.03166696451 | G179: 0.03293350187 | H179: 0.03858777863 | I179: 0.0530818388 | J179: 0.07596796964 | K179: 0.09820249407 | M179: Summe | N179: =SUM(N170:N178) -> 10100555.56 | O179: 9124166.667 | P179: 8841388.889 | Q179: 8913055.556 | R179: 11154444.44 | S179: 11819166.67 | T179: 12635833.33 | U179: 12966111.11 | V179: 14233333.33 | W179: 12790000 | AK179: Passengers cars | AL179: =IFERROR(AL173/AL165-1,"") -> 0 | AM179: =IFERROR(AM173/AM165-1,"") -> 0 | AN179: 0 | AO179: 0 | AP179: 0 | AQ179: 0 | AR179: 0 | AS179: 0 | AT179: 0 | AU179: 0
A180: Liquid gas | B180: 0 | C180: 0 | D180: 0 | E180: 0 | F180: 0 | G180: 0 | H180: 0 | I180: 0 | J180: 0 | K180: 0 | AK180: Road passenger (million pkm) | AL180: =IFERROR(AL174/AL166-1,"") -> 0 | AM180: 0 | AN180: 0 | AO180: 0 | AP180: 0 | AQ180: 0 | AR180: 0 | AS180: 0 | AT180: 0 | AU180: 0
A181: heating oil / diesel | B181: 0.697234716 | C181: 0.6405160057 | D181: 0.6291071928 | E181: 0.6550895581 | F181: 0.6968711377 | G181: 0.759516455 | H181: 0.822330679 | I181: 0.8650850913 | J181: 0.9802934574 | K181: 0.8360506294 | M181: Energy consumption, Business (Mwh/year) - Energy consumption - Industry | AK181: Road goods transporterd (million ton-km) | AL181: =IFERROR(AL175/AL167-1,"") ->  | AN181: 0 | AO181: 0 | AP181: 0 | AQ181: 0 | AR181: 0 | AS181: 0 | AT181: 0
A182: gasoline | B182: 0.08420789605 | C182: 0.05265660073 | D182: 0.05535964176 | E182: 0.04329566391 | F182: 0.0422697428 | G182: 0.04123081209 | H182: 0.0426691783 | I182: 0.04406307978 | J182: 0.04324909162 | K182: 0.008969998714 | M182: =M$9 -> Energieträger | N182: 2000 | O182: 2001 | P182: 2002 | Q182: 2003 | R182: 2004 | S182: 2005 | T182: 2006 | U182: 2007 | V182: 2008 | W182: 2009 | AK182: Railways, passengers (million pkm) | AL182: =IFERROR(AL176/AL168-1,"") ->  | AT182: 0 | AU182: 0
A183: Lignite / Coal | B183: 0.001887944916 | C183: 0.0008358190592 | D183: 0.002183039463 | E183: 0.00441677663 | F183: 0.004128015016 | G183: 0.003779254313 | H183: 0.004509518509 | I183: 0.004294647152 | J183: 0.004512948691 | K183: 0.005843647371 | M183: =M$10 -> Electricity | N183: 12925000 | O183: 12871944.44 | P183: 12158055.56 | Q183: 12408055.56 | R183: 13020000 | S183: 13301111.11 | T183: 13916944.44 | U183: 14115000 | V183: 14518055.56 | W183: 12331944.44 | AK183: Railways, goods transported (million ton-km) | AL183: =IFERROR(AL177/AL169-1,"") -> 0 | AM183: 0 | AN183: 0 | AO183: 0 | AP183: 0 | AQ183: 0 | AR183: 0 | AS183: 0 | AT183: 0 | AU183: 0
A184: other fossil fuels | B184: 0.001277139208 | C184: 0.003816907037 | D184: 0.001287433529 | E184: 0 | F184: 0 | G184: 0 | H184: 0 | I184: 0 | J184: 0 | K184: 0 | M184: =M$11 -> Heat and Cold | N184: 24645277.78 | O184: 24592777.78 | P184: 23898888.89 | Q184: 22975000 | R184: 23413611.11 | S184: 23526666.67 | T184: 23818611.11 | U184: 23031944.44 | V184: 23134444.44 | W184: 19031666.67
A185: Plant oil, biofuel | B185: 0.01382642012 | C185: 0.01632633229 | D185: 0.01805205709 | E185: 0.02886377594 | F185: 0.02912229772 | G185: 0.0316548068 | H185: 0.03456346148 | I185: 0.03478664193 | J185: 0.03439676919 | K185: 0.03891869149 | M185: =M$12 -> natural gas | N185: 27367777.78 | O185: 13764444.44 | P185: 15534444.44 | Q185: 18131111.11 | R185: 18592222.22 | S185: 19965277.78 | T185: 19954722.22 | U185: 21768055.56 | V185: 23044166.67 | W185: 21113333.33
A186: Summe | B186: =SUM(B177:B185) -> 1.00955078 | C186: =SUM(C177:C185) -> 0.9151382879 | D186: =SUM(D177:D185) -> 0.8908200392 | E186: =SUM(E177:E185) -> 0.9026822404 | F186: =SUM(F177:F185) -> 1.135373774 | G186: =SUM(G177:G185) -> 1.20904881 | H186: =SUM(H177:H185) -> 1.298313212 | I186: =SUM(I177:I185) -> 1.336436932 | J186: =SUM(J177:J185) -> 1.48233007 | K186: =SUM(K177:K185) -> 1.345324498 | M186: =M$13 -> Liquid gas | N186: 0 | O186: 0 | P186: 0 | Q186: 0 | R186: 0 | S186: 0 | T186: 0 | U186: 0 | V186: 0 | W186: 0
M187: =M$14 -> heating oil / diesel | N187: 6104444.444 | O187: 5295833.333 | P187: 5109722.222 | Q187: 5305833.333 | R187: 6057222.222 | S187: 6093888.889 | T187: 2198333.333 | U187: 2211111.111 | V187: 2261111.111 | W187: 1342777.778
A188: Energy consumption (MWh /Einwohner and Year) - Secondary sector (Industrie) | M188: =M$15 -> gasoline | N188: 290555.5556 | O188: 205833.3333 | P188: 146111.1111 | Q188: 133888.8889 | R188: 109722.2222 | S188: 133888.8889 | T188: 133888.8889 | U188: 133888.8889 | V188: 121666.6667 | W188: 85000
A189: Energieträger | B189: 2000 | C189: 2001 | D189: 2002 | E189: 2003 | F189: 2004 | G189: 2005 | H189: 2006 | I189: 2007 | J189: 2008 | K189: 2009 | M189: =M$16 -> Lignite / Coal | N189: 695555.5556 | O189: 688611.1111 | P189: 682777.7778 | Q189: 655277.7778 | R189: 716388.8889 | S189: 631944.4444 | T189: 618888.8889 | U189: 626666.6667 | V189: 588333.3333 | W189: 550833.3333
A190: Electricity | B190: 1.291854073 | C190: 1.291033979 | D190: 1.224993003 | E190: 1.256643282 | F190: 1.325262465 | G190: 1.360645214 | H190: 1.429945486 | I190: 1.454854669 | J190: 1.511982457 | K190: 1.297143625 | M190: =M$17 -> other fossil fuels | N190: 38055.55556 | O190: 75833.33333 | P190: 75833.33333 | Q190: 101111.1111 | R190: 101111.1111 | S190: 63333.33333 | T190: 38055.55556 | U190: 38055.55556 | V190: 38055.55556 | W190: 63333.33333
A191: Heat and Cold | B191: 2.46329613 | C191: 2.466613486 | D191: 2.407948503 | E191: 2.326825446 | F191: 2.383193546 | G191: 2.406674611 | H191: 2.447327111 | I191: 2.373937791 | J191: 2.409336018 | K191: 2.00185828 | M191: =M$18 -> Plant oil, biofuel | N191: 1783333.333 | O191: 1685277.778 | P191: 1587777.778 | Q191: 1693333.333 | R191: 1633055.556 | S191: 1689722.222 | T191: 1783055.556 | U191: 1875277.778 | V191: 2271944.444 | W191: 2855555.556
A192: natural gas | B192: 2.735410073 | C192: 1.380550201 | D192: 1.565183319 | E192: 1.836253785 | F192: 1.892440418 | G192: 2.042360178 | H192: 2.050318235 | I192: 2.243666827 | J192: 2.399934042 | K192: 2.220819747 | M192: Summe | N192: =SUM(N183:N191) -> 73850000 | O192: 59180555.56 | P192: 59193611.11 | Q192: 61403611.11 | R192: 63643333.33 | S192: 65405833.33 | T192: 62462500 | U192: 63800000 | V192: 65977777.78 | W192: 57374444.44
A193: Liquid gas | B193: 0 | C193: 0 | D193: 0 | E193: 0 | F193: 0 | G193: 0 | H193: 0 | I193: 0 | J193: 0 | K193: 0
A194: heating oil / diesel | B194: 0.6101393748 | C194: 0.5311630121 | D194: 0.5148334733 | E194: 0.5373557351 | F194: 0.6165444893 | G194: 0.6233780534 | H194: 0.225875503 | I194: 0.2279026089 | J194: 0.2354833484 | K194: 0.141240957 | M194: Energy consumption, Business (Mwh/year) - Energy consumption - Services
A195: gasoline | B195: 0.02904103504 | C195: 0.02064473076 | D195: 0.01472152253 | E195: 0.01355978558 | F195: 0.0111682598 | G195: 0.01369624495 | H195: 0.01375688558 | I195: 0.01380013285 | J195: 0.01267097133 | K195: 0.008940780478 | M195: =M$9 -> Energieträger | N195: 2000 | O195: 2001 | P195: 2002 | Q195: 2003 | R195: 2004 | S195: 2005 | T195: 2006 | U195: 2007 | V195: 2008 | W195: 2009
A196: Lignite / Coal | B196: 0.06952079516 | C196: 0.06906651493 | D196: 0.06879373076 | E196: 0.0663641788 | F196: 0.07291884059 | G196: 0.06464513956 | H196: 0.06358991923 | I196: 0.06459149316 | J196: 0.06127195723 | K196: 0.05793976368 | M196: =M$10 -> Electricity | N196: 4538888.889 | O196: 4545000 | P196: 4623055.556 | Q196: 4593055.556 | R196: 4640000 | S196: 4903055.556 | T196: 5240000 | U196: 5318055.556 | V196: 5341111.111 | W196: 5806944.444
A197: other fossil fuels | B197: 0.003803653729 | C197: 0.007605953439 | D197: 0.007640638119 | E197: 0.01024017002 | F197: 0.01029176346 | G197: 0.006478721679 | H197: 0.003910152125 | I197: 0.003922444399 | J197: 0.003963294684 | K197: 0.006661758003 | M197: =M$11 -> Heat and Cold | N197: 15465555.56 | O197: 15710277.78 | P197: 14910833.33 | Q197: 16128888.89 | R197: 14102777.78 | S197: 14672222.22 | T197: 14473888.89 | U197: 12982777.78 | V197: 11185555.56 | W197: 13983055.56
A198: Plant oil, biofuel | B198: 0.1782442112 | C198: 0.1690304744 | D198: 0.1599776099 | E198: 0.1714947155 | F198: 0.1662232896 | G198: 0.1728511578 | H198: 0.1832063247 | I198: 0.1932877528 | J198: 0.2366115855 | K198: 0.3003634749 | M198: =M$12 -> natural gas | N198: 1019166.667 | O198: 1652222.222 | P198: 579444.4444 | Q198: 568611.1111 | R198: 1898888.889 | S198: 1330277.778 | T198: 493611.1111 | U198: 353611.1111 | V198: 466944.4444 | W198: 676111.1111
A199: Summe | B199: =SUM(B190:B198) -> 7.381309345 | C199: =SUM(C190:C198) -> 5.935708352 | D199: =SUM(D190:D198) -> 5.9640918 | E199: =SUM(E190:E198) -> 6.218737099 | F199: =SUM(F190:F198) -> 6.478043071 | G199: =SUM(G190:G198) -> 6.690729321 | H199: =SUM(H190:H198) -> 6.417929617 | I199: =SUM(I190:I198) -> 6.575963719 | J199: =SUM(J190:J198) -> 6.871253674 | K199: =SUM(K190:K198) -> 6.034968386 | M199: =M$13 -> Liquid gas | N199: 0 | O199: 0 | P199: 0 | Q199: 0 | R199: 0 | S199: 0 | T199: 0 | U199: 0 | V199: 0 | W199: 0
M200: =M$14 -> heating oil / diesel | N200: 304166.6667 | O200: 303611.1111 | P200: 198611.1111 | Q200: 187222.2222 | R200: 175555.5556 | S200: 394444.4444 | T200: 615277.7778 | U200: 535000 | V200: 639166.6667 | W200: 939444.4444
A201: Energy consumption (MWh /Einwohner and Year) - Tertiary sector (Services) | M201: =M$15 -> gasoline | N201: 0 | O201: 0 | P201: 11944.44444 | Q201: 48611.11111 | R201: 85277.77778 | S201: 60833.33333 | T201: 36666.66667 | U201: 110000 | V201: 146666.6667 | W201: 48888.88889
A202: Energieträger | B202: 2000 | C202: 2001 | D202: 2002 | E202: 2003 | F202: 2004 | G202: 2005 | H202: 2006 | I202: 2007 | J202: 2008 | K202: 2009 | M202: =M$16 -> Lignite / Coal | N202: 2086666.667 | O202: 1792222.222 | P202: 1540277.778 | Q202: 1477777.778 | R202: 1255555.556 | S202: 1045000 | T202: 1005000 | U202: 864166.6667 | V202: 814166.6667 | W202: 842500
A203: Electricity | B203: 0.4536620579 | C203: 0.4558557149 | D203: 0.4657990484 | E203: 0.4651681629 | F203: 0.4722901563 | G203: 0.5015610366 | H203: 0.5384022605 | I203: 0.5481401315 | J203: 0.5562498554 | K203: 0.6108072414 | M203: =M$17 -> other fossil fuels | N203: 240277.7778 | O203: 101111.1111 | P203: 88611.11111 | Q203: 227777.7778 | R203: 240277.7778 | S203: 75833.33333 | T203: 88611.11111 | U203: 139166.6667 | V203: 291111.1111 | W203: 0
A204: Heat and Cold | B204: 0 | C204: 0 | D204: 0 | E204: 0 | F204: 0 | G204: 0 | H204: 0 | I204: 0 | J204: 0 | K204: 0 | M204: =M$18 -> Plant oil, biofuel | N204: 3780000 | O204: 3482222.222 | P204: 3500833.333 | Q204: 3873888.889 | R204: 3879166.667 | S204: 1511666.667 | T204: 1701666.667 | U204: 1702777.778 | V204: 1649444.444 | W204: 1850000
A205: natural gas | B205: 0.1018657338 | C205: 0.1657150588 | D205: 0.05838231178 | E205: 0.05758689021 | F205: 0.1932815798 | G205: 0.1360815707 | H205: 0.0507178126 | I205: 0.03644723883 | J205: 0.04862991506 | K205: 0.0711171885 | M205: Summe | N205: =SUM(N196:N204) -> 27434722.22 | O205: 27586666.67 | P205: 25453611.11 | Q205: 27105833.33 | R205: 26277500 | S205: 23993333.33 | T205: 23654722.22 | U205: 22005555.56 | V205: 20534166.67 | W205: 24146944.44
A206: Liquid gas | B206: 0 | C206: 0 | D206: 0 | E206: 0 | F206: 0 | G206: 0 | H206: 0 | I206: 0 | J206: 0 | K206: 0
A207: heating oil / diesel | B207: 0.03040146593 | C207: 0.03045167439 | D207: 0.02001119507 | E207: 0.01896119394 | F207: 0.01786921569 | G207: 0.04034993326 | H207: 0.0632188829 | I207: 0.05514326943 | J207: 0.0665659932 | K207: 0.09881607704
A208: gasoline | B208: 0 | C208: 0 | D208: 0.001203470473 | E208: 0.004923158664 | F208: 0.008680141164 | G208: 0.006222982665 | H208: 0.003767445843 | I208: 0.01133786848 | J208: 0.01527459557 | K208: 0.005142409686
... 636 more rows

Sheet _test (hidden)
A1: Armenia | M1: Armenia | Y1: Armenia | AK1: Armenia
A2: Energy consumption (MWh /Einwohner and Year) - Residential building (Households) | M2: Test: | N2: =A2 -> Energy consumption (MWh /Einwohner and Year) - Residential building (Households) | Y2: CO2 emission Factor (t /Mwh)
A3: Energieträger | B3: 2000 | C3: 2001 | D3: 2002 | E3: 2003 | F3: 2004 | G3: 2005 | H3: 2006 | I3: 2007 | J3: 2008 | K3: 2009 | M3: Energieträger | N3: 2000 | O3: 2001 | P3: 2002 | Q3: 2003 | R3: 2004 | S3: 2005 | T3: 2006 | U3: 2007 | V3: 2008 | W3: 2009 | Y3: Energieträger | Z3: 2000 | AA3: 2001 | AB3: 2002 | AC3: 2003 | AD3: 2004 | AE3: 2005 | AF3: 2006 | AG3: 2007 | AH3: 2008 | AI3: 2009 | AL3: Year: | AM3: ='DATA-OUTPUT Co2 absolute'!$B$8 -> 0 | AO3: CO2 | AP3: Test
A4: Electricity | B4: 0.5064858142 | C4: 0.4817468938 | D4: 0.4887547744 | E4: 0.5231442122 | F4: 0.5367604153 | G4: 0.5515774572 | H4: 0.5563981608 | I4: 0.5747691644 | J4: 0.5819726576 | K4: 0.5565497997 | M4: Electricity | N4: =IFERROR(B4/_data!B4-1,"") -> 0 | O4: =IFERROR(C4/_data!C4-1,"") -> 0 | P4: =IFERROR(D4/_data!D4-1,"") -> 0 | Q4: =IFERROR(E4/_data!E4-1,"") -> 0 | R4: =IFERROR(F4/_data!F4-1,"") -> 0 | S4: =IFERROR(G4/_data!G4-1,"") -> 0 | T4: =IFERROR(H4/_data!H4-1,"") -> 0 | U4: =IFERROR(I4/_data!I4-1,"") -> 0 | V4: =IFERROR(J4/_data!J4-1,"") -> 0 | W4: =IFERROR(K4/_data!K4-1,"") -> 0 | Y4: Electricity | Z4: =_data!Z4 -> 0.609 | AA4: =_data!AA4 -> 0.652 | AB4: =_data!AB4 -> 0.375 | AC4: =_data!AC4 -> 0.336 | AD4: =_data!AD4 -> 0.374 | AE4: =_data!AE4 -> 0.357 | AF4: =_data!AF4 -> 0.265 | AG4: =_data!AG4 -> 0.254 | AH4: =_data!AH4 -> 0.252 | AI4: =_data!AI4 -> 0.252 | AM4: ='DATA-OUTPUT EC per capita'!$B$37 -> 0 | AN4: =IF(AM3=Z3,Z4,IF(AM3=AA3,AA4,IF(AM3=AB3,AB4,IF(AM3=AC3,AC4,IF(AM3=AD3,AD4,IF(AM3=AE3,AE4,IF(AM3=AF3,AF4,IF(AM3=AG3,AG4,IF(AM3=AH3,AH4,IF(AM3=AI3,AI4,"Fehler")))))))))) -> Fehler | AO4: =AN4*AM4 ->  | AP4: =AO4/'DATA-OUTPUT Co2 per capita'!$B$37-1 -> 
A5: Heat and Cold | B5: 0.09653282972 | C5: 0.06641348 | D5: 0.05063593838 | E5: 0.04429118243 | F5: 0.04217532834 | G5: 0.07121220127 | H5: 0.06116850816 | I5: 0.07463595814 | J5: 0.06197724629 | K5: 0.03835790562 | M5: Heat and Cold | N5: =IFERROR(B5/_data!B5-1,"") -> 0 | O5: =IFERROR(C5/_data!C5-1,"") -> 0 | P5: =IFERROR(D5/_data!D5-1,"") -> 0 | Q5: =IFERROR(E5/_data!E5-1,"") -> 0 | R5: =IFERROR(F5/_data!F5-1,"") -> 0 | S5: =IFERROR(G5/_data!G5-1,"") -> 0 | T5: =IFERROR(H5/_data!H5-1,"") -> 0 | U5: =IFERROR(I5/_data!I5-1,"") -> 0 | V5: =IFERROR(J5/_data!J5-1,"") -> 0 | W5: =IFERROR(K5/_data!K5-1,"") -> 0 | Y5: Heat and Cold | Z5: =_data!Z5 -> n.a. | AA5: =_data!AA5 -> n.a. | AB5: =_data!AB5 -> n.a. | AC5: =_data!AC5 -> n.a. | AD5: =_data!AD5 -> n.a. | AE5: =_data!AE5 -> n.a. | AF5: =_data!AF5 -> n.a. | AG5: =_data!AG5 -> n.a. | AH5: =_data!AH5 -> n.a. | AI5: =_data!AI5 -> n.a. | AM5: ='DATA-OUTPUT EC per capita'!$C$37 -> 0 | AN5: =IF(AM3=Z3,Z5,IF(AM3=AA3,AA5,IF(AM3=AB3,AB5,IF(AM3=AC3,AC5,IF(AM3=AD3,AD5,IF(AM3=AE3,AE5,IF(AM3=AF3,AF5,IF(AM3=AG3, AG5,IF(AM3=AH3,AH5,IF(AM3=AI3,AI5,"Fehler")))))))))) -> Fehler | AO5: =AM5*AN5 ->  | AP5: =AO5/'DATA-OUTPUT Co2 per capita'!$C$37-1 -> 
A6: natural gas | B6: 0.5223970252 | C6: 0.580234551 | D6: 0.5799539108 | E6: 0.7173719384 | F6: 1.104902903 | G6: 1.237153446 | H6: 1.266170022 | I6: 1.812768272 | J6: 2.004833107 | K6: 1.877916619 | M6: natural gas | N6: =IFERROR(B6/_data!B6-1,"") -> 0 | O6: =IFERROR(C6/_data!C6-1,"") -> 0 | P6: =IFERROR(D6/_data!D6-1,"") -> 0 | Q6: =IFERROR(E6/_data!E6-1,"") -> 0 | R6: =IFERROR(F6/_data!F6-1,"") -> 0 | S6: =IFERROR(G6/_data!G6-1,"") -> 0 | T6: =IFERROR(H6/_data!H6-1,"") -> 0 | U6: =IFERROR(I6/_data!I6-1,"") -> 0 | V6: =IFERROR(J6/_data!J6-1,"") -> 0 | W6: =IFERROR(K6/_data!K6-1,"") -> 0 | Y6: natural gas | Z6: =_data!Z6 -> 0.202 | AA6: =_data!AA6 -> 0.202 | AB6: =_data!AB6 -> 0.202 | AC6: =_data!AC6 -> 0.202 | AD6: =_data!AD6 -> 0.202 | AE6: =_data!AE6 -> 0.202 | AF6: =_data!AF6 -> 0.202 | AG6: =_data!AG6 -> 0.202 | AH6: =_data!AH6 -> 0.202 | AI6: =_data!AI6 -> 0.202 | AM6: ='DATA-OUTPUT EC per capita'!$D$37 -> 0 | AN6: =IF(AM3=Z3,Z6,IF(AM3=AA3,AA6,IF(AM3=AB3,AB6,IF(AM3=AC3,AC6,IF(AM3=AD3,AD6,IF(AM3=AE3,AE6,IF(AM3=AF3,AF6,IF(AM3=AG3, AG6,IF(AM3=AH3,AH6,IF(AM3=AI3,AI6,"Fehler")))))))))) -> Fehler | AO6: =AM6*AN6 ->  | AP6: =AO6/'DATA-OUTPUT Co2 per capita'!$D$37-1 -> 
A7: Liquid gas | B7: 0 | C7: 0 | D7: 0 | E7: 0 | F7: 0 | G7: 0 | H7: 0 | I7: 0 | J7: 0 | K7: 0 | M7: Liquid gas | N7: =IFERROR(B7/_data!B7-1,"") ->  | O7: =IFERROR(C7/_data!C7-1,"") ->  | P7: =IFERROR(D7/_data!D7-1,"") ->  | Q7: =IFERROR(E7/_data!E7-1,"") ->  | R7: =IFERROR(F7/_data!F7-1,"") ->  | S7: =IFERROR(G7/_data!G7-1,"") ->  | T7: =IFERROR(H7/_data!H7-1,"") ->  | U7: =IFERROR(I7/_data!I7-1,"") ->  | V7: =IFERROR(J7/_data!J7-1,"") ->  | W7: =IFERROR(K7/_data!K7-1,"") ->  | Y7: Liquid gas | Z7: =_data!Z7 -> 0.231 | AA7: =_data!AA7 -> 0.231 | AB7: =_data!AB7 -> 0.231 | AC7: =_data!AC7 -> 0.231 | AD7: =_data!AD7 -> 0.231 | AE7: =_data!AE7 -> 0.231 | AF7: =_data!AF7 -> 0.231 | AG7: =_data!AG7 -> 0.231 | AH7: =_data!AH7 -> 0.231 | AI7: =_data!AI7 -> 0.231 | AM7: ='DATA-OUTPUT EC per capita'!$E$37 -> 0 | AN7: =IF(AM3=Z3,Z7,IF(AM3=AA3,AA7,IF(AM3=AB3,AB7,IF(AM3=AC3,AC7,IF(AM3=AD3,AD7,IF(AM3=AE3,AE7,IF(AM3=AF3,AF7,IF(AM3=AG3, AG7,IF(AM3=AH3,AH7,IF(AM3=AI3,AI7,"Fehler")))))))))) -> Fehler | AP7: =AO7/'DATA-OUTPUT Co2 per capita'!$E$37-1 -> 
A8: heating oil / diesel | B8: 0 | C8: 0 | D8: 0 | E8: 0 | F8: 0 | G8: 0 | H8: 0 | I8: 0 | J8: 0 | K8: 0 | M8: heating oil / diesel | N8: =IFERROR(B8/_data!B8-1,"") ->  | O8: =IFERROR(C8/_data!C8-1,"") ->  | P8: =IFERROR(D8/_data!D8-1,"") ->  | Q8: =IFERROR(E8/_data!E8-1,"") ->  | R8: =IFERROR(F8/_data!F8-1,"") ->  | S8: =IFERROR(G8/_data!G8-1,"") ->  | T8: =IFERROR(H8/_data!H8-1,"") ->  | U8: =IFERROR(I8/_data!I8-1,"") ->  | V8: =IFERROR(J8/_data!J8-1,"") ->  | W8: =IFERROR(K8/_data!K8-1,"") ->  | Y8: heating oil / diesel | Z8: =_data!Z8 -> 0.267 | AA8: =_data!AA8 -> 0.267 | AB8: =_data!AB8 -> 0.267 | AC8: =_data!AC8 -> 0.267 | AD8: =_data!AD8 -> 0.267 | AE8: =_data!AE8 -> 0.267 | AF8: =_data!AF8 -> 0.267 | AG8: =_data!AG8 -> 0.267 | AH8: =_data!AH8 -> 0.267 | AI8: =_data!AI8 -> 0.267 | AM8: ='DATA-OUTPUT EC per capita'!$F$37 -> 0 | AN8: =IF(AM3=Z3,Z8,IF(AM3=AA3,AA8,IF(AM3=AB3,AB8,IF(AM3=AC3,AC8,IF(AM3=AD3,AD8,IF(AM3=AE3,AE8,IF(AM3=AF3,AF8,IF(AM3=AG3, AG8,IF(AM3=AH3,AH8,IF(AM3=AI3,AI8,"Fehler")))))))))) -> Fehler | AP8: =AO8/'DATA-OUTPUT Co2 per capita'!$F$37-1 -> 
A9: gasoline | B9: 0 | C9: 0 | D9: 0.02350306101 | E9: 0.01179888057 | F9: 0 | G9: 0 | H9: 0 | I9: 0 | J9: 0 | K9: 0 | M9: gasoline | N9: =IFERROR(B9/_data!B9-1,"") ->  | O9: =IFERROR(C9/_data!C9-1,"") ->  | P9: =IFERROR(D9/_data!D9-1,"") -> 0 | Q9: =IFERROR(E9/_data!E9-1,"") -> 0 | R9: =IFERROR(F9/_data!F9-1,"") ->  | S9: =IFERROR(G9/_data!G9-1,"") ->  | T9: =IFERROR(H9/_data!H9-1,"") ->  | U9: =IFERROR(I9/_data!I9-1,"") ->  | V9: =IFERROR(J9/_data!J9-1,"") ->  | W9: =IFERROR(K9/_data!K9-1,"") ->  | Y9: gasoline | Z9: =_data!Z9 -> 0.249 | AA9: =_data!AA9 -> 0.249 | AB9: =_data!AB9 -> 0.249 | AC9: =_data!AC9 -> 0.249 | AD9: =_data!AD9 -> 0.249 | AE9: =_data!AE9 -> 0.249 | AF9: =_data!AF9 -> 0.249 | AG9: =_data!AG9 -> 0.249 | AH9: =_data!AH9 -> 0.249 | AI9: =_data!AI9 -> 0.249 | AM9: ='DATA-OUTPUT EC per capita'!$G$37 -> 0 | AN9: =IF(AM3=Z3,Z9,IF(AM3=AA3,AA9,IF(AM3=AB3,AB9,IF(AM3=AC3,AC9,IF(AM3=AD3,AD9,IF(AM3=AE3,AE9,IF(AM3=AF3,AF9,IF(AM3=AG3, AG9,IF(AM3=AH3,AH9,IF(AM3=AI3,AI9,"Fehler")))))))))) -> Fehler | AP9: =AO9/'DATA-OUTPUT Co2 per capita'!$G$37-1 -> 
A10: Lignite / Coal | B10: 0 | C10: 0 | D10: 0.0479135761 | E10: 0.07179165021 | F10: 0 | G10: 0.01304651016 | H10: 0.01827816368 | I10: 0.02024025984 | J10: 0.01831350946 | K10: 0.01413659902 | M10: Lignite / Coal | N10: =IFERROR(B10/_data!B10-1,"") ->  | O10: =IFERROR(C10/_data!C10-1,"") ->  | P10: =IFERROR(D10/_data!D10-1,"") -> 0 | Q10: =IFERROR(E10/_data!E10-1,"") -> 0 | R10: =IFERROR(F10/_data!F10-1,"") ->  | S10: =IFERROR(G10/_data!G10-1,"") -> 0 | T10: =IFERROR(H10/_data!H10-1,"") -> 0 | U10: =IFERROR(I10/_data!I10-1,"") -> 0 | V10: =IFERROR(J10/_data!J10-1,"") -> 0 | W10: =IFERROR(K10/_data!K10-1,"") -> 0 | Y10: Lignite / Coal | Z10: =_data!Z10 -> 0.364 | AA10: =_data!AA10 -> 0.364 | AB10: =_data!AB10 -> 0.364 | AC10: =_data!AC10 -> 0.364 | AD10: =_data!AD10 -> 0.364 | AE10: =_data!AE10 -> 0.364 | AF10: =_data!AF10 -> 0.364 | AG10: =_data!AG10 -> 0.364 | AH10: =_data!AH10 -> 0.364 | AI10: =_data!AI10 -> 0.364 | AM10: ='DATA-OUTPUT EC per capita'!$H$37 -> 0 | AN10: =IF(AM3=Z3,Z10,IF(AM3=AA3,AA10,IF(AM3=AB3,AB10,IF(AM3=AC3,AC10,IF(AM3=AD3,AD10,IF(AM3=AE3,AE10,IF(AM3=AF3,AF10,IF(AM3=AG3, AG10,IF(AM3=AH3,AH10,IF(AM3=AI3,AI10,"Fehler")))))))))) -> Fehler | AP10: =AO10/'DATA-OUTPUT Co2 per capita'!$H$37-1 -> 
A11: other fossil fuels | B11: 0 | C11: 0 | D11: 0 | E11: 0 | F11: 0 | G11: 0 | H11: 0 | I11: 0 | J11: 0 | K11: 0 | M11: other fossil fuels | N11: =IFERROR(B11/_data!B11-1,"") ->  | O11: =IFERROR(C11/_data!C11-1,"") ->  | P11: =IFERROR(D11/_data!D11-1,"") ->  | Q11: =IFERROR(E11/_data!E11-1,"") ->  | R11: =IFERROR(F11/_data!F11-1,"") ->  | S11: =IFERROR(G11/_data!G11-1,"") ->  | T11: =IFERROR(H11/_data!H11-1,"") ->  | U11: =IFERROR(I11/_data!I11-1,"") ->  | V11: =IFERROR(J11/_data!J11-1,"") ->  | W11: =IFERROR(K11/_data!K11-1,"") ->  | Y11: other fossil fuels | Z11: =_data!Z11 -> 0.382 | AA11: =_data!AA11 -> 0.382 | AB11: =_data!AB11 -> 0.382 | AC11: =_data!AC11 -> 0.382 | AD11: =_data!AD11 -> 0.382 | AE11: =_data!AE11 -> 0.382 | AF11: =_data!AF11 -> 0.382 | AG11: =_data!AG11 -> 0.382 | AH11: =_data!AH11 -> 0.382 | AI11: =_data!AI11 -> 0.382 | AM11: ='DATA-OUTPUT EC per capita'!$I$37 -> 0 | AN11: =IF(AM3=Z3,Z11,IF(AM3=AA3,AA11,IF(AM3=AB3,AB11,IF(AM3=AC3,AC11,IF(AM3=AD3,AD11,IF(AM3=AE3,AE11,IF(AM3=AF3,AF11,IF(AM3=AG3, AG11,IF(AM3=AH3,AH11,IF(AM3=AI3,AI11,"Fehler")))))))))) -> Fehler | AP11: =AO11/'DATA-OUTPUT Co2 per capita'!$I$37-1 -> 
A12: Plant oil, biofuel | B12: 0 | C12: 0 | D12: 0 | E12: 0 | F12: 0 | G12: 0 | H12: 0 | I12: 0 | J12: 0 | K12: 0 | M12: Plant oil, biofuel | N12: =IFERROR(B12/_data!B12-1,"") ->  | O12: =IFERROR(C12/_data!C12-1,"") ->  | P12: =IFERROR(D12/_data!D12-1,"") ->  | Q12: =IFERROR(E12/_data!E12-1,"") ->  | R12: =IFERROR(F12/_data!F12-1,"") ->  | S12: =IFERROR(G12/_data!G12-1,"") ->  | T12: =IFERROR(H12/_data!H12-1,"") ->  | U12: =IFERROR(I12/_data!I12-1,"") ->  | V12: =IFERROR(J12/_data!J12-1,"") ->  | W12: =IFERROR(K12/_data!K12-1,"") ->  | Y12: Plant oil, biofuel | Z12: =_data!Z12 -> 0 | AA12: =_data!AA12 -> 0 | AB12: =_data!AB12 -> 0 | AC12: =_data!AC12 -> 0 | AD12: =_data!AD12 -> 0 | AE12: =_data!AE12 -> 0 | AF12: =_data!AF12 -> 0 | AG12: =_data!AG12 -> 0 | AH12: =_data!AH12 -> 0 | AI12: =_data!AI12 -> 0 | AM12: ='DATA-OUTPUT EC per capita'!$J$37 -> 0 | AN12: =IF(AM3=Z3,Z12,IF(AM3=AA3,AA12,IF(AM3=AB3,AB12,IF(AM3=AC3,AC12,IF(AM3=AD3,AD12,IF(AM3=AE3,AE12,IF(AM3=AF3,AF12,IF(AM3=AG3, AG12,IF(AM3=AH3,AH12,IF(AM3=AI3,AI12,"Fehler")))))))))) -> Fehler | AP12: =AO12/'DATA-OUTPUT Co2 per capita'!$J$37-1 -> 
A13: Summe | B13: 1.125415669 | C13: 1.128394925 | D13: 1.190761261 | E13: 1.368397864 | F13: 1.683838646 | G13: 1.872989614 | H13: 1.902014854 | I13: 2.482413654 | J13: 2.66709652 | K13: 2.486960923 | M13: Summe | N13: =IFERROR(B13/_data!B13-1,"") -> 0 | O13: =IFERROR(C13/_data!C13-1,"") -> 0 | P13: =IFERROR(D13/_data!D13-1,"") -> 0 | Q13: =IFERROR(E13/_data!E13-1,"") -> 0 | R13: =IFERROR(F13/_data!F13-1,"") -> 0 | S13: =IFERROR(G13/_data!G13-1,"") -> 0 | T13: =IFERROR(H13/_data!H13-1,"") -> 0 | U13: =IFERROR(I13/_data!I13-1,"") -> 0 | V13: =IFERROR(J13/_data!J13-1,"") -> 0 | W13: =IFERROR(K13/_data!K13-1,"") -> 0 | AL13: Total | AO13: =SUM(AO4:AO12) ->  | AP13: =AO13/'DATA-OUTPUT Co2 per capita'!$K$37-1 -> 
A15: Energy consumption (MWh /Einwohner and Year) - Primary sector (Agriculture) | M15: Test: | N15: =A15 -> Energy consumption (MWh /Einwohner and Year) - Primary sector (Agriculture)
A16: Energieträger | B16: 2000 | C16: 2001 | D16: 2002 | E16: 2003 | F16: 2004 | G16: 2005 | H16: 2006 | I16: 2007 | J16: 2008 | K16: 2009 | M16: Energieträger | N16: 2000 | O16: 2001 | P16: 2002 | Q16: 2003 | R16: 2004 | S16: 2005 | T16: 2006 | U16: 2007 | V16: 2008 | W16: 2009
A17: Electricity | B17: 0.1546873127 | C17: 0.1278436839 | D17: 0.07513719889 | E17: 0.1072790525 | F17: 0.1190886153 | G17: 0.07465503034 | H17: 0.07392702836 | I17: 0.05647393927 | J17: 0.07244210883 | K17: 0.04015874626 | M17: Electricity | N17: =IFERROR(B17/_data!B17-1,"") -> 0 | O17: =IFERROR(C17/_data!C17-1,"") -> 0 | P17: =IFERROR(D17/_data!D17-1,"") -> 0 | Q17: =IFERROR(E17/_data!E17-1,"") -> 0 | R17: =IFERROR(F17/_data!F17-1,"") -> 0 | S17: =IFERROR(G17/_data!G17-1,"") -> 0 | T17: =IFERROR(H17/_data!H17-1,"") -> 0 | U17: =IFERROR(I17/_data!I17-1,"") -> 0 | V17: =IFERROR(J17/_data!J17-1,"") -> 0 | W17: =IFERROR(K17/_data!K17-1,"") -> 0
A18: Heat and Cold | B18: 0 | C18: 0 | D18: 0 | E18: 0 | F18: 0 | G18: 0 | H18: 0 | I18: 0 | J18: 0 | K18: 0 | M18: Heat and Cold | N18: =IFERROR(B18/_data!B18-1,"") ->  | O18: =IFERROR(C18/_data!C18-1,"") ->  | P18: =IFERROR(D18/_data!D18-1,"") ->  | Q18: =IFERROR(E18/_data!E18-1,"") ->  | R18: =IFERROR(F18/_data!F18-1,"") ->  | S18: =IFERROR(G18/_data!G18-1,"") ->  | T18: =IFERROR(H18/_data!H18-1,"") ->  | U18: =IFERROR(I18/_data!I18-1,"") ->  | V18: =IFERROR(J18/_data!J18-1,"") ->  | W18: =IFERROR(K18/_data!K18-1,"") -> 
A19: natural gas | B19: 0 | C19: 0.0867996096 | D19: 0.08357652196 | E19: 0.07288077765 | F19: 0.08525765298 | G19: 0.1473168438 | H19: 0 | I19: 0 | J19: 0 | K19: 0 | M19: natural gas | N19: =IFERROR(B19/_data!B19-1,"") ->  | O19: =IFERROR(C19/_data!C19-1,"") -> 0 | P19: =IFERROR(D19/_data!D19-1,"") -> 0 | Q19: =IFERROR(E19/_data!E19-1,"") -> 0 | R19: =IFERROR(F19/_data!F19-1,"") -> 0 | S19: =IFERROR(G19/_data!G19-1,"") -> 0 | T19: =IFERROR(H19/_data!H19-1,"") ->  | U19: =IFERROR(I19/_data!I19-1,"") ->  | V19: =IFERROR(J19/_data!J19-1,"") ->  | W19: =IFERROR(K19/_data!K19-1,"") -> 
A20: Liquid gas | B20: 0 | C20: 0 | D20: 0 | E20: 0 | F20: 0 | G20: 0 | H20: 0 | I20: 0 | J20: 0 | K20: 0 | M20: Liquid gas | N20: =IFERROR(B20/_data!B20-1,"") ->  | O20: =IFERROR(C20/_data!C20-1,"") ->  | P20: =IFERROR(D20/_data!D20-1,"") ->  | Q20: =IFERROR(E20/_data!E20-1,"") ->  | R20: =IFERROR(F20/_data!F20-1,"") ->  | S20: =IFERROR(G20/_data!G20-1,"") ->  | T20: =IFERROR(H20/_data!H20-1,"") ->  | U20: =IFERROR(I20/_data!I20-1,"") ->  | V20: =IFERROR(J20/_data!J20-1,"") ->  | W20: =IFERROR(K20/_data!K20-1,"") -> 
A21: heating oil / diesel | B21: 0 | C21: 0 | D21: 0 | E21: 0 | F21: 0 | G21: 0 | H21: 0 | I21: 0 | J21: 0 | K21: 0 | M21: heating oil / diesel | N21: =IFERROR(B21/_data!B21-1,"") ->  | O21: =IFERROR(C21/_data!C21-1,"") ->  | P21: =IFERROR(D21/_data!D21-1,"") ->  | Q21: =IFERROR(E21/_data!E21-1,"") ->  | R21: =IFERROR(F21/_data!F21-1,"") ->  | S21: =IFERROR(G21/_data!G21-1,"") ->  | T21: =IFERROR(H21/_data!H21-1,"") ->  | U21: =IFERROR(I21/_data!I21-1,"") ->  | V21: =IFERROR(J21/_data!J21-1,"") ->  | W21: =IFERROR(K21/_data!K21-1,"") -> 
A22: gasoline | B22: 0 | C22: 0 | D22: 0 | E22: 0 | F22: 0 | G22: 0 | H22: 0 | I22: 0 | J22: 0 | K22: 0 | M22: gasoline | N22: =IFERROR(B22/_data!B22-1,"") ->  | O22: =IFERROR(C22/_data!C22-1,"") ->  | P22: =IFERROR(D22/_data!D22-1,"") ->  | Q22: =IFERROR(E22/_data!E22-1,"") ->  | R22: =IFERROR(F22/_data!F22-1,"") ->  | S22: =IFERROR(G22/_data!G22-1,"") ->  | T22: =IFERROR(H22/_data!H22-1,"") ->  | U22: =IFERROR(I22/_data!I22-1,"") ->  | V22: =IFERROR(J22/_data!J22-1,"") ->  | W22: =IFERROR(K22/_data!K22-1,"") -> 
A23: Lignite / Coal | B23: 0 | C23: 0 | D23: 0 | E23: 0 | F23: 0 | G23: 0 | H23: 0 | I23: 0 | J23: 0 | K23: 0 | M23: Lignite / Coal | N23: =IFERROR(B23/_data!B23-1,"") ->  | O23: =IFERROR(C23/_data!C23-1,"") ->  | P23: =IFERROR(D23/_data!D23-1,"") ->  | Q23: =IFERROR(E23/_data!E23-1,"") ->  | R23: =IFERROR(F23/_data!F23-1,"") ->  | S23: =IFERROR(G23/_data!G23-1,"") ->  | T23: =IFERROR(H23/_data!H23-1,"") ->  | U23: =IFERROR(I23/_data!I23-1,"") ->  | V23: =IFERROR(J23/_data!J23-1,"") ->  | W23: =IFERROR(K23/_data!K23-1,"") -> 
A24: other fossil fuels | B24: 0 | C24: 0 | D24: 0 | E24: 0 | F24: 0 | G24: 0 | H24: 0 | I24: 0 | J24: 0 | K24: 0 | M24: other fossil fuels | N24: =IFERROR(B24/_data!B24-1,"") ->  | O24: =IFERROR(C24/_data!C24-1,"") ->  | P24: =IFERROR(D24/_data!D24-1,"") ->  | Q24: =IFERROR(E24/_data!E24-1,"") ->  | R24: =IFERROR(F24/_data!F24-1,"") ->  | S24: =IFERROR(G24/_data!G24-1,"") ->  | T24: =IFERROR(H24/_data!H24-1,"") ->  | U24: =IFERROR(I24/_data!I24-1,"") ->  | V24: =IFERROR(J24/_data!J24-1,"") ->  | W24: =IFERROR(K24/_data!K24-1,"") -> 
A25: Plant oil, biofuel | B25: 0 | C25: 0 | D25: 0 | E25: 0 | F25: 0 | G25: 0 | H25: 0 | I25: 0 | J25: 0 | K25: 0 | M25: Plant oil, biofuel | N25: =IFERROR(B25/_data!B25-1,"") ->  | O25: =IFERROR(C25/_data!C25-1,"") ->  | P25: =IFERROR(D25/_data!D25-1,"") ->  | Q25: =IFERROR(E25/_data!E25-1,"") ->  | R25: =IFERROR(F25/_data!F25-1,"") ->  | S25: =IFERROR(G25/_data!G25-1,"") ->  | T25: =IFERROR(H25/_data!H25-1,"") ->  | U25: =IFERROR(I25/_data!I25-1,"") ->  | V25: =IFERROR(J25/_data!J25-1,"") ->  | W25: =IFERROR(K25/_data!K25-1,"") -> 
A26: Summe | B26: 0.1546873127 | C26: 0.2146432935 | D26: 0.1587137208 | E26: 0.1801598302 | F26: 0.2043462683 | G26: 0.2219718742 | H26: 0.07392702836 | I26: 0.05647393927 | J26: 0.07244210883 | K26: 0.04015874626 | M26: Summe | N26: =IFERROR(B26/_data!B26-1,"") -> 0 | O26: =IFERROR(C26/_data!C26-1,"") -> 0 | P26: =IFERROR(D26/_data!D26-1,"") -> 0 | Q26: =IFERROR(E26/_data!E26-1,"") -> 0 | R26: =IFERROR(F26/_data!F26-1,"") -> 0 | S26: =IFERROR(G26/_data!G26-1,"") -> 0 | T26: =IFERROR(H26/_data!H26-1,"") -> 0 | U26: =IFERROR(I26/_data!I26-1,"") -> 0 | V26: =IFERROR(J26/_data!J26-1,"") -> 0 | W26: =IFERROR(K26/_data!K26-1,"") -> 0
A28: Energy consumption (MWh /Einwohner and Year) - Secondary sector (Industrie) | M28: Test: | N28: =A28 -> Energy consumption (MWh /Einwohner and Year) - Secondary sector (Industrie)
A29: Energieträger | B29: 2000 | C29: 2001 | D29: 2002 | E29: 2003 | F29: 2004 | G29: 2005 | H29: 2006 | I29: 2007 | J29: 2008 | K29: 2009 | M29: Energieträger | N29: 2000 | O29: 2001 | P29: 2002 | Q29: 2003 | R29: 2004 | S29: 2005 | T29: 2006 | U29: 2007 | V29: 2008 | W29: 2009
A30: Electricity | B30: 0.2262606718 | C30: 0.252425587 | D30: 0.2509110567 | E30: 0.2597568937 | F30: 0.2974947891 | G30: 0.3108512246 | H30: 0.338417486 | I30: 0.3936007672 | J30: 0.3803436249 | K30: 0.3270326602 | M30: Electricity | N30: =IFERROR(B30/_data!B30-1,"") -> 0 | O30: =IFERROR(C30/_data!C30-1,"") -> 0 | P30: =IFERROR(D30/_data!D30-1,"") -> 0 | Q30: =IFERROR(E30/_data!E30-1,"") -> 0 | R30: =IFERROR(F30/_data!F30-1,"") -> 0 | S30: =IFERROR(G30/_data!G30-1,"") -> 0 | T30: =IFERROR(H30/_data!H30-1,"") -> 0 | U30: =IFERROR(I30/_data!I30-1,"") -> 0 | V30: =IFERROR(J30/_data!J30-1,"") -> 0 | W30: =IFERROR(K30/_data!K30-1,"") -> 0
A31: Heat and Cold | B31: 0.1147738322 | C31: 0.07900757784 | D31: 0.06016420636 | E31: 0.05264115945 | F31: 0.05015689585 | G31: 0.08462111449 | H31: 0.07275071089 | I31: 0.08882221169 | J31: 0.07271275183 | K31: 0.04502101599 | M31: Heat and Cold | N31: =IFERROR(B31/_data!B31-1,"") -> 0 | O31: =IFERROR(C31/_data!C31-1,"") -> 0 | P31: =IFERROR(D31/_data!D31-1,"") -> 0 | Q31: =IFERROR(E31/_data!E31-1,"") -> 0 | R31: =IFERROR(F31/_data!F31-1,"") -> 0 | S31: =IFERROR(G31/_data!G31-1,"") -> 0 | T31: =IFERROR(H31/_data!H31-1,"") -> 0 | U31: =IFERROR(I31/_data!I31-1,"") -> 0 | V31: =IFERROR(J31/_data!J31-1,"") -> 0 | W31: =IFERROR(K31/_data!K31-1,"") -> 0
A32: natural gas | B32: 1.292943925 | C32: 1.436180179 | D32: 1.382687801 | E32: 1.775731525 | F32: 1.971084377 | G32: 2.438338388 | H32: 2.575049416 | I32: 2.09450546 | J32: 2.402137026 | K32: 1.715120625 | M32: natural gas | N32: =IFERROR(B32/_data!B32-1,"") -> 0 | O32: =IFERROR(C32/_data!C32-1,"") -> 0 | P32: =IFERROR(D32/_data!D32-1,"") -> 0 | Q32: =IFERROR(E32/_data!E32-1,"") -> 0 | R32: =IFERROR(F32/_data!F32-1,"") -> 0 | S32: =IFERROR(G32/_data!G32-1,"") -> 0 | T32: =IFERROR(H32/_data!H32-1,"") -> 0 | U32: =IFERROR(I32/_data!I32-1,"") -> 0 | V32: =IFERROR(J32/_data!J32-1,"") -> 0 | W32: =IFERROR(K32/_data!K32-1,"") -> 0
A33: Liquid gas | B33: 0 | C33: 0 | D33: 0 | E33: 0 | F33: 0 | G33: 0 | H33: 0 | I33: 0 | J33: 0 | K33: 0 | M33: Liquid gas | N33: =IFERROR(B33/_data!B33-1,"") ->  | O33: =IFERROR(C33/_data!C33-1,"") ->  | P33: =IFERROR(D33/_data!D33-1,"") ->  | Q33: =IFERROR(E33/_data!E33-1,"") ->  | R33: =IFERROR(F33/_data!F33-1,"") ->  | S33: =IFERROR(G33/_data!G33-1,"") ->  | T33: =IFERROR(H33/_data!H33-1,"") ->  | U33: =IFERROR(I33/_data!I33-1,"") ->  | V33: =IFERROR(J33/_data!J33-1,"") ->  | W33: =IFERROR(K33/_data!K33-1,"") -> 
A34: heating oil / diesel | B34: 0 | C34: 0 | D34: 0 | E34: 0 | F34: 0 | G34: 0 | H34: 0 | I34: 0 | J34: 0 | K34: 0 | M34: heating oil / diesel | N34: =IFERROR(B34/_data!B34-1,"") ->  | O34: =IFERROR(C34/_data!C34-1,"") ->  | P34: =IFERROR(D34/_data!D34-1,"") ->  | Q34: =IFERROR(E34/_data!E34-1,"") ->  | R34: =IFERROR(F34/_data!F34-1,"") ->  | S34: =IFERROR(G34/_data!G34-1,"") ->  | T34: =IFERROR(H34/_data!H34-1,"") ->  | U34: =IFERROR(I34/_data!I34-1,"") ->  | V34: =IFERROR(J34/_data!J34-1,"") ->  | W34: =IFERROR(K34/_data!K34-1,"") -> 
A35: gasoline | B35: 0 | C35: 0 | D35: 0 | E35: 0 | F35: 0 | G35: 0 | H35: 0 | I35: 0 | J35: 0 | K35: 0 | M35: gasoline | N35: =IFERROR(B35/_data!B35-1,"") ->  | O35: =IFERROR(C35/_data!C35-1,"") ->  | P35: =IFERROR(D35/_data!D35-1,"") ->  | Q35: =IFERROR(E35/_data!E35-1,"") ->  | R35: =IFERROR(F35/_data!F35-1,"") ->  | S35: =IFERROR(G35/_data!G35-1,"") ->  | T35: =IFERROR(H35/_data!H35-1,"") ->  | U35: =IFERROR(I35/_data!I35-1,"") ->  | V35: =IFERROR(J35/_data!J35-1,"") ->  | W35: =IFERROR(K35/_data!K35-1,"") -> 
A36: Lignite / Coal | B36: 0 | C36: 0 | D36: 0 | E36: 0 | F36: 0 | G36: 0 | H36: 0 | I36: 0 | J36: 0 | K36: 0 | M36: Lignite / Coal | N36: =IFERROR(B36/_data!B36-1,"") ->  | O36: =IFERROR(C36/_data!C36-1,"") ->  | P36: =IFERROR(D36/_data!D36-1,"") ->  | Q36: =IFERROR(E36/_data!E36-1,"") ->  | R36: =IFERROR(F36/_data!F36-1,"") ->  | S36: =IFERROR(G36/_data!G36-1,"") ->  | T36: =IFERROR(H36/_data!H36-1,"") ->  | U36: =IFERROR(I36/_data!I36-1,"") ->  | V36: =IFERROR(J36/_data!J36-1,"") ->  | W36: =IFERROR(K36/_data!K36-1,"") -> 
A37: other fossil fuels | B37: 0 | C37: 0 | D37: 0 | E37: 0 | F37: 0 | G37: 0 | H37: 0 | I37: 0 | J37: 0 | K37: 0 | M37: other fossil fuels | N37: =IFERROR(B37/_data!B37-1,"") ->  | O37: =IFERROR(C37/_data!C37-1,"") ->  | P37: =IFERROR(D37/_data!D37-1,"") ->  | Q37: =IFERROR(E37/_data!E37-1,"") ->  | R37: =IFERROR(F37/_data!F37-1,"") ->  | S37: =IFERROR(G37/_data!G37-1,"") ->  | T37: =IFERROR(H37/_data!H37-1,"") ->  | U37: =IFERROR(I37/_data!I37-1,"") ->  | V37: =IFERROR(J37/_data!J37-1,"") ->  | W37: =IFERROR(K37/_data!K37-1,"") -> 
A38: Plant oil, biofuel | B38: 0 | C38: 0 | D38: 0 | E38: 0 | F38: 0 | G38: 0 | H38: 0 | I38: 0 | J38: 0 | K38: 0 | M38: Plant oil, biofuel | N38: =IFERROR(B38/_data!B38-1,"") ->  | O38: =IFERROR(C38/_data!C38-1,"") ->  | P38: =IFERROR(D38/_data!D38-1,"") ->  | Q38: =IFERROR(E38/_data!E38-1,"") ->  | R38: =IFERROR(F38/_data!F38-1,"") ->  | S38: =IFERROR(G38/_data!G38-1,"") ->  | T38: =IFERROR(H38/_data!H38-1,"") ->  | U38: =IFERROR(I38/_data!I38-1,"") ->  | V38: =IFERROR(J38/_data!J38-1,"") ->  | W38: =IFERROR(K38/_data!K38-1,"") -> 
A39: Summe | B39: 1.633978429 | C39: 1.767613344 | D39: 1.693763064 | E39: 2.088129578 | F39: 2.318736062 | G39: 2.833810727 | H39: 2.986217613 | I39: 2.576928439 | J39: 2.855193403 | K39: 2.087174301 | M39: Summe | N39: =IFERROR(B39/_data!B39-1,"") -> 0 | O39: =IFERROR(C39/_data!C39-1,"") -> 0 | P39: =IFERROR(D39/_data!D39-1,"") -> 0 | Q39: =IFERROR(E39/_data!E39-1,"") -> 0 | R39: =IFERROR(F39/_data!F39-1,"") -> 0 | S39: =IFERROR(G39/_data!G39-1,"") -> 0 | T39: =IFERROR(H39/_data!H39-1,"") -> 0 | U39: =IFERROR(I39/_data!I39-1,"") -> 0 | V39: =IFERROR(J39/_data!J39-1,"") -> 0 | W39: =IFERROR(K39/_data!K39-1,"") -> 0
A41: Energy consumption (MWh /Einwohner and Year) - Tertiary sector (Services) | M41: Test: | N41: =A41 -> Energy consumption (MWh /Einwohner and Year) - Tertiary sector (Services)
A42: Energieträger | B42: 2000 | C42: 2001 | D42: 2002 | E42: 2003 | F42: 2004 | G42: 2005 | H42: 2006 | I42: 2007 | J42: 2008 | K42: 2009 | M42: Energieträger | N42: 2000 | O42: 2001 | P42: 2002 | Q42: 2003 | R42: 2004 | S42: 2005 | T42: 2006 | U42: 2007 | V42: 2008 | W42: 2009
A43: Electricity | B43: 0.197761363 | C43: 0.2338515578 | D43: 0.2609837971 | E43: 0.3048649217 | F43: 0.3389445204 | G43: 0.4158575112 | H43: 0.4687172667 | I43: 0.483055487 | J43: 0.5183715534 | K43: 0.4920797048 | M43: Electricity | N43: =IFERROR(B43/_data!B43-1,"") -> 0 | O43: =IFERROR(C43/_data!C43-1,"") -> 0 | P43: =IFERROR(D43/_data!D43-1,"") -> 0 | Q43: =IFERROR(E43/_data!E43-1,"") -> 0 | R43: =IFERROR(F43/_data!F43-1,"") -> 0 | S43: =IFERROR(G43/_data!G43-1,"") -> 0 | T43: =IFERROR(H43/_data!H43-1,"") -> 0 | U43: =IFERROR(I43/_data!I43-1,"") -> 0 | V43: =IFERROR(J43/_data!J43-1,"") -> 0 | W43: =IFERROR(K43/_data!K43-1,"") -> 0
A44: Heat and Cold | B44: 0 | C44: 0 | D44: 0 | E44: 0 | F44: 0 | G44: 0 | H44: 0 | I44: 0 | J44: 0 | K44: 0 | M44: Heat and Cold | N44: =IFERROR(B44/_data!B44-1,"") ->  | O44: =IFERROR(C44/_data!C44-1,"") ->  | P44: =IFERROR(D44/_data!D44-1,"") ->  | Q44: =IFERROR(E44/_data!E44-1,"") ->  | R44: =IFERROR(F44/_data!F44-1,"") ->  | S44: =IFERROR(G44/_data!G44-1,"") ->  | T44: =IFERROR(H44/_data!H44-1,"") ->  | U44: =IFERROR(I44/_data!I44-1,"") ->  | V44: =IFERROR(J44/_data!J44-1,"") ->  | W44: =IFERROR(K44/_data!K44-1,"") -> 
A45: natural gas | B45: 0.02745180565 | C45: 0.0305338919 | D45: 0.03049045752 | E45: 0.03775641781 | F45: 0.05813846336 | G45: 0.06514195002 | H45: 0.06659766569 | I45: 0.09261726041 | J45: 0.1214284913 | K45: 0.121106533 | M45: natural gas | N45: =IFERROR(B45/_data!B45-1,"") -> 0 | O45: =IFERROR(C45/_data!C45-1,"") -> 0 | P45: =IFERROR(D45/_data!D45-1,"") -> 0 | Q45: =IFERROR(E45/_data!E45-1,"") -> 0 | R45: =IFERROR(F45/_data!F45-1,"") -> 0 | S45: =IFERROR(G45/_data!G45-1,"") -> 0 | T45: =IFERROR(H45/_data!H45-1,"") -> 0 | U45: =IFERROR(I45/_data!I45-1,"") -> 0 | V45: =IFERROR(J45/_data!J45-1,"") -> 0 | W45: =IFERROR(K45/_data!K45-1,"") -> 0
A46: Liquid gas | B46: 0 | C46: 0 | D46: 0 | E46: 0 | F46: 0 | G46: 0 | H46: 0 | I46: 0 | J46: 0 | K46: 0 | M46: Liquid gas | N46: =IFERROR(B46/_data!B46-1,"") ->  | O46: =IFERROR(C46/_data!C46-1,"") ->  | P46: =IFERROR(D46/_data!D46-1,"") ->  | Q46: =IFERROR(E46/_data!E46-1,"") ->  | R46: =IFERROR(F46/_data!F46-1,"") ->  | S46: =IFERROR(G46/_data!G46-1,"") ->  | T46: =IFERROR(H46/_data!H46-1,"") ->  | U46: =IFERROR(I46/_data!I46-1,"") ->  | V46: =IFERROR(J46/_data!J46-1,"") ->  | W46: =IFERROR(K46/_data!K46-1,"") -> 
A47: heating oil / diesel | B47: 0.2667520851 | C47: 0.2541470824 | D47: 0.2545408731 | E47: 0.4204031906 | F47: 0.4200299904 | G47: 0.4466617713 | H47: 0.4345135743 | I47: 0.4649838264 | J47: 0.4982537573 | K47: 0.4539919252 | M47: heating oil / diesel | N47: =IFERROR(B47/_data!B47-1,"") -> 0 | O47: =IFERROR(C47/_data!C47-1,"") -> 0 | P47: =IFERROR(D47/_data!D47-1,"") -> 0 | Q47: =IFERROR(E47/_data!E47-1,"") -> 0 | R47: =IFERROR(F47/_data!F47-1,"") -> 0 | S47: =IFERROR(G47/_data!G47-1,"") -> 0 | T47: =IFERROR(H47/_data!H47-1,"") -> 0 | U47: =IFERROR(I47/_data!I47-1,"") -> 0 | V47: =IFERROR(J47/_data!J47-1,"") -> 0 | W47: =IFERROR(K47/_data!K47-1,"") -> 0
A48: gasoline | B48: 0 | C48: 0 | D48: 0 | E48: 0 | F48: 0 | G48: 0 | H48: 0 | I48: 0 | J48: 0 | K48: 0 | M48: gasoline | N48: =IFERROR(B48/_data!B48-1,"") ->  | O48: =IFERROR(C48/_data!C48-1,"") ->  | P48: =IFERROR(D48/_data!D48-1,"") ->  | Q48: =IFERROR(E48/_data!E48-1,"") ->  | R48: =IFERROR(F48/_data!F48-1,"") ->  | S48: =IFERROR(G48/_data!G48-1,"") ->  | T48: =IFERROR(H48/_data!H48-1,"") ->  | U48: =IFERROR(I48/_data!I48-1,"") ->  | V48: =IFERROR(J48/_data!J48-1,"") ->  | W48: =IFERROR(K48/_data!K48-1,"") -> 
A49: Lignite / Coal | B49: 0 | C49: 0 | D49: 0 | E49: 0 | F49: 0 | G49: 0 | H49: 0 | I49: 0 | J49: 0 | K49: 0 | M49: Lignite / Coal | N49: =IFERROR(B49/_data!B49-1,"") ->  | O49: =IFERROR(C49/_data!C49-1,"") ->  | P49: =IFERROR(D49/_data!D49-1,"") ->  | Q49: =IFERROR(E49/_data!E49-1,"") ->  | R49: =IFERROR(F49/_data!F49-1,"") ->  | S49: =IFERROR(G49/_data!G49-1,"") ->  | T49: =IFERROR(H49/_data!H49-1,"") ->  | U49: =IFERROR(I49/_data!I49-1,"") ->  | V49: =IFERROR(J49/_data!J49-1,"") ->  | W49: =IFERROR(K49/_data!K49-1,"") -> 
A50: other fossil fuels | B50: 0 | C50: 0.004167830941 | D50: 0.004174288827 | E50: 0 | F50: 0 | G50: 0.08253729689 | H50: 0.06180190988 | I50: 0.04689595917 | J50: 0.03698787624 | K50: 0.03079437494 | M50: other fossil fuels | N50: =IFERROR(B50/_data!B50-1,"") ->  | O50: =IFERROR(C50/_data!C50-1,"") -> 0 | P50: =IFERROR(D50/_data!D50-1,"") -> 0 | Q50: =IFERROR(E50/_data!E50-1,"") ->  | R50: =IFERROR(F50/_data!F50-1,"") ->  | S50: =IFERROR(G50/_data!G50-1,"") -> 0 | T50: =IFERROR(H50/_data!H50-1,"") -> 0 | U50: =IFERROR(I50/_data!I50-1,"") -> 0 | V50: =IFERROR(J50/_data!J50-1,"") -> 0 | W50: =IFERROR(K50/_data!K50-1,"") -> 0
A51: Plant oil, biofuel | B51: 0 | C51: 0.03859773872 | D51: 0.04192437909 | E51: 0.05028138333 | F51: 0.05269648551 | G51: 0.0320726708 | H51: 0.05211991228 | I51: 0.03298078054 | J51: 0.03292823129 | K51: 0.03286534167 | M51: Plant oil, biofuel | N51: =IFERROR(B51/_data!B51-1,"") ->  | O51: =IFERROR(C51/_data!C51-1,"") -> 0 | P51: =IFERROR(D51/_data!D51-1,"") -> 0 | Q51: =IFERROR(E51/_data!E51-1,"") -> 0 | R51: =IFERROR(F51/_data!F51-1,"") -> 0 | S51: =IFERROR(G51/_data!G51-1,"") -> 0 | T51: =IFERROR(H51/_data!H51-1,"") -> 0 | U51: =IFERROR(I51/_data!I51-1,"") -> 0 | V51: =IFERROR(J51/_data!J51-1,"") -> 0 | W51: =IFERROR(K51/_data!K51-1,"") -> 0
A52: Summe | B52: 0.4919652538 | C52: 0.5612981018 | D52: 0.5921137956 | E52: 0.8133059135 | F52: 0.8698094597 | G52: 1.0422712 | H52: 1.083750329 | I52: 1.120533313 | J52: 1.207969909 | K52: 1.13083788 | M52: Summe | N52: =IFERROR(B52/_data!B52-1,"") -> 0 | O52: =IFERROR(C52/_data!C52-1,"") -> 0 | P52: =IFERROR(D52/_data!D52-1,"") -> 0 | Q52: =IFERROR(E52/_data!E52-1,"") -> 0 | R52: =IFERROR(F52/_data!F52-1,"") -> 0 | S52: =IFERROR(G52/_data!G52-1,"") -> 0 | T52: =IFERROR(H52/_data!H52-1,"") -> 0 | U52: =IFERROR(I52/_data!I52-1,"") -> 0 | V52: =IFERROR(J52/_data!J52-1,"") -> 0 | W52: =IFERROR(K52/_data!K52-1,"") -> 0
A54: Energy consumption (MWh /Einwohner and Year) - Road | M54: Test: | N54: =A54 -> Energy consumption (MWh /Einwohner and Year) - Road
A55: Energieträger | B55: 2000 | C55: 2001 | D55: 2002 | E55: 2003 | F55: 2004 | G55: 2005 | H55: 2006 | I55: 2007 | J55: 2008 | K55: 2009 | M55: Energieträger | N55: 2000 | O55: 2001 | P55: 2002 | Q55: 2003 | R55: 2004 | S55: 2005 | T55: 2006 | U55: 2007 | V55: 2008 | W55: 2009
A56: Electricity | B56: 0 | C56: 0 | D56: 0 | E56: 0 | F56: 0 | G56: 0 | H56: 0 | I56: 0 | J56: 0 | K56: 0 | M56: Electricity | N56: =IFERROR(B56/_data!B56-1,"") ->  | O56: =IFERROR(C56/_data!C56-1,"") ->  | P56: =IFERROR(D56/_data!D56-1,"") ->  | Q56: =IFERROR(E56/_data!E56-1,"") ->  | R56: =IFERROR(F56/_data!F56-1,"") ->  | S56: =IFERROR(G56/_data!G56-1,"") ->  | T56: =IFERROR(H56/_data!H56-1,"") ->  | U56: =IFERROR(I56/_data!I56-1,"") ->  | V56: =IFERROR(J56/_data!J56-1,"") ->  | W56: =IFERROR(K56/_data!K56-1,"") -> 
A57: Heat and Cold | B57: 0 | C57: 0 | D57: 0 | E57: 0 | F57: 0 | G57: 0 | H57: 0 | I57: 0 | J57: 0 | K57: 0 | M57: Heat and Cold | N57: =IFERROR(B57/_data!B57-1,"") ->  | O57: =IFERROR(C57/_data!C57-1,"") ->  | P57: =IFERROR(D57/_data!D57-1,"") ->  | Q57: =IFERROR(E57/_data!E57-1,"") ->  | R57: =IFERROR(F57/_data!F57-1,"") ->  | S57: =IFERROR(G57/_data!G57-1,"") ->  | T57: =IFERROR(H57/_data!H57-1,"") ->  | U57: =IFERROR(I57/_data!I57-1,"") ->  | V57: =IFERROR(J57/_data!J57-1,"") ->  | W57: =IFERROR(K57/_data!K57-1,"") -> 
A58: natural gas | B58: 0 | C58: 0 | D58: 0 | E58: 0 | F58: 0.05006619622 | G58: 0.1983250745 | H58: 0.2519129094 | I58: 0.972978205 | J58: 1.169809247 | K58: 1.037284208 | M58: natural gas | N58: =IFERROR(B58/_data!B58-1,"") ->  | O58: =IFERROR(C58/_data!C58-1,"") ->  | P58: =IFERROR(D58/_data!D58-1,"") ->  | Q58: =IFERROR(E58/_data!E58-1,"") ->  | R58: =IFERROR(F58/_data!F58-1,"") -> 0 | S58: =IFERROR(G58/_data!G58-1,"") -> 0 | T58: =IFERROR(H58/_data!H58-1,"") -> 0 | U58: =IFERROR(I58/_data!I58-1,"") -> 0 | V58: =IFERROR(J58/_data!J58-1,"") -> 0 | W58: =IFERROR(K58/_data!K58-1,"") -> 0
A59: Liquid gas | B59: 0 | C59: 0 | D59: 0 | E59: 0 | F59: 0 | G59: 0 | H59: 0 | I59: 0 | J59: 0 | K59: 0 | M59: Liquid gas | N59: =IFERROR(B59/_data!B59-1,"") ->  | O59: =IFERROR(C59/_data!C59-1,"") ->  | P59: =IFERROR(D59/_data!D59-1,"") ->  | Q59: =IFERROR(E59/_data!E59-1,"") ->  | R59: =IFERROR(F59/_data!F59-1,"") ->  | S59: =IFERROR(G59/_data!G59-1,"") ->  | T59: =IFERROR(H59/_data!H59-1,"") ->  | U59: =IFERROR(I59/_data!I59-1,"") ->  | V59: =IFERROR(J59/_data!J59-1,"") ->  | W59: =IFERROR(K59/_data!K59-1,"") -> 
A60: heating oil / diesel | B60: 0 | C60: 0 | D60: 0 | E60: 0 | F60: 0 | G60: 0 | H60: 0 | I60: 0 | J60: 0 | K60: 0 | M60: heating oil / diesel | N60: =IFERROR(B60/_data!B60-1,"") ->  | O60: =IFERROR(C60/_data!C60-1,"") ->  | P60: =IFERROR(D60/_data!D60-1,"") ->  | Q60: =IFERROR(E60/_data!E60-1,"") ->  | R60: =IFERROR(F60/_data!F60-1,"") ->  | S60: =IFERROR(G60/_data!G60-1,"") ->  | T60: =IFERROR(H60/_data!H60-1,"") ->  | U60: =IFERROR(I60/_data!I60-1,"") ->  | V60: =IFERROR(J60/_data!J60-1,"") ->  | W60: =IFERROR(K60/_data!K60-1,"") -> 
A61: gasoline | B61: 0.74607506 | C61: 0.7408772523 | D61: 0.7460180098 | E61: 0.7661103912 | F61: 0.7576140163 | G61: 0.7328695879 | H61: 0.6841643347 | I61: 0.6708200403 | J61: 0.7852255483 | K61: 0.7283499967 | M61: gasoline | N61: =IFERROR(B61/_data!B61-1,"") -> 0 | O61: =IFERROR(C61/_data!C61-1,"") -> 0 | P61: =IFERROR(D61/_data!D61-1,"") -> 0 | Q61: =IFERROR(E61/_data!E61-1,"") -> 0 | R61: =IFERROR(F61/_data!F61-1,"") -> 0 | S61: =IFERROR(G61/_data!G61-1,"") -> 0 | T61: =IFERROR(H61/_data!H61-1,"") -> 0 | U61: =IFERROR(I61/_data!I61-1,"") -> 0 | V61: =IFERROR(J61/_data!J61-1,"") -> 0 | W61: =IFERROR(K61/_data!K61-1,"") -> 0
A62: Lignite / Coal | B62: 0 | C62: 0 | D62: 0 | E62: 0 | F62: 0 | G62: 0 | H62: 0 | I62: 0 | J62: 0 | K62: 0 | M62: Lignite / Coal | N62: =IFERROR(B62/_data!B62-1,"") ->  | O62: =IFERROR(C62/_data!C62-1,"") ->  | P62: =IFERROR(D62/_data!D62-1,"") ->  | Q62: =IFERROR(E62/_data!E62-1,"") ->  | R62: =IFERROR(F62/_data!F62-1,"") ->  | S62: =IFERROR(G62/_data!G62-1,"") ->  | T62: =IFERROR(H62/_data!H62-1,"") ->  | U62: =IFERROR(I62/_data!I62-1,"") ->  | V62: =IFERROR(J62/_data!J62-1,"") ->  | W62: =IFERROR(K62/_data!K62-1,"") -> 
A63: other fossil fuels | B63: 0 | C63: 0 | D63: 0 | E63: 0 | F63: 0 | G63: 0 | H63: 0 | I63: 0 | J63: 0 | K63: 0 | M63: other fossil fuels | N63: =IFERROR(B63/_data!B63-1,"") ->  | O63: =IFERROR(C63/_data!C63-1,"") ->  | P63: =IFERROR(D63/_data!D63-1,"") ->  | Q63: =IFERROR(E63/_data!E63-1,"") ->  | R63: =IFERROR(F63/_data!F63-1,"") ->  | S63: =IFERROR(G63/_data!G63-1,"") ->  | T63: =IFERROR(H63/_data!H63-1,"") ->  | U63: =IFERROR(I63/_data!I63-1,"") ->  | V63: =IFERROR(J63/_data!J63-1,"") ->  | W63: =IFERROR(K63/_data!K63-1,"") -> 
A64: Plant oil, biofuel | B64: 0 | C64: 0 | D64: 0 | E64: 0 | F64: 0 | G64: 0 | H64: 0 | I64: 0 | J64: 0 | K64: 0 | M64: Plant oil, biofuel | N64: =IFERROR(B64/_data!B64-1,"") ->  | O64: =IFERROR(C64/_data!C64-1,"") ->  | P64: =IFERROR(D64/_data!D64-1,"") ->  | Q64: =IFERROR(E64/_data!E64-1,"") ->  | R64: =IFERROR(F64/_data!F64-1,"") ->  | S64: =IFERROR(G64/_data!G64-1,"") ->  | T64: =IFERROR(H64/_data!H64-1,"") ->  | U64: =IFERROR(I64/_data!I64-1,"") ->  | V64: =IFERROR(J64/_data!J64-1,"") ->  | W64: =IFERROR(K64/_data!K64-1,"") -> 
A65: Summe | B65: 0.74607506 | C65: 0.7408772523 | D65: 0.7460180098 | E65: 0.7661103912 | F65: 0.8076802125 | G65: 0.9311946624 | H65: 0.936077244 | I65: 1.643798245 | J65: 1.955034795 | K65: 1.765634205 | M65: Summe | N65: =IFERROR(B65/_data!B65-1,"") -> 0 | O65: =IFERROR(C65/_data!C65-1,"") -> 0 | P65: =IFERROR(D65/_data!D65-1,"") -> 0 | Q65: =IFERROR(E65/_data!E65-1,"") -> 0 | R65: =IFERROR(F65/_data!F65-1,"") -> 0 | S65: =IFERROR(G65/_data!G65-1,"") -> 0 | T65: =IFERROR(H65/_data!H65-1,"") -> 0 | U65: =IFERROR(I65/_data!I65-1,"") -> 0 | V65: =IFERROR(J65/_data!J65-1,"") -> 0 | W65: =IFERROR(K65/_data!K65-1,"") -> 0
A67: Energy consumption (MWh /Einwohner and Year) - Rail | M67: Test: | N67: =A67 -> Energy consumption (MWh /Einwohner and Year) - Rail
A68: Energieträger | B68: 2000 | C68: 2001 | D68: 2002 | E68: 2003 | F68: 2004 | G68: 2005 | H68: 2006 | I68: 2007 | J68: 2008 | K68: 2009 | M68: Energieträger | N68: 2000 | O68: 2001 | P68: 2002 | Q68: 2003 | R68: 2004 | S68: 2005 | T68: 2006 | U68: 2007 | V68: 2008 | W68: 2009
A69: Electricity | B69: 0.0221059277 | C69: 0.02083915471 | D69: 0.02350306101 | E69: 0.02414232485 | F69: 0.0241261018 | G69: 0.02708962873 | H69: 0.02216905991 | I69: 0.02313172553 | J69: 0.02174165408 | K69: 0.02143000361 | M69: Electricity | N69: =IFERROR(B69/_data!B69-1,"") -> 0 | O69: =IFERROR(C69/_data!C69-1,"") -> 0 | P69: =IFERROR(D69/_data!D69-1,"") -> 0 | Q69: =IFERROR(E69/_data!E69-1,"") -> 0 | R69: =IFERROR(F69/_data!F69-1,"") -> 0 | S69: =IFERROR(G69/_data!G69-1,"") -> 0 | T69: =IFERROR(H69/_data!H69-1,"") -> 0 | U69: =IFERROR(I69/_data!I69-1,"") -> 0 | V69: =IFERROR(J69/_data!J69-1,"") -> 0 | W69: =IFERROR(K69/_data!K69-1,"") -> 0
A70: Heat and Cold | B70: 0 | C70: 0 | D70: 0 | E70: 0 | F70: 0 | G70: 0 | H70: 0 | I70: 0 | J70: 0 | K70: 0 | M70: Heat and Cold | N70: =IFERROR(B70/_data!B70-1,"") ->  | O70: =IFERROR(C70/_data!C70-1,"") ->  | P70: =IFERROR(D70/_data!D70-1,"") ->  | Q70: =IFERROR(E70/_data!E70-1,"") ->  | R70: =IFERROR(F70/_data!F70-1,"") ->  | S70: =IFERROR(G70/_data!G70-1,"") ->  | T70: =IFERROR(H70/_data!H70-1,"") ->  | U70: =IFERROR(I70/_data!I70-1,"") ->  | V70: =IFERROR(J70/_data!J70-1,"") ->  | W70: =IFERROR(K70/_data!K70-1,"") -> 
A71: natural gas | B71: 0 | C71: 0 | D71: 0 | E71: 0 | F71: 0 | G71: 0 | H71: 0 | I71: 0 | J71: 0 | K71: 0 | M71: natural gas | N71: =IFERROR(B71/_data!B71-1,"") ->  | O71: =IFERROR(C71/_data!C71-1,"") ->  | P71: =IFERROR(D71/_data!D71-1,"") ->  | Q71: =IFERROR(E71/_data!E71-1,"") ->  | R71: =IFERROR(F71/_data!F71-1,"") ->  | S71: =IFERROR(G71/_data!G71-1,"") ->  | T71: =IFERROR(H71/_data!H71-1,"") ->  | U71: =IFERROR(I71/_data!I71-1,"") ->  | V71: =IFERROR(J71/_data!J71-1,"") ->  | W71: =IFERROR(K71/_data!K71-1,"") -> 
A72: Liquid gas | B72: 0 | C72: 0 | D72: 0 | E72: 0 | F72: 0 | G72: 0 | H72: 0 | I72: 0 | J72: 0 | K72: 0 | M72: Liquid gas | N72: =IFERROR(B72/_data!B72-1,"") ->  | O72: =IFERROR(C72/_data!C72-1,"") ->  | P72: =IFERROR(D72/_data!D72-1,"") ->  | Q72: =IFERROR(E72/_data!E72-1,"") ->  | R72: =IFERROR(F72/_data!F72-1,"") ->  | S72: =IFERROR(G72/_data!G72-1,"") ->  | T72: =IFERROR(H72/_data!H72-1,"") ->  | U72: =IFERROR(I72/_data!I72-1,"") ->  | V72: =IFERROR(J72/_data!J72-1,"") ->  | W72: =IFERROR(K72/_data!K72-1,"") -> 
A73: heating oil / diesel | B73: 0 | C73: 0 | D73: 0 | E73: 0 | F73: 0 | G73: 0 | H73: 0 | I73: 0 | J73: 0 | K73: 0 | M73: heating oil / diesel | N73: =IFERROR(B73/_data!B73-1,"") ->  | O73: =IFERROR(C73/_data!C73-1,"") ->  | P73: =IFERROR(D73/_data!D73-1,"") ->  | Q73: =IFERROR(E73/_data!E73-1,"") ->  | R73: =IFERROR(F73/_data!F73-1,"") ->  | S73: =IFERROR(G73/_data!G73-1,"") ->  | T73: =IFERROR(H73/_data!H73-1,"") ->  | U73: =IFERROR(I73/_data!I73-1,"") ->  | V73: =IFERROR(J73/_data!J73-1,"") ->  | W73: =IFERROR(K73/_data!K73-1,"") -> 
A74: gasoline | B74: 0 | C74: 0 | D74: 0 | E74: 0 | F74: 0 | G74: 0 | H74: 0 | I74: 0 | J74: 0 | K74: 0 | M74: gasoline | N74: =IFERROR(B74/_data!B74-1,"") ->  | O74: =IFERROR(C74/_data!C74-1,"") ->  | P74: =IFERROR(D74/_data!D74-1,"") ->  | Q74: =IFERROR(E74/_data!E74-1,"") ->  | R74: =IFERROR(F74/_data!F74-1,"") ->  | S74: =IFERROR(G74/_data!G74-1,"") ->  | T74: =IFERROR(H74/_data!H74-1,"") ->  | U74: =IFERROR(I74/_data!I74-1,"") ->  | V74: =IFERROR(J74/_data!J74-1,"") ->  | W74: =IFERROR(K74/_data!K74-1,"") -> 
A75: Lignite / Coal | B75: 0 | C75: 0 | D75: 0 | E75: 0 | F75: 0 | G75: 0 | H75: 0 | I75: 0 | J75: 0 | K75: 0 | M75: Lignite / Coal | N75: =IFERROR(B75/_data!B75-1,"") ->  | O75: =IFERROR(C75/_data!C75-1,"") ->  | P75: =IFERROR(D75/_data!D75-1,"") ->  | Q75: =IFERROR(E75/_data!E75-1,"") ->  | R75: =IFERROR(F75/_data!F75-1,"") ->  | S75: =IFERROR(G75/_data!G75-1,"") ->  | T75: =IFERROR(H75/_data!H75-1,"") ->  | U75: =IFERROR(I75/_data!I75-1,"") ->  | V75: =IFERROR(J75/_data!J75-1,"") ->  | W75: =IFERROR(K75/_data!K75-1,"") -> 
A76: other fossil fuels | B76: 0 | C76: 0 | D76: 0 | E76: 0 | F76: 0 | G76: 0 | H76: 0 | I76: 0 | J76: 0 | K76: 0 | M76: other fossil fuels | N76: =IFERROR(B76/_data!B76-1,"") ->  | O76: =IFERROR(C76/_data!C76-1,"") ->  | P76: =IFERROR(D76/_data!D76-1,"") ->  | Q76: =IFERROR(E76/_data!E76-1,"") ->  | R76: =IFERROR(F76/_data!F76-1,"") ->  | S76: =IFERROR(G76/_data!G76-1,"") ->  | T76: =IFERROR(H76/_data!H76-1,"") ->  | U76: =IFERROR(I76/_data!I76-1,"") ->  | V76: =IFERROR(J76/_data!J76-1,"") ->  | W76: =IFERROR(K76/_data!K76-1,"") -> 
A77: Plant oil, biofuel | B77: 0 | C77: 0 | D77: 0 | E77: 0 | F77: 0 | G77: 0 | H77: 0 | I77: 0 | J77: 0 | K77: 0 | M77: Plant oil, biofuel | N77: =IFERROR(B77/_data!B77-1,"") ->  | O77: =IFERROR(C77/_data!C77-1,"") ->  | P77: =IFERROR(D77/_data!D77-1,"") ->  | Q77: =IFERROR(E77/_data!E77-1,"") ->  | R77: =IFERROR(F77/_data!F77-1,"") ->  | S77: =IFERROR(G77/_data!G77-1,"") ->  | T77: =IFERROR(H77/_data!H77-1,"") ->  | U77: =IFERROR(I77/_data!I77-1,"") ->  | V77: =IFERROR(J77/_data!J77-1,"") ->  | W77: =IFERROR(K77/_data!K77-1,"") -> 
A78: Summe | B78: 0.0221059277 | C78: 0.02083915471 | D78: 0.02350306101 | E78: 0.02414232485 | F78: 0.0241261018 | G78: 0.02708962873 | H78: 0.02216905991 | I78: 0.02313172553 | J78: 0.02174165408 | K78: 0.02143000361 | M78: Summe | N78: =IFERROR(B78/_data!B78-1,"") -> 0 | O78: =IFERROR(C78/_data!C78-1,"") -> 0 | P78: =IFERROR(D78/_data!D78-1,"") -> 0 | Q78: =IFERROR(E78/_data!E78-1,"") -> 0 | R78: =IFERROR(F78/_data!F78-1,"") -> 0 | S78: =IFERROR(G78/_data!G78-1,"") -> 0 | T78: =IFERROR(H78/_data!H78-1,"") -> 0 | U78: =IFERROR(I78/_data!I78-1,"") -> 0 | V78: =IFERROR(J78/_data!J78-1,"") -> 0 | W78: =IFERROR(K78/_data!K78-1,"") -> 0
A80: Quelle: | B80: P:\KB-Projekte\COMO EAST\WP 2 Training\Tool\Tool-Daten\Energiedaten\Endberechnung
A81: Azerbaijan | M81: Azerbaijan | Y81: Azerbaijan | AK81: Azerbaijan
A82: Energy consumption (MWh /Einwohner and Year) - Residential building (Households) | M82: Test: | N82: =A82 -> Energy consumption (MWh /Einwohner and Year) - Residential building (Households) | Y82: CO2 emission Factor (t /Mwh)
A83: Energieträger | B83: 2000 | C83: 2001 | D83: 2002 | E83: 2003 | F83: 2004 | G83: 2005 | H83: 2006 | I83: 2007 | J83: 2008 | K83: 2009 | M83: Energieträger | N83: 2000 | O83: 2001 | P83: 2002 | Q83: 2003 | R83: 2004 | S83: 2005 | T83: 2006 | U83: 2007 | V83: 2008 | W83: 2009 | Y83: Energieträger | Z83: 2000 | AA83: 2001 | AB83: 2002 | AC83: 2003 | AD83: 2004 | AE83: 2005 | AF83: 2006 | AG83: 2007 | AH83: 2008 | AI83: 2009 | AL83: Year: | AM83: ='DATA-OUTPUT Co2 absolute'!$B$8 -> 0 | AO83: CO2 | AP83: Test
A84: Electricity | B84: 1.401485973 | C84: 1.254061599 | D84: 1.273495854 | E84: 1.466934928 | F84: 1.433081188 | G84: 1.340950512 | H84: 1.625896482 | I84: 0.9712009447 | J84: 0.8493976209 | K84: 0.6535222327 | M84: Electricity | N84: =IFERROR(B84/_data!B84-1,"") -> 0 | O84: =IFERROR(C84/_data!C84-1,"") -> 0 | P84: =IFERROR(D84/_data!D84-1,"") -> 0 | Q84: =IFERROR(E84/_data!E84-1,"") -> 0 | R84: =IFERROR(F84/_data!F84-1,"") -> 0 | S84: =IFERROR(G84/_data!G84-1,"") -> 0 | T84: =IFERROR(H84/_data!H84-1,"") -> 0 | U84: =IFERROR(I84/_data!I84-1,"") -> 0 | V84: =IFERROR(J84/_data!J84-1,"") -> 0 | W84: =IFERROR(K84/_data!K84-1,"") -> 0 | Y84: Electricity | Z84: =_data!Z84 -> 0.874 | AA84: =_data!AA84 -> 0.81 | AB84: =_data!AB84 -> 0.778 | AC84: =_data!AC84 -> 0.737 | AD84: =_data!AD84 -> 0.701 | AE84: =_data!AE84 -> 0.68 | AF84: =_data!AF84 -> 0.713 | AG84: =_data!AG84 -> 0.9 | AH84: =_data!AH84 -> 0.891 | AI84: =_data!AI84 -> 0.891 | AM84: ='DATA-OUTPUT EC per capita'!$B$37 -> 0 | AN84: =IF(AM83=Z83,Z84,IF(AM83=AA83,AA84,IF(AM83=AB83,AB84,IF(AM83=AC83,AC84,IF(AM83=AD83,AD84,IF(AM83=AE83,AE84,IF(AM83=AF83,AF84,IF(AM83=AG83,AG84,IF(AM83=AH83,AH84,IF(AM83=AI83,AI84,"Fehler")))))))))) -> Fehler | AO84: =AN84*AM84 ->  | AP84: =AO84/'DATA-OUTPUT Co2 per capita'!$B$37-1 -> 
A85: Heat and Cold | B85: 0.3446424085 | C85: 0 | D85: 0 | E85: 0 | F85: 0 | G85: 0 | H85: 0.03686439207 | I85: 0.03868230273 | J85: 0.04431309005 | K85: 0.04778008153 | M85: Heat and Cold | N85: =IFERROR(B85/_data!B85-1,"") -> 0 | O85: =IFERROR(C85/_data!C85-1,"") ->  | P85: =IFERROR(D85/_data!D85-1,"") ->  | Q85: =IFERROR(E85/_data!E85-1,"") ->  | R85: =IFERROR(F85/_data!F85-1,"") ->  | S85: =IFERROR(G85/_data!G85-1,"") ->  | T85: =IFERROR(H85/_data!H85-1,"") -> 0 | U85: =IFERROR(I85/_data!I85-1,"") -> 0 | V85: =IFERROR(J85/_data!J85-1,"") -> 0 | W85: =IFERROR(K85/_data!K85-1,"") -> 0 | Y85: Heat and Cold | Z85: =_data!Z85 -> n.a. | AA85: =_data!AA85 -> n.a. | AB85: =_data!AB85 -> n.a. | AC85: =_data!AC85 -> n.a. | AD85: =_data!AD85 -> n.a. | AE85: =_data!AE85 -> n.a. | AF85: =_data!AF85 -> n.a. | AG85: =_data!AG85 -> n.a. | AH85: =_data!AH85 -> n.a. | AI85: =_data!AI85 -> n.a. | AM85: ='DATA-OUTPUT EC per capita'!$C$37 -> 0 | AN85: =IF(AM83=Z83,Z85,IF(AM83=AA83,AA85,IF(AM83=AB83,AB85,IF(AM83=AC83,AC85,IF(AM83=AD83,AD85,IF(AM83=AE83,AE85,IF(AM83=AF83,AF85,IF(AM83=AG83, AG85,IF(AM83=AH83,AH85,IF(AM83=AI83,AI85,"Fehler")))))))))) -> Fehler | AO85: =AM85*AN85 ->  | AP85: =AO85/'DATA-OUTPUT Co2 per capita'!$C$37-1 -> 
A86: natural gas | B86: 3.05218713 | C86: 2.611854939 | D86: 3.071720268 | E86: 3.271793855 | F86: 3.51010253 | G86: 3.57774375 | H86: 3.561637198 | I86: 3.128508113 | J86: 3.806012633 | K86: 3.382916702 | M86: natural gas | N86: =IFERROR(B86/_data!B86-1,"") -> 0 | O86: =IFERROR(C86/_data!C86-1,"") -> 0 | P86: =IFERROR(D86/_data!D86-1,"") -> 0 | Q86: =IFERROR(E86/_data!E86-1,"") -> 0 | R86: =IFERROR(F86/_data!F86-1,"") -> 0 | S86: =IFERROR(G86/_data!G86-1,"") -> 0 | T86: =IFERROR(H86/_data!H86-1,"") -> 0 | U86: =IFERROR(I86/_data!I86-1,"") -> 0 | V86: =IFERROR(J86/_data!J86-1,"") -> 0 | W86: =IFERROR(K86/_data!K86-1,"") -> 0 | Y86: natural gas | Z86: =_data!Z86 -> 0.202 | AA86: =_data!AA86 -> 0.202 | AB86: =_data!AB86 -> 0.202 | AC86: =_data!AC86 -> 0.202 | AD86: =_data!AD86 -> 0.202 | AE86: =_data!AE86 -> 0.202 | AF86: =_data!AF86 -> 0.202 | AG86: =_data!AG86 -> 0.202 | AH86: =_data!AH86 -> 0.202 | AI86: =_data!AI86 -> 0.202 | AM86: ='DATA-OUTPUT EC per capita'!$D$37 -> 0 | AN86: =IF(AM83=Z83,Z86,IF(AM83=AA83,AA86,IF(AM83=AB83,AB86,IF(AM83=AC83,AC86,IF(AM83=AD83,AD86,IF(AM83=AE83,AE86,IF(AM83=AF83,AF86,IF(AM83=AG83, AG86,IF(AM83=AH83,AH86,IF(AM83=AI83,AI86,"Fehler")))))))))) -> Fehler | AO86: =AM86*AN86 ->  | AP86: =AO86/'DATA-OUTPUT Co2 per capita'!$D$37-1 -> 
A87: Liquid gas | B87: 0 | C87: 0 | D87: 0 | E87: 0 | F87: 0 | G87: 0 | H87: 0 | I87: 0 | J87: 0 | K87: 0 | M87: Liquid gas | N87: =IFERROR(B87/_data!B87-1,"") ->  | O87: =IFERROR(C87/_data!C87-1,"") ->  | P87: =IFERROR(D87/_data!D87-1,"") ->  | Q87: =IFERROR(E87/_data!E87-1,"") ->  | R87: =IFERROR(F87/_data!F87-1,"") ->  | S87: =IFERROR(G87/_data!G87-1,"") ->  | T87: =IFERROR(H87/_data!H87-1,"") ->  | U87: =IFERROR(I87/_data!I87-1,"") ->  | V87: =IFERROR(J87/_data!J87-1,"") ->  | W87: =IFERROR(K87/_data!K87-1,"") ->  | Y87: Liquid gas | Z87: =_data!Z87 -> 0.231 | AA87: =_data!AA87 -> 0.231 | AB87: =_data!AB87 -> 0.231 | AC87: =_data!AC87 -> 0.231 | AD87: =_data!AD87 -> 0.231 | AE87: =_data!AE87 -> 0.231 | AF87: =_data!AF87 -> 0.231 | AG87: =_data!AG87 -> 0.231 | AH87: =_data!AH87 -> 0.231 | AI87: =_data!AI87 -> 0.231 | AM87: ='DATA-OUTPUT EC per capita'!$E$37 -> 0 | AN87: =IF(AM83=Z83,Z87,IF(AM83=AA83,AA87,IF(AM83=AB83,AB87,IF(AM83=AC83,AC87,IF(AM83=AD83,AD87,IF(AM83=AE83,AE87,IF(AM83=AF83,AF87,IF(AM83=AG83, AG87,IF(AM83=AH83,AH87,IF(AM83=AI83,AI87,"Fehler")))))))))) -> Fehler | AP87: =AO87/'DATA-OUTPUT Co2 per capita'!$E$37-1 -> 
A88: heating oil / diesel | B88: 0.07002598105 | C88: 0 | D88: 0 | E88: 0 | F88: 0 | G88: 0 | H88: 0 | I88: 0.02201168691 | J88: 0.02019130069 | K88: 0.01583355528 | M88: heating oil / diesel | N88: =IFERROR(B88/_data!B88-1,"") -> 0 | O88: =IFERROR(C88/_data!C88-1,"") ->  | P88: =IFERROR(D88/_data!D88-1,"") ->  | Q88: =IFERROR(E88/_data!E88-1,"") ->  | R88: =IFERROR(F88/_data!F88-1,"") ->  | S88: =IFERROR(G88/_data!G88-1,"") ->  | T88: =IFERROR(H88/_data!H88-1,"") ->  | U88: =IFERROR(I88/_data!I88-1,"") -> 0 | V88: =IFERROR(J88/_data!J88-1,"") -> 0 | W88: =IFERROR(K88/_data!K88-1,"") -> 0 | Y88: heating oil / diesel | Z88: =_data!Z88 -> 0.267 | AA88: =_data!AA88 -> 0.267 | AB88: =_data!AB88 -> 0.267 | AC88: =_data!AC88 -> 0.267 | AD88: =_data!AD88 -> 0.267 | AE88: =_data!AE88 -> 0.267 | AF88: =_data!AF88 -> 0.267 | AG88: =_data!AG88 -> 0.267 | AH88: =_data!AH88 -> 0.267 | AI88: =_data!AI88 -> 0.267 | AM88: ='DATA-OUTPUT EC per capita'!$F$37 -> 0 | AN88: =IF(AM83=Z83,Z88,IF(AM83=AA83,AA88,IF(AM83=AB83,AB88,IF(AM83=AC83,AC88,IF(AM83=AD83,AD88,IF(AM83=AE83,AE88,IF(AM83=AF83,AF88,IF(AM83=AG83, AG88,IF(AM83=AH83,AH88,IF(AM83=AI83,AI88,"Fehler")))))))))) -> Fehler | AP88: =AO88/'DATA-OUTPUT Co2 per capita'!$F$37-1 -> 
A89: gasoline | B89: 0 | C89: 0 | D89: 0 | E89: 0 | F89: 0 | G89: 0 | H89: 0 | I89: 0.01123243435 | J89: 0.01372501287 | K89: 0.005402036508 | M89: gasoline | N89: =IFERROR(B89/_data!B89-1,"") ->  | O89: =IFERROR(C89/_data!C89-1,"") ->  | P89: =IFERROR(D89/_data!D89-1,"") ->  | Q89: =IFERROR(E89/_data!E89-1,"") ->  | R89: =IFERROR(F89/_data!F89-1,"") ->  | S89: =IFERROR(G89/_data!G89-1,"") ->  | T89: =IFERROR(H89/_data!H89-1,"") ->  | U89: =IFERROR(I89/_data!I89-1,"") -> 0 | V89: =IFERROR(J89/_data!J89-1,"") -> 0 | W89: =IFERROR(K89/_data!K89-1,"") -> 0 | Y89: gasoline | Z89: =_data!Z89 -> 0.249 | AA89: =_data!AA89 -> 0.249 | AB89: =_data!AB89 -> 0.249 | AC89: =_data!AC89 -> 0.249 | AD89: =_data!AD89 -> 0.249 | AE89: =_data!AE89 -> 0.249 | AF89: =_data!AF89 -> 0.249 | AG89: =_data!AG89 -> 0.249 | AH89: =_data!AH89 -> 0.249 | AI89: =_data!AI89 -> 0.249 | AM89: ='DATA-OUTPUT EC per capita'!$G$37 -> 0 | AN89: =IF(AM83=Z83,Z89,IF(AM83=AA83,AA89,IF(AM83=AB83,AB89,IF(AM83=AC83,AC89,IF(AM83=AD83,AD89,IF(AM83=AE83,AE89,IF(AM83=AF83,AF89,IF(AM83=AG83, AG89,IF(AM83=AH83,AH89,IF(AM83=AI83,AI89,"Fehler")))))))))) -> Fehler | AP89: =AO89/'DATA-OUTPUT Co2 per capita'!$G$37-1 -> 
A90: Lignite / Coal | B90: 0 | C90: 0 | D90: 0 | E90: 0 | F90: 0 | G90: 0 | H90: 0 | I90: 0 | J90: 0 | K90: 0 | M90: Lignite / Coal | N90: =IFERROR(B90/_data!B90-1,"") ->  | O90: =IFERROR(C90/_data!C90-1,"") ->  | P90: =IFERROR(D90/_data!D90-1,"") ->  | Q90: =IFERROR(E90/_data!E90-1,"") ->  | R90: =IFERROR(F90/_data!F90-1,"") ->  | S90: =IFERROR(G90/_data!G90-1,"") ->  | T90: =IFERROR(H90/_data!H90-1,"") ->  | U90: =IFERROR(I90/_data!I90-1,"") ->  | V90: =IFERROR(J90/_data!J90-1,"") ->  | W90: =IFERROR(K90/_data!K90-1,"") ->  | Y90: Lignite / Coal | Z90: =_data!Z90 -> 0.364 | AA90: =_data!AA90 -> 0.364 | AB90: =_data!AB90 -> 0.364 | AC90: =_data!AC90 -> 0.364 | AD90: =_data!AD90 -> 0.364 | AE90: =_data!AE90 -> 0.364 | AF90: =_data!AF90 -> 0.364 | AG90: =_data!AG90 -> 0.364 | AH90: =_data!AH90 -> 0.364 | AI90: =_data!AI90 -> 0.364 | AM90: ='DATA-OUTPUT EC per capita'!$H$37 -> 0 | AN90: =IF(AM83=Z83,Z90,IF(AM83=AA83,AA90,IF(AM83=AB83,AB90,IF(AM83=AC83,AC90,IF(AM83=AD83,AD90,IF(AM83=AE83,AE90,IF(AM83=AF83,AF90,IF(AM83=AG83, AG90,IF(AM83=AH83,AH90,IF(AM83=AI83,AI90,"Fehler")))))))))) -> Fehler | AP90: =AO90/'DATA-OUTPUT Co2 per capita'!$H$37-1 -> 
A91: other fossil fuels | B91: 0 | C91: 0.04523923026 | D91: 0.04643254602 | E91: 0.08450630103 | F91: 0.09898539965 | G91: 0.09648912007 | H91: 0.09094962805 | I91: 0.1179567457 | J91: 0.1212745941 | K91: 0.08059590101 | M91: other fossil fuels | N91: =IFERROR(B91/_data!B91-1,"") ->  | O91: =IFERROR(C91/_data!C91-1,"") -> 0 | P91: =IFERROR(D91/_data!D91-1,"") -> 0 | Q91: =IFERROR(E91/_data!E91-1,"") -> 0 | R91: =IFERROR(F91/_data!F91-1,"") -> 0 | S91: =IFERROR(G91/_data!G91-1,"") -> 0 | T91: =IFERROR(H91/_data!H91-1,"") -> 0 | U91: =IFERROR(I91/_data!I91-1,"") -> 0 | V91: =IFERROR(J91/_data!J91-1,"") -> 0 | W91: =IFERROR(K91/_data!K91-1,"") -> 0 | Y91: other fossil fuels | Z91: =_data!Z91 -> 0.382 | AA91: =_data!AA91 -> 0.382 | AB91: =_data!AB91 -> 0.382 | AC91: =_data!AC91 -> 0.382 | AD91: =_data!AD91 -> 0.382 | AE91: =_data!AE91 -> 0.382 | AF91: =_data!AF91 -> 0.382 | AG91: =_data!AG91 -> 0.382 | AH91: =_data!AH91 -> 0.382 | AI91: =_data!AI91 -> 0.382 | AM91: ='DATA-OUTPUT EC per capita'!$I$37 -> 0 | AN91: =IF(AM83=Z83,Z91,IF(AM83=AA83,AA91,IF(AM83=AB83,AB91,IF(AM83=AC83,AC91,IF(AM83=AD83,AD91,IF(AM83=AE83,AE91,IF(AM83=AF83,AF91,IF(AM83=AG83, AG91,IF(AM83=AH83,AH91,IF(AM83=AI83,AI91,"Fehler")))))))))) -> Fehler | AP91: =AO91/'DATA-OUTPUT Co2 per capita'!$I$37-1 -> 
A92: Plant oil, biofuel | B92: 0 | C92: 0 | D92: 0 | E92: 0 | F92: 0 | G92: 0 | H92: 0 | I92: 0.08574846857 | J92: 0.07889505088 | K92: 0.06286852833 | M92: Plant oil, biofuel | N92: =IFERROR(B92/_data!B92-1,"") ->  | O92: =IFERROR(C92/_data!C92-1,"") ->  | P92: =IFERROR(D92/_data!D92-1,"") ->  | Q92: =IFERROR(E92/_data!E92-1,"") ->  | R92: =IFERROR(F92/_data!F92-1,"") ->  | S92: =IFERROR(G92/_data!G92-1,"") ->  | T92: =IFERROR(H92/_data!H92-1,"") ->  | U92: =IFERROR(I92/_data!I92-1,"") -> 0 | V92: =IFERROR(J92/_data!J92-1,"") -> 0 | W92: =IFERROR(K92/_data!K92-1,"") -> 0 | Y92: Plant oil, biofuel | Z92: =_data!Z92 -> 0 | AA92: =_data!AA92 -> 0 | AB92: =_data!AB92 -> 0 | AC92: =_data!AC92 -> 0 | AD92: =_data!AD92 -> 0 | AE92: =_data!AE92 -> 0 | AF92: =_data!AF92 -> 0 | AG92: =_data!AG92 -> 0 | AH92: =_data!AH92 -> 0 | AI92: =_data!AI92 -> 0 | AM92: ='DATA-OUTPUT EC per capita'!$J$37 -> 0 | AN92: =IF(AM83=Z83,Z92,IF(AM83=AA83,AA92,IF(AM83=AB83,AB92,IF(AM83=AC83,AC92,IF(AM83=AD83,AD92,IF(AM83=AE83,AE92,IF(AM83=AF83,AF92,IF(AM83=AG83, AG92,IF(AM83=AH83,AH92,IF(AM83=AI83,AI92,"Fehler")))))))))) -> Fehler | AP92: =AO92/'DATA-OUTPUT Co2 per capita'!$J$37-1 -> 
A93: Summe | B93: 4.868341492 | C93: 3.911155768 | D93: 4.391648668 | E93: 4.823235083 | F93: 5.042169118 | G93: 5.015183382 | H93: 5.315347701 | I93: 4.375340696 | J93: 4.933809303 | K93: 4.248919037 | M93: Summe | N93: =IFERROR(B93/_data!B93-1,"") -> 0 | O93: =IFERROR(C93/_data!C93-1,"") -> 0 | P93: =IFERROR(D93/_data!D93-1,"") -> 0 | Q93: =IFERROR(E93/_data!E93-1,"") -> 0 | R93: =IFERROR(F93/_data!F93-1,"") -> 0 | S93: =IFERROR(G93/_data!G93-1,"") -> 0 | T93: =IFERROR(H93/_data!H93-1,"") -> 0 | U93: =IFERROR(I93/_data!I93-1,"") -> 0 | V93: =IFERROR(J93/_data!J93-1,"") -> 0 | W93: =IFERROR(K93/_data!K93-1,"") -> 0 | AL93: Total | AO93: =SUM(AO84:AO92) ->  | AP93: =AO93/'DATA-OUTPUT Co2 per capita'!$K$37-1 -> 
A95: Energy consumption (MWh /Einwohner and Year) - Primary sector (Agriculture) | M95: Test: | N95: =A95 -> Energy consumption (MWh /Einwohner and Year) - Primary sector (Agriculture)
A96: Energieträger | B96: 2000 | C96: 2001 | D96: 2002 | E96: 2003 | F96: 2004 | G96: 2005 | H96: 2006 | I96: 2007 | J96: 2008 | K96: 2009 | M96: Energieträger | N96: 2000 | O96: 2001 | P96: 2002 | Q96: 2003 | R96: 2004 | S96: 2005 | T96: 2006 | U96: 2007 | V96: 2008 | W96: 2009
A97: Electricity | B97: 0.09977580642 | C97: 0.1019509375 | D97: 0.1058498889 | E97: 0 | F97: 0.05862209648 | G97: 0.05944921428 | H97: 0.06010925741 | I97: 0.07108480067 | J97: 0.07303101536 | K97: 0.07112681402 | M97: Electricity | N97: =IFERROR(B97/_data!B97-1,"") -> 0 | O97: =IFERROR(C97/_data!C97-1,"") -> 0 | P97: =IFERROR(D97/_data!D97-1,"") -> 0 | Q97: =IFERROR(E97/_data!E97-1,"") ->  | R97: =IFERROR(F97/_data!F97-1,"") -> 0 | S97: =IFERROR(G97/_data!G97-1,"") -> 0 | T97: =IFERROR(H97/_data!H97-1,"") -> 0 | U97: =IFERROR(I97/_data!I97-1,"") -> 0 | V97: =IFERROR(J97/_data!J97-1,"") -> 0 | W97: =IFERROR(K97/_data!K97-1,"") -> 0
A98: Heat and Cold | B98: 0 | C98: 0 | D98: 0 | E98: 0 | F98: 0 | G98: 0 | H98: 0 | I98: 0.0002913311503 | J98: 0.0004437648503 | K98: 0.04495487853 | M98: Heat and Cold | N98: =IFERROR(B98/_data!B98-1,"") ->  | O98: =IFERROR(C98/_data!C98-1,"") ->  | P98: =IFERROR(D98/_data!D98-1,"") ->  | Q98: =IFERROR(E98/_data!E98-1,"") ->  | R98: =IFERROR(F98/_data!F98-1,"") ->  | S98: =IFERROR(G98/_data!G98-1,"") ->  | T98: =IFERROR(H98/_data!H98-1,"") ->  | U98: =IFERROR(I98/_data!I98-1,"") -> 0 | V98: =IFERROR(J98/_data!J98-1,"") -> 0 | W98: =IFERROR(K98/_data!K98-1,"") -> 0
A99: natural gas | B99: 0.005832622375 | C99: 0.002568465003 | D99: 0.007682104978 | E99: 0.02911334842 | F99: 0.03915942669 | G99: 0.03991968398 | H99: 0.04910887044 | I99: 0.02016658963 | J99: 0.01480272751 | K99: 0.007264807718 | M99: natural gas | N99: =IFERROR(B99/_data!B99-1,"") -> 0 | O99: =IFERROR(C99/_data!C99-1,"") -> 0 | P99: =IFERROR(D99/_data!D99-1,"") -> 0 | Q99: =IFERROR(E99/_data!E99-1,"") -> 0 | R99: =IFERROR(F99/_data!F99-1,"") -> 0 | S99: =IFERROR(G99/_data!G99-1,"") -> 0 | T99: =IFERROR(H99/_data!H99-1,"") -> 0 | U99: =IFERROR(I99/_data!I99-1,"") -> 0 | V99: =IFERROR(J99/_data!J99-1,"") -> 0 | W99: =IFERROR(K99/_data!K99-1,"") -> 0
A100: Liquid gas | B100: 0 | C100: 0 | D100: 0 | E100: 0 | F100: 0 | G100: 0 | H100: 0 | I100: 0 | J100: 0 | K100: 0 | M100: Liquid gas | N100: =IFERROR(B100/_data!B100-1,"") ->  | O100: =IFERROR(C100/_data!C100-1,"") ->  | P100: =IFERROR(D100/_data!D100-1,"") ->  | Q100: =IFERROR(E100/_data!E100-1,"") ->  | R100: =IFERROR(F100/_data!F100-1,"") ->  | S100: =IFERROR(G100/_data!G100-1,"") ->  | T100: =IFERROR(H100/_data!H100-1,"") ->  | U100: =IFERROR(I100/_data!I100-1,"") ->  | V100: =IFERROR(J100/_data!J100-1,"") ->  | W100: =IFERROR(K100/_data!K100-1,"") -> 
A101: heating oil / diesel | B101: 0.1351166663 | C101: 0.1091426395 | D101: 0.08667861812 | E101: 0.08028941974 | F101: 0.1136994455 | G101: 0.02952600175 | H101: 0.03467086253 | I101: 0.2462071921 | J101: 0.3003337112 | K101: 0.3936035566 | M101: heating oil / diesel | N101: =IFERROR(B101/_data!B101-1,"") -> 0 | O101: =IFERROR(C101/_data!C101-1,"") -> 0 | P101: =IFERROR(D101/_data!D101-1,"") -> 0 | Q101: =IFERROR(E101/_data!E101-1,"") -> 0 | R101: =IFERROR(F101/_data!F101-1,"") -> 0 | S101: =IFERROR(G101/_data!G101-1,"") -> 0 | T101: =IFERROR(H101/_data!H101-1,"") -> 0 | U101: =IFERROR(I101/_data!I101-1,"") -> 0 | V101: =IFERROR(J101/_data!J101-1,"") -> 0 | W101: =IFERROR(K101/_data!K101-1,"") -> 0
A102: gasoline | B102: 0 | C102: 0 | D102: 0 | E102: 0 | F102: 0.002942809179 | G102: 0 | H102: 0.001407787619 | I102: 0 | J102: 0 | K102: 0 | M102: gasoline | N102: =IFERROR(B102/_data!B102-1,"") ->  | O102: =IFERROR(C102/_data!C102-1,"") ->  | P102: =IFERROR(D102/_data!D102-1,"") ->  | Q102: =IFERROR(E102/_data!E102-1,"") ->  | R102: =IFERROR(F102/_data!F102-1,"") -> 0 | S102: =IFERROR(G102/_data!G102-1,"") ->  | T102: =IFERROR(H102/_data!H102-1,"") -> 0 | U102: =IFERROR(I102/_data!I102-1,"") ->  | V102: =IFERROR(J102/_data!J102-1,"") ->  | W102: =IFERROR(K102/_data!K102-1,"") -> 
A103: Lignite / Coal | B103: 0 | C103: 0 | D103: 0 | E103: 0 | F103: 0 | G103: 0 | H103: 0 | I103: 0 | J103: 0 | K103: 0 | M103: Lignite / Coal | N103: =IFERROR(B103/_data!B103-1,"") ->  | O103: =IFERROR(C103/_data!C103-1,"") ->  | P103: =IFERROR(D103/_data!D103-1,"") ->  | Q103: =IFERROR(E103/_data!E103-1,"") ->  | R103: =IFERROR(F103/_data!F103-1,"") ->  | S103: =IFERROR(G103/_data!G103-1,"") ->  | T103: =IFERROR(H103/_data!H103-1,"") ->  | U103: =IFERROR(I103/_data!I103-1,"") ->  | V103: =IFERROR(J103/_data!J103-1,"") ->  | W103: =IFERROR(K103/_data!K103-1,"") -> 
A104: other fossil fuels | B104: 0 | C104: 0 | D104: 0 | E104: 0 | F104: 0 | G104: 0 | H104: 0 | I104: 0 | J104: 0 | K104: 0 | M104: other fossil fuels | N104: =IFERROR(B104/_data!B104-1,"") ->  | O104: =IFERROR(C104/_data!C104-1,"") ->  | P104: =IFERROR(D104/_data!D104-1,"") ->  | Q104: =IFERROR(E104/_data!E104-1,"") ->  | R104: =IFERROR(F104/_data!F104-1,"") ->  | S104: =IFERROR(G104/_data!G104-1,"") ->  | T104: =IFERROR(H104/_data!H104-1,"") ->  | U104: =IFERROR(I104/_data!I104-1,"") ->  | V104: =IFERROR(J104/_data!J104-1,"") ->  | W104: =IFERROR(K104/_data!K104-1,"") -> 
A105: Plant oil, biofuel | B105: 0 | C105: 0 | D105: 0 | E105: 0 | F105: 0 | G105: 0 | H105: 0 | I105: 0.0005502921728 | J105: 0.001014319658 | K105: 0.02117349942 | M105: Plant oil, biofuel | N105: =IFERROR(B105/_data!B105-1,"") ->  | O105: =IFERROR(C105/_data!C105-1,"") ->  | P105: =IFERROR(D105/_data!D105-1,"") ->  | Q105: =IFERROR(E105/_data!E105-1,"") ->  | R105: =IFERROR(F105/_data!F105-1,"") ->  | S105: =IFERROR(G105/_data!G105-1,"") ->  | T105: =IFERROR(H105/_data!H105-1,"") ->  | U105: =IFERROR(I105/_data!I105-1,"") -> 0 | V105: =IFERROR(J105/_data!J105-1,"") -> 0 | W105: =IFERROR(K105/_data!K105-1,"") -> 0
A106: Summe | B106: 0.240725095 | C106: 0.2136620421 | D106: 0.200210612 | E106: 0.1094027682 | F106: 0.2144237779 | G106: 0.1288949 | H106: 0.145296778 | I106: 0.3383002057 | J106: 0.3896255385 | K106: 0.5381235563 | M106: Summe | N106: =IFERROR(B106/_data!B106-1,"") -> 0 | O106: =IFERROR(C106/_data!C106-1,"") -> 0 | P106: =IFERROR(D106/_data!D106-1,"") -> 0 | Q106: =IFERROR(E106/_data!E106-1,"") -> 0 | R106: =IFERROR(F106/_data!F106-1,"") -> 0 | S106: =IFERROR(G106/_data!G106-1,"") -> 0 | T106: =IFERROR(H106/_data!H106-1,"") -> 0 | U106: =IFERROR(I106/_data!I106-1,"") -> 0 | V106: =IFERROR(J106/_data!J106-1,"") -> 0 | W106: =IFERROR(K106/_data!K106-1,"") -> 0
A108: Energy consumption (MWh /Einwohner and Year) - Secondary sector (Industrie) | M108: Test: | N108: =A108 -> Energy consumption (MWh /Einwohner and Year) - Secondary sector (Industrie)
A109: Energieträger | B109: 2000 | C109: 2001 | D109: 2002 | E109: 2003 | F109: 2004 | G109: 2005 | H109: 2006 | I109: 2007 | J109: 2008 | K109: 2009 | M109: Energieträger | N109: 2000 | O109: 2001 | P109: 2002 | Q109: 2003 | R109: 2004 | S109: 2005 | T109: 2006 | U109: 2007 | V109: 2008 | W109: 2009
A110: Electricity | B110: 0.09194145566 | C110: 0.2270865525 | D110: 0.2551410618 | E110: 0.5331487351 | F110: 0.474327334 | G110: 0.5194193043 | H110: 0.5433405425 | I110: 0.3450008222 | J110: 0.3620170254 | K110: 0.2308594453 | M110: Electricity | N110: =IFERROR(B110/_data!B110-1,"") -> 0 | O110: =IFERROR(C110/_data!C110-1,"") -> 0 | P110: =IFERROR(D110/_data!D110-1,"") -> 0 | Q110: =IFERROR(E110/_data!E110-1,"") -> 0 | R110: =IFERROR(F110/_data!F110-1,"") -> 0 | S110: =IFERROR(G110/_data!G110-1,"") -> 0 | T110: =IFERROR(H110/_data!H110-1,"") -> 0 | U110: =IFERROR(I110/_data!I110-1,"") -> 0 | V110: =IFERROR(J110/_data!J110-1,"") -> 0 | W110: =IFERROR(K110/_data!K110-1,"") -> 0
A111: Heat and Cold | B111: 0.1475066747 | C111: 0.4645154574 | D111: 0.5014443037 | E111: 0.539760805 | F111: 0.6075563314 | G111: 0.5423582272 | H111: 0.5520819215 | I111: 0.4410429914 | J111: 0.5354973843 | K111: 0.2833585472 | M111: Heat and Cold | N111: =IFERROR(B111/_data!B111-1,"") -> 0 | O111: =IFERROR(C111/_data!C111-1,"") -> 0 | P111: =IFERROR(D111/_data!D111-1,"") -> 0 | Q111: =IFERROR(E111/_data!E111-1,"") -> 0 | R111: =IFERROR(F111/_data!F111-1,"") -> 0 | S111: =IFERROR(G111/_data!G111-1,"") -> 0 | T111: =IFERROR(H111/_data!H111-1,"") -> 0 | U111: =IFERROR(I111/_data!I111-1,"") -> 0 | V111: =IFERROR(J111/_data!J111-1,"") -> 0 | W111: =IFERROR(K111/_data!K111-1,"") -> 0
A112: natural gas | B112: 1.558172988 | C112: 1.239438472 | D112: 1.141812338 | E112: 1.001222558 | F112: 0.5036551028 | G112: 0.5079332924 | H112: 1.090773491 | I112: 0.4628280874 | J112: 0.6067533403 | K112: 0.3949385426 | M112: natural gas | N112: =IFERROR(B112/_data!B112-1,"") -> 0 | O112: =IFERROR(C112/_data!C112-1,"") -> 0 | P112: =IFERROR(D112/_data!D112-1,"") -> 0 | Q112: =IFERROR(E112/_data!E112-1,"") -> 0 | R112: =IFERROR(F112/_data!F112-1,"") -> 0 | S112: =IFERROR(G112/_data!G112-1,"") -> 0 | T112: =IFERROR(H112/_data!H112-1,"") -> 0 | U112: =IFERROR(I112/_data!I112-1,"") -> 0 | V112: =IFERROR(J112/_data!J112-1,"") -> 0 | W112: =IFERROR(K112/_data!K112-1,"") -> 0
A113: Liquid gas | B113: 0 | C113: 0 | D113: 0 | E113: 0 | F113: 0 | G113: 0 | H113: 0 | I113: 0 | J113: 0 | K113: 0 | M113: Liquid gas | N113: =IFERROR(B113/_data!B113-1,"") ->  | O113: =IFERROR(C113/_data!C113-1,"") ->  | P113: =IFERROR(D113/_data!D113-1,"") ->  | Q113: =IFERROR(E113/_data!E113-1,"") ->  | R113: =IFERROR(F113/_data!F113-1,"") ->  | S113: =IFERROR(G113/_data!G113-1,"") ->  | T113: =IFERROR(H113/_data!H113-1,"") ->  | U113: =IFERROR(I113/_data!I113-1,"") ->  | V113: =IFERROR(J113/_data!J113-1,"") ->  | W113: =IFERROR(K113/_data!K113-1,"") -> 
A114: heating oil / diesel | B114: 0.4447633405 | C114: 0.1731830336 | D114: 0.008667861812 | E114: 0.1089642125 | F114: 0.1065765097 | G114: 0.03515315455 | H114: 0.1060424209 | I114: 0.08571609844 | J114: 0.09547283779 | K114: 0.133436511 | M114: heating oil / diesel | N114: =IFERROR(B114/_data!B114-1,"") -> 0 | O114: =IFERROR(C114/_data!C114-1,"") -> 0 | P114: =IFERROR(D114/_data!D114-1,"") -> 0 | Q114: =IFERROR(E114/_data!E114-1,"") -> 0 | R114: =IFERROR(F114/_data!F114-1,"") -> 0 | S114: =IFERROR(G114/_data!G114-1,"") -> 0 | T114: =IFERROR(H114/_data!H114-1,"") -> 0 | U114: =IFERROR(I114/_data!I114-1,"") -> 0 | V114: =IFERROR(J114/_data!J114-1,"") -> 0 | W114: =IFERROR(K114/_data!K114-1,"") -> 0
A115: gasoline | B115: 0.7142373967 | C115: 0.500234244 | D115: 0.3795163809 | E115: 0.4600111461 | F115: 0.03675167372 | G115: 0.3973100886 | H115: 0.02121503203 | I115: 0.03790541967 | J115: 0.03835396206 | K115: 0.005370990321 | M115: gasoline | N115: =IFERROR(B115/_data!B115-1,"") -> 0 | O115: =IFERROR(C115/_data!C115-1,"") -> 0 | P115: =IFERROR(D115/_data!D115-1,"") -> 0 | Q115: =IFERROR(E115/_data!E115-1,"") -> 0 | R115: =IFERROR(F115/_data!F115-1,"") -> 0 | S115: =IFERROR(G115/_data!G115-1,"") -> 0 | T115: =IFERROR(H115/_data!H115-1,"") -> 0 | U115: =IFERROR(I115/_data!I115-1,"") -> 0 | V115: =IFERROR(J115/_data!J115-1,"") -> 0 | W115: =IFERROR(K115/_data!K115-1,"") -> 0
A116: Lignite / Coal | B116: 0 | C116: 0 | D116: 0 | E116: 0 | F116: 0 | G116: 0 | H116: 0 | I116: 0 | J116: 0 | K116: 0 | M116: Lignite / Coal | N116: =IFERROR(B116/_data!B116-1,"") ->  | O116: =IFERROR(C116/_data!C116-1,"") ->  | P116: =IFERROR(D116/_data!D116-1,"") ->  | Q116: =IFERROR(E116/_data!E116-1,"") ->  | R116: =IFERROR(F116/_data!F116-1,"") ->  | S116: =IFERROR(G116/_data!G116-1,"") ->  | T116: =IFERROR(H116/_data!H116-1,"") ->  | U116: =IFERROR(I116/_data!I116-1,"") ->  | V116: =IFERROR(J116/_data!J116-1,"") ->  | W116: =IFERROR(K116/_data!K116-1,"") -> 
A117: other fossil fuels | B117: 0.05028479763 | C117: 0.02808188403 | D117: 0.03871644943 | E117: 0.02766274126 | F117: 0.02892647659 | G117: 0.01810619166 | H117: 0.01342309125 | I117: 0.002945681631 | J117: 0.001458084508 | K117: 0.008475609004 | M117: other fossil fuels | N117: =IFERROR(B117/_data!B117-1,"") -> 0 | O117: =IFERROR(C117/_data!C117-1,"") -> 0 | P117: =IFERROR(D117/_data!D117-1,"") -> 0 | Q117: =IFERROR(E117/_data!E117-1,"") -> 0 | R117: =IFERROR(F117/_data!F117-1,"") -> 0 | S117: =IFERROR(G117/_data!G117-1,"") -> 0 | T117: =IFERROR(H117/_data!H117-1,"") -> 0 | U117: =IFERROR(I117/_data!I117-1,"") -> 0 | V117: =IFERROR(J117/_data!J117-1,"") -> 0 | W117: =IFERROR(K117/_data!K117-1,"") -> 0
A118: Plant oil, biofuel | B118: 0 | C118: 0 | D118: 0 | E118: 0 | F118: 0 | G118: 0 | H118: 0 | I118: 9.711038343e-05 | J118: 0.0001267899572 | K118: 3.104618683e-05 | M118: Plant oil, biofuel | N118: =IFERROR(B118/_data!B118-1,"") ->  | O118: =IFERROR(C118/_data!C118-1,"") ->  | P118: =IFERROR(D118/_data!D118-1,"") ->  | Q118: =IFERROR(E118/_data!E118-1,"") ->  | R118: =IFERROR(F118/_data!F118-1,"") ->  | S118: =IFERROR(G118/_data!G118-1,"") ->  | T118: =IFERROR(H118/_data!H118-1,"") ->  | U118: =IFERROR(I118/_data!I118-1,"") -> 0 | V118: =IFERROR(J118/_data!J118-1,"") -> 0 | W118: =IFERROR(K118/_data!K118-1,"") -> 0
A119: Summe | B119: 3.006906653 | C119: 2.632539643 | D119: 2.325298395 | E119: 2.670770198 | F119: 1.757793428 | G119: 2.020280259 | H119: 2.326876499 | I119: 1.375536211 | J119: 1.639679424 | K119: 1.056470692 | M119: Summe | N119: =IFERROR(B119/_data!B119-1,"") -> 0 | O119: =IFERROR(C119/_data!C119-1,"") -> 0 | P119: =IFERROR(D119/_data!D119-1,"") -> 0 | Q119: =IFERROR(E119/_data!E119-1,"") -> 0 | R119: =IFERROR(F119/_data!F119-1,"") -> 0 | S119: =IFERROR(G119/_data!G119-1,"") -> 0 | T119: =IFERROR(H119/_data!H119-1,"") -> 0 | U119: =IFERROR(I119/_data!I119-1,"") -> 0 | V119: =IFERROR(J119/_data!J119-1,"") -> 0 | W119: =IFERROR(K119/_data!K119-1,"") -> 0
A121: Energy consumption (MWh /Einwohner and Year) - Tertiary sector (Services) | M121: Test: | N121: =A121 -> Energy consumption (MWh /Einwohner and Year) - Tertiary sector (Services)
A122: Energieträger | B122: 2000 | C122: 2001 | D122: 2002 | E122: 2003 | F122: 2004 | G122: 2005 | H122: 2006 | I122: 2007 | J122: 2008 | K122: 2009 | M122: Energieträger | N122: 2000 | O122: 2001 | P122: 2002 | Q122: 2003 | R122: 2004 | S122: 2005 | T122: 2006 | U122: 2007 | V122: 2008 | W122: 2009
A123: Electricity | B123: 0.1995516128 | C123: 0.1947923858 | D123: 0.1855262344 | E123: 0.07141710151 | F123: 0.1784078065 | G123: 0.17861245 | H123: 0.129647418 | I123: 0.4144347464 | J123: 0.4455716072 | K123: 0.3802536963 | M123: Electricity | N123: =IFERROR(B123/_data!B123-1,"") -> 0 | O123: =IFERROR(C123/_data!C123-1,"") -> 0 | P123: =IFERROR(D123/_data!D123-1,"") -> 0 | Q123: =IFERROR(E123/_data!E123-1,"") -> 0 | R123: =IFERROR(F123/_data!F123-1,"") -> 0 | S123: =IFERROR(G123/_data!G123-1,"") -> 0 | T123: =IFERROR(H123/_data!H123-1,"") -> 0 | U123: =IFERROR(I123/_data!I123-1,"") -> 0 | V123: =IFERROR(J123/_data!J123-1,"") -> 0 | W123: =IFERROR(K123/_data!K123-1,"") -> 0
A124: Heat and Cold | B124: 0 | C124: 0 | D124: 0 | E124: 0 | F124: 0 | G124: 0 | H124: 0 | I124: 0 | J124: 0 | K124: 0 | M124: Heat and Cold | N124: =IFERROR(B124/_data!B124-1,"") ->  | O124: =IFERROR(C124/_data!C124-1,"") ->  | P124: =IFERROR(D124/_data!D124-1,"") ->  | Q124: =IFERROR(E124/_data!E124-1,"") ->  | R124: =IFERROR(F124/_data!F124-1,"") ->  | S124: =IFERROR(G124/_data!G124-1,"") ->  | T124: =IFERROR(H124/_data!H124-1,"") ->  | U124: =IFERROR(I124/_data!I124-1,"") ->  | V124: =IFERROR(J124/_data!J124-1,"") ->  | W124: =IFERROR(K124/_data!K124-1,"") -> 
A125: natural gas | B125: 0.5227617225 | C125: 1.075501912 | D125: 0.8137592619 | E125: 0.3858952405 | F125: 0.02608399045 | G125: 0.02747374602 | H125: 0.04432894038 | I125: 0.04088347142 | J125: 0.05765773305 | K125: 0.05187817819 | M125: natural gas | N125: =IFERROR(B125/_data!B125-1,"") -> 0 | O125: =IFERROR(C125/_data!C125-1,"") -> 0 | P125: =IFERROR(D125/_data!D125-1,"") -> 0 | Q125: =IFERROR(E125/_data!E125-1,"") -> 0 | R125: =IFERROR(F125/_data!F125-1,"") -> 0 | S125: =IFERROR(G125/_data!G125-1,"") -> 0 | T125: =IFERROR(H125/_data!H125-1,"") -> 0 | U125: =IFERROR(I125/_data!I125-1,"") -> 0 | V125: =IFERROR(J125/_data!J125-1,"") -> 0 | W125: =IFERROR(K125/_data!K125-1,"") -> 0
A126: Liquid gas | B126: 0 | C126: 0 | D126: 0 | E126: 0 | F126: 0 | G126: 0 | H126: 0 | I126: 0 | J126: 0 | K126: 0 | M126: Liquid gas | N126: =IFERROR(B126/_data!B126-1,"") ->  | O126: =IFERROR(C126/_data!C126-1,"") ->  | P126: =IFERROR(D126/_data!D126-1,"") ->  | Q126: =IFERROR(E126/_data!E126-1,"") ->  | R126: =IFERROR(F126/_data!F126-1,"") ->  | S126: =IFERROR(G126/_data!G126-1,"") ->  | T126: =IFERROR(H126/_data!H126-1,"") ->  | U126: =IFERROR(I126/_data!I126-1,"") ->  | V126: =IFERROR(J126/_data!J126-1,"") ->  | W126: =IFERROR(K126/_data!K126-1,"") -> 
A127: heating oil / diesel | B127: 0.01860226899 | C127: 0.1149644935 | D127: 0.2007884695 | E127: 0.07168698191 | F127: 0.06393921761 | G127: 0.4712243956 | H127: 0.00677702412 | I127: 0.01498736918 | J127: 0.01597553461 | K127: 0.01695121801 | M127: heating oil / diesel | N127: =IFERROR(B127/_data!B127-1,"") -> 0 | O127: =IFERROR(C127/_data!C127-1,"") -> 0 | P127: =IFERROR(D127/_data!D127-1,"") -> 0 | Q127: =IFERROR(E127/_data!E127-1,"") -> 0 | R127: =IFERROR(F127/_data!F127-1,"") -> 0 | S127: =IFERROR(G127/_data!G127-1,"") -> 0 | T127: =IFERROR(H127/_data!H127-1,"") -> 0 | U127: =IFERROR(I127/_data!I127-1,"") -> 0 | V127: =IFERROR(J127/_data!J127-1,"") -> 0 | W127: =IFERROR(K127/_data!K127-1,"") -> 0
A128: gasoline | B128: 0.2609149417 | C128: 0.1198274539 | D128: 0.2100001972 | E128: 0.2084151408 | F128: 0.2065985808 | G128: 0.1687483822 | H128: 0.0339505991 | I128: 0.009808148726 | J128: 0.005515363139 | K128: 0.002701018254 | M128: gasoline | N128: =IFERROR(B128/_data!B128-1,"") -> 0 | O128: =IFERROR(C128/_data!C128-1,"") -> 0 | P128: =IFERROR(D128/_data!D128-1,"") -> 0 | Q128: =IFERROR(E128/_data!E128-1,"") -> 0 | R128: =IFERROR(F128/_data!F128-1,"") -> 0 | S128: =IFERROR(G128/_data!G128-1,"") -> 0 | T128: =IFERROR(H128/_data!H128-1,"") -> 0 | U128: =IFERROR(I128/_data!I128-1,"") -> 0 | V128: =IFERROR(J128/_data!J128-1,"") -> 0 | W128: =IFERROR(K128/_data!K128-1,"") -> 0
A129: Lignite / Coal | B129: 0 | C129: 0 | D129: 0 | E129: 0 | F129: 0 | G129: 0 | H129: 0 | I129: 0 | J129: 0 | K129: 0 | M129: Lignite / Coal | N129: =IFERROR(B129/_data!B129-1,"") ->  | O129: =IFERROR(C129/_data!C129-1,"") ->  | P129: =IFERROR(D129/_data!D129-1,"") ->  | Q129: =IFERROR(E129/_data!E129-1,"") ->  | R129: =IFERROR(F129/_data!F129-1,"") ->  | S129: =IFERROR(G129/_data!G129-1,"") ->  | T129: =IFERROR(H129/_data!H129-1,"") ->  | U129: =IFERROR(I129/_data!I129-1,"") ->  | V129: =IFERROR(J129/_data!J129-1,"") ->  | W129: =IFERROR(K129/_data!K129-1,"") -> 
A130: other fossil fuels | B130: 0 | C130: 0 | D130: 0 | E130: 0 | F130: 0 | G130: 0 | H130: 0 | I130: 0.01472840815 | J130: 0.002884471527 | K130: 0 | M130: other fossil fuels | N130: =IFERROR(B130/_data!B130-1,"") ->  | O130: =IFERROR(C130/_data!C130-1,"") ->  | P130: =IFERROR(D130/_data!D130-1,"") ->  | Q130: =IFERROR(E130/_data!E130-1,"") ->  | R130: =IFERROR(F130/_data!F130-1,"") ->  | S130: =IFERROR(G130/_data!G130-1,"") ->  | T130: =IFERROR(H130/_data!H130-1,"") ->  | U130: =IFERROR(I130/_data!I130-1,"") -> 0 | V130: =IFERROR(J130/_data!J130-1,"") -> 0 | W130: =IFERROR(K130/_data!K130-1,"") -> 
A131: Plant oil, biofuel | B131: 0.008421064257 | C131: 0.00821908801 | D131: 0.008157987588 | E131: 0.006240984308 | F131: 0.01237317496 | G131: 0.02178039142 | H131: 0.01944711269 | I131: 0.02110532333 | J131: 0.0225369149 | K131: 0.02117349942 | M131: Plant oil, biofuel | N131: =IFERROR(B131/_data!B131-1,"") -> 0 | O131: =IFERROR(C131/_data!C131-1,"") -> 0 | P131: =IFERROR(D131/_data!D131-1,"") -> 0 | Q131: =IFERROR(E131/_data!E131-1,"") -> 0 | R131: =IFERROR(F131/_data!F131-1,"") -> 0 | S131: =IFERROR(G131/_data!G131-1,"") -> 0 | T131: =IFERROR(H131/_data!H131-1,"") -> 0 | U131: =IFERROR(I131/_data!I131-1,"") -> 0 | V131: =IFERROR(J131/_data!J131-1,"") -> 0 | W131: =IFERROR(K131/_data!K131-1,"") -> 0
A132: Summe | B132: 1.01025161 | C132: 1.513305334 | D132: 1.41823215 | E132: 0.7436554491 | F132: 0.4874027703 | G132: 0.8678393653 | H132: 0.2341510942 | I132: 0.5159474672 | J132: 0.5501416244 | K132: 0.4729576101 | M132: Summe | N132: =IFERROR(B132/_data!B132-1,"") -> 0 | O132: =IFERROR(C132/_data!C132-1,"") -> 0 | P132: =IFERROR(D132/_data!D132-1,"") -> 0 | Q132: =IFERROR(E132/_data!E132-1,"") -> 0 | R132: =IFERROR(F132/_data!F132-1,"") -> 0 | S132: =IFERROR(G132/_data!G132-1,"") -> 0 | T132: =IFERROR(H132/_data!H132-1,"") -> 0 | U132: =IFERROR(I132/_data!I132-1,"") -> 0 | V132: =IFERROR(J132/_data!J132-1,"") -> 0 | W132: =IFERROR(K132/_data!K132-1,"") -> 0
A134: Energy consumption (MWh /Einwohner and Year) - Road | M134: Test: | N134: =A134 -> Energy consumption (MWh /Einwohner and Year) - Road
A135: Energieträger | B135: 2000 | C135: 2001 | D135: 2002 | E135: 2003 | F135: 2004 | G135: 2005 | H135: 2006 | I135: 2007 | J135: 2008 | K135: 2009 | M135: Energieträger | N135: 2000 | O135: 2001 | P135: 2002 | Q135: 2003 | R135: 2004 | S135: 2005 | T135: 2006 | U135: 2007 | V135: 2008 | W135: 2009
A136: Electricity | B136: 0 | C136: 0 | D136: 0 | E136: 0 | F136: 0 | G136: 0 | H136: 0 | I136: 0 | J136: 0 | K136: 0 | M136: Electricity | N136: =IFERROR(B136/_data!B136-1,"") ->  | O136: =IFERROR(C136/_data!C136-1,"") ->  | P136: =IFERROR(D136/_data!D136-1,"") ->  | Q136: =IFERROR(E136/_data!E136-1,"") ->  | R136: =IFERROR(F136/_data!F136-1,"") ->  | S136: =IFERROR(G136/_data!G136-1,"") ->  | T136: =IFERROR(H136/_data!H136-1,"") ->  | U136: =IFERROR(I136/_data!I136-1,"") ->  | V136: =IFERROR(J136/_data!J136-1,"") ->  | W136: =IFERROR(K136/_data!K136-1,"") -> 
A137: Heat and Cold | B137: 0 | C137: 0 | D137: 0 | E137: 0 | F137: 0 | G137: 0 | H137: 0 | I137: 0 | J137: 0 | K137: 0 | M137: Heat and Cold | N137: =IFERROR(B137/_data!B137-1,"") ->  | O137: =IFERROR(C137/_data!C137-1,"") ->  | P137: =IFERROR(D137/_data!D137-1,"") ->  | Q137: =IFERROR(E137/_data!E137-1,"") ->  | R137: =IFERROR(F137/_data!F137-1,"") ->  | S137: =IFERROR(G137/_data!G137-1,"") ->  | T137: =IFERROR(H137/_data!H137-1,"") ->  | U137: =IFERROR(I137/_data!I137-1,"") ->  | V137: =IFERROR(J137/_data!J137-1,"") ->  | W137: =IFERROR(K137/_data!K137-1,"") -> 
A138: natural gas | B138: 0 | C138: 0 | D138: 0 | E138: 0 | F138: 0 | G138: 0 | H138: 0 | I138: 0 | J138: 0 | K138: 0 | M138: natural gas | N138: =IFERROR(B138/_data!B138-1,"") ->  | O138: =IFERROR(C138/_data!C138-1,"") ->  | P138: =IFERROR(D138/_data!D138-1,"") ->  | Q138: =IFERROR(E138/_data!E138-1,"") ->  | R138: =IFERROR(F138/_data!F138-1,"") ->  | S138: =IFERROR(G138/_data!G138-1,"") ->  | T138: =IFERROR(H138/_data!H138-1,"") ->  | U138: =IFERROR(I138/_data!I138-1,"") ->  | V138: =IFERROR(J138/_data!J138-1,"") ->  | W138: =IFERROR(K138/_data!K138-1,"") -> 
A139: Liquid gas | B139: 0 | C139: 0 | D139: 0 | E139: 0 | F139: 0 | G139: 0 | H139: 0 | I139: 0 | J139: 0 | K139: 0 | M139: Liquid gas | N139: =IFERROR(B139/_data!B139-1,"") ->  | O139: =IFERROR(C139/_data!C139-1,"") ->  | P139: =IFERROR(D139/_data!D139-1,"") ->  | Q139: =IFERROR(E139/_data!E139-1,"") ->  | R139: =IFERROR(F139/_data!F139-1,"") ->  | S139: =IFERROR(G139/_data!G139-1,"") ->  | T139: =IFERROR(H139/_data!H139-1,"") ->  | U139: =IFERROR(I139/_data!I139-1,"") ->  | V139: =IFERROR(J139/_data!J139-1,"") ->  | W139: =IFERROR(K139/_data!K139-1,"") -> 
A140: heating oil / diesel | B140: 0.5045390917 | C140: 0.3769136777 | D140: 0.4940341317 | E140: 0.467365387 | F140: 0.7517539812 | G140: 0.5654626546 | H140: 0.925211119 | I140: 0.4498152961 | J140: 0.724699698 | K140: 0.4248360206 | M140: heating oil / diesel | N140: =IFERROR(B140/_data!B140-1,"") -> 0 | O140: =IFERROR(C140/_data!C140-1,"") -> 0 | P140: =IFERROR(D140/_data!D140-1,"") -> 0 | Q140: =IFERROR(E140/_data!E140-1,"") -> 0 | R140: =IFERROR(F140/_data!F140-1,"") -> 0 | S140: =IFERROR(G140/_data!G140-1,"") -> 0 | T140: =IFERROR(H140/_data!H140-1,"") -> 0 | U140: =IFERROR(I140/_data!I140-1,"") -> 0 | V140: =IFERROR(J140/_data!J140-1,"") -> 0 | W140: =IFERROR(K140/_data!K140-1,"") -> 0
A141: gasoline | B141: 0.4870412246 | C141: 0.5946852637 | D141: 0.5947512868 | E141: 0.6688648425 | F141: 0.6409639038 | G141: 0.83818096 | H141: 1.037703172 | I141: 1.10427454 | J141: 1.309867048 | K141: 1.336165789 | M141: gasoline | N141: =IFERROR(B141/_data!B141-1,"") -> 0 | O141: =IFERROR(C141/_data!C141-1,"") -> 0 | P141: =IFERROR(D141/_data!D141-1,"") -> 0 | Q141: =IFERROR(E141/_data!E141-1,"") -> 0 | R141: =IFERROR(F141/_data!F141-1,"") -> 0 | S141: =IFERROR(G141/_data!G141-1,"") -> 0 | T141: =IFERROR(H141/_data!H141-1,"") -> 0 | U141: =IFERROR(I141/_data!I141-1,"") -> 0 | V141: =IFERROR(J141/_data!J141-1,"") -> 0 | W141: =IFERROR(K141/_data!K141-1,"") -> 0
A142: Lignite / Coal | B142: 0 | C142: 0 | D142: 0 | E142: 0 | F142: 0 | G142: 0 | H142: 0 | I142: 0 | J142: 0 | K142: 0 | M142: Lignite / Coal | N142: =IFERROR(B142/_data!B142-1,"") ->  | O142: =IFERROR(C142/_data!C142-1,"") ->  | P142: =IFERROR(D142/_data!D142-1,"") ->  | Q142: =IFERROR(E142/_data!E142-1,"") ->  | R142: =IFERROR(F142/_data!F142-1,"") ->  | S142: =IFERROR(G142/_data!G142-1,"") ->  | T142: =IFERROR(H142/_data!H142-1,"") ->  | U142: =IFERROR(I142/_data!I142-1,"") ->  | V142: =IFERROR(J142/_data!J142-1,"") ->  | W142: =IFERROR(K142/_data!K142-1,"") -> 
A143: other fossil fuels | B143: 0.07544445273 | C143: 0.07174578909 | D143: 0.0727760476 | E143: 0.1075473404 | F143: 0.1264070306 | G143: 0.1236318571 | H143: 0.1162898052 | I143: 0.07225012527 | J143: 0.01588044214 | K143: 0.0410120128 | M143: other fossil fuels | N143: =IFERROR(B143/_data!B143-1,"") -> 0 | O143: =IFERROR(C143/_data!C143-1,"") -> 0 | P143: =IFERROR(D143/_data!D143-1,"") -> 0 | Q143: =IFERROR(E143/_data!E143-1,"") -> 0 | R143: =IFERROR(F143/_data!F143-1,"") -> 0 | S143: =IFERROR(G143/_data!G143-1,"") -> 0 | T143: =IFERROR(H143/_data!H143-1,"") -> 0 | U143: =IFERROR(I143/_data!I143-1,"") -> 0 | V143: =IFERROR(J143/_data!J143-1,"") -> 0 | W143: =IFERROR(K143/_data!K143-1,"") -> 0
A144: Plant oil, biofuel | B144: 0 | C144: 0 | D144: 0 | E144: 0 | F144: 0 | G144: 0 | H144: 0 | I144: 0 | J144: 0 | K144: 0 | M144: Plant oil, biofuel | N144: =IFERROR(B144/_data!B144-1,"") ->  | O144: =IFERROR(C144/_data!C144-1,"") ->  | P144: =IFERROR(D144/_data!D144-1,"") ->  | Q144: =IFERROR(E144/_data!E144-1,"") ->  | R144: =IFERROR(F144/_data!F144-1,"") ->  | S144: =IFERROR(G144/_data!G144-1,"") ->  | T144: =IFERROR(H144/_data!H144-1,"") ->  | U144: =IFERROR(I144/_data!I144-1,"") ->  | V144: =IFERROR(J144/_data!J144-1,"") ->  | W144: =IFERROR(K144/_data!K144-1,"") -> 
A145: Summe | B145: 1.067024769 | C145: 1.04334473 | D145: 1.161561466 | E145: 1.24377757 | F145: 1.519124916 | G145: 1.527275472 | H145: 2.079204096 | I145: 1.626339961 | J145: 2.050447188 | K145: 1.802013822 | M145: Summe | N145: =IFERROR(B145/_data!B145-1,"") -> 0 | O145: =IFERROR(C145/_data!C145-1,"") -> 0 | P145: =IFERROR(D145/_data!D145-1,"") -> 0 | Q145: =IFERROR(E145/_data!E145-1,"") -> 0 | R145: =IFERROR(F145/_data!F145-1,"") -> 0 | S145: =IFERROR(G145/_data!G145-1,"") -> 0 | T145: =IFERROR(H145/_data!H145-1,"") -> 0 | U145: =IFERROR(I145/_data!I145-1,"") -> 0 | V145: =IFERROR(J145/_data!J145-1,"") -> 0 | W145: =IFERROR(K145/_data!K145-1,"") -> 0
A147: Energy consumption (MWh /Einwohner and Year) - Rail | M147: Test: | N147: =A147 -> Energy consumption (MWh /Einwohner and Year) - Rail
A148: Energieträger | B148: 2000 | C148: 2001 | D148: 2002 | E148: 2003 | F148: 2004 | G148: 2005 | H148: 2006 | I148: 2007 | J148: 2008 | K148: 2009 | M148: Energieträger | N148: 2000 | O148: 2001 | P148: 2002 | Q148: 2003 | R148: 2004 | S148: 2005 | T148: 2006 | U148: 2007 | V148: 2008 | W148: 2009
A149: Electricity | B149: 0.04745476784 | C149: 0.05832127867 | D149: 0.05078347273 | E149: 0.05282908879 | F149: 0.05297056522 | G149: 0.06004503046 | H149: 0.04079310171 | I149: 0.05318411999 | J149: 0.05176200004 | K149: 0.04504801709 | M149: Electricity | N149: =IFERROR(B149/_data!B149-1,"") -> 0 | O149: =IFERROR(C149/_data!C149-1,"") -> 0 | P149: =IFERROR(D149/_data!D149-1,"") -> 0 | Q149: =IFERROR(E149/_data!E149-1,"") -> 0 | R149: =IFERROR(F149/_data!F149-1,"") -> 0 | S149: =IFERROR(G149/_data!G149-1,"") -> 0 | T149: =IFERROR(H149/_data!H149-1,"") -> 0 | U149: =IFERROR(I149/_data!I149-1,"") -> 0 | V149: =IFERROR(J149/_data!J149-1,"") -> 0 | W149: =IFERROR(K149/_data!K149-1,"") -> 0
A150: Heat and Cold | B150: 0 | C150: 0 | D150: 0 | E150: 0 | F150: 0 | G150: 0 | H150: 0 | I150: 0 | J150: 0 | K150: 0 | M150: Heat and Cold | N150: =IFERROR(B150/_data!B150-1,"") ->  | O150: =IFERROR(C150/_data!C150-1,"") ->  | P150: =IFERROR(D150/_data!D150-1,"") ->  | Q150: =IFERROR(E150/_data!E150-1,"") ->  | R150: =IFERROR(F150/_data!F150-1,"") ->  | S150: =IFERROR(G150/_data!G150-1,"") ->  | T150: =IFERROR(H150/_data!H150-1,"") ->  | U150: =IFERROR(I150/_data!I150-1,"") ->  | V150: =IFERROR(J150/_data!J150-1,"") ->  | W150: =IFERROR(K150/_data!K150-1,"") -> 
A151: natural gas | B151: 0 | C151: 0 | D151: 0 | E151: 0 | F151: 0 | G151: 0 | H151: 0 | I151: 0 | J151: 0 | K151: 0 | M151: natural gas | N151: =IFERROR(B151/_data!B151-1,"") ->  | O151: =IFERROR(C151/_data!C151-1,"") ->  | P151: =IFERROR(D151/_data!D151-1,"") ->  | Q151: =IFERROR(E151/_data!E151-1,"") ->  | R151: =IFERROR(F151/_data!F151-1,"") ->  | S151: =IFERROR(G151/_data!G151-1,"") ->  | T151: =IFERROR(H151/_data!H151-1,"") ->  | U151: =IFERROR(I151/_data!I151-1,"") ->  | V151: =IFERROR(J151/_data!J151-1,"") ->  | W151: =IFERROR(K151/_data!K151-1,"") -> 
A152: Liquid gas | B152: 0 | C152: 0 | D152: 0 | E152: 0 | F152: 0 | G152: 0 | H152: 0 | I152: 0 | J152: 0 | K152: 0 | M152: Liquid gas | N152: =IFERROR(B152/_data!B152-1,"") ->  | O152: =IFERROR(C152/_data!C152-1,"") ->  | P152: =IFERROR(D152/_data!D152-1,"") ->  | Q152: =IFERROR(E152/_data!E152-1,"") ->  | R152: =IFERROR(F152/_data!F152-1,"") ->  | S152: =IFERROR(G152/_data!G152-1,"") ->  | T152: =IFERROR(H152/_data!H152-1,"") ->  | U152: =IFERROR(I152/_data!I152-1,"") ->  | V152: =IFERROR(J152/_data!J152-1,"") ->  | W152: =IFERROR(K152/_data!K152-1,"") -> 
A153: heating oil / diesel | B153: 0.01573772664 | C153: 0 | D153: 0 | E153: 0 | F153: 0 | G153: 0 | H153: 0.2431871264 | I153: 0.2461424519 | J153: 0.1436530215 | K153: 0.01446752306 | M153: heating oil / diesel | N153: =IFERROR(B153/_data!B153-1,"") -> 0 | O153: =IFERROR(C153/_data!C153-1,"") ->  | P153: =IFERROR(D153/_data!D153-1,"") ->  | Q153: =IFERROR(E153/_data!E153-1,"") ->  | R153: =IFERROR(F153/_data!F153-1,"") ->  | S153: =IFERROR(G153/_data!G153-1,"") ->  | T153: =IFERROR(H153/_data!H153-1,"") -> 0 | U153: =IFERROR(I153/_data!I153-1,"") -> 0 | V153: =IFERROR(J153/_data!J153-1,"") -> 0 | W153: =IFERROR(K153/_data!K153-1,"") -> 0
A154: gasoline | B154: 0 | C154: 0 | D154: 0 | E154: 0 | F154: 0 | G154: 0 | H154: 0 | I154: 0 | J154: 0 | K154: 0 | M154: gasoline | N154: =IFERROR(B154/_data!B154-1,"") ->  | O154: =IFERROR(C154/_data!C154-1,"") ->  | P154: =IFERROR(D154/_data!D154-1,"") ->  | Q154: =IFERROR(E154/_data!E154-1,"") ->  | R154: =IFERROR(F154/_data!F154-1,"") ->  | S154: =IFERROR(G154/_data!G154-1,"") ->  | T154: =IFERROR(H154/_data!H154-1,"") ->  | U154: =IFERROR(I154/_data!I154-1,"") ->  | V154: =IFERROR(J154/_data!J154-1,"") ->  | W154: =IFERROR(K154/_data!K154-1,"") -> 
A155: Lignite / Coal | B155: 0 | C155: 0 | D155: 0 | E155: 0 | F155: 0 | G155: 0 | H155: 0 | I155: 0 | J155: 0 | K155: 0 | M155: Lignite / Coal | N155: =IFERROR(B155/_data!B155-1,"") ->  | O155: =IFERROR(C155/_data!C155-1,"") ->  | P155: =IFERROR(D155/_data!D155-1,"") ->  | Q155: =IFERROR(E155/_data!E155-1,"") ->  | R155: =IFERROR(F155/_data!F155-1,"") ->  | S155: =IFERROR(G155/_data!G155-1,"") ->  | T155: =IFERROR(H155/_data!H155-1,"") ->  | U155: =IFERROR(I155/_data!I155-1,"") ->  | V155: =IFERROR(J155/_data!J155-1,"") ->  | W155: =IFERROR(K155/_data!K155-1,"") -> 
A156: other fossil fuels | B156: 0 | C156: 0 | D156: 0 | E156: 0 | F156: 0 | G156: 0 | H156: 0 | I156: 0 | J156: 0 | K156: 0 | M156: other fossil fuels | N156: =IFERROR(B156/_data!B156-1,"") ->  | O156: =IFERROR(C156/_data!C156-1,"") ->  | P156: =IFERROR(D156/_data!D156-1,"") ->  | Q156: =IFERROR(E156/_data!E156-1,"") ->  | R156: =IFERROR(F156/_data!F156-1,"") ->  | S156: =IFERROR(G156/_data!G156-1,"") ->  | T156: =IFERROR(H156/_data!H156-1,"") ->  | U156: =IFERROR(I156/_data!I156-1,"") ->  | V156: =IFERROR(J156/_data!J156-1,"") ->  | W156: =IFERROR(K156/_data!K156-1,"") -> 
A157: Plant oil, biofuel | B157: 0 | C157: 0 | D157: 0 | E157: 0 | F157: 0 | G157: 0 | H157: 0 | I157: 0 | J157: 0 | K157: 0 | M157: Plant oil, biofuel | N157: =IFERROR(B157/_data!B157-1,"") ->  | O157: =IFERROR(C157/_data!C157-1,"") ->  | P157: =IFERROR(D157/_data!D157-1,"") ->  | Q157: =IFERROR(E157/_data!E157-1,"") ->  | R157: =IFERROR(F157/_data!F157-1,"") ->  | S157: =IFERROR(G157/_data!G157-1,"") ->  | T157: =IFERROR(H157/_data!H157-1,"") ->  | U157: =IFERROR(I157/_data!I157-1,"") ->  | V157: =IFERROR(J157/_data!J157-1,"") ->  | W157: =IFERROR(K157/_data!K157-1,"") -> 
A158: Summe | B158: 0.06319249448 | C158: 0.05832127867 | D158: 0.05078347273 | E158: 0.05282908879 | F158: 0.05297056522 | G158: 0.06004503046 | H158: 0.2839802281 | I158: 0.2993265719 | J158: 0.1954150216 | K158: 0.05951554015 | M158: Summe | N158: =IFERROR(B158/_data!B158-1,"") -> 0 | O158: =IFERROR(C158/_data!C158-1,"") -> 0 | P158: =IFERROR(D158/_data!D158-1,"") -> 0 | Q158: =IFERROR(E158/_data!E158-1,"") -> 0 | R158: =IFERROR(F158/_data!F158-1,"") -> 0 | S158: =IFERROR(G158/_data!G158-1,"") -> 0 | T158: =IFERROR(H158/_data!H158-1,"") -> 0 | U158: =IFERROR(I158/_data!I158-1,"") -> 0 | V158: =IFERROR(J158/_data!J158-1,"") -> 0 | W158: =IFERROR(K158/_data!K158-1,"") -> 0
A160: Quelle: | B160: P:\KB-Projekte\COMO EAST\WP 2 Training\Tool\Tool-Daten\Energiedaten\Endberechnung
A161: Belarus | M161: Belarus | Y161: Belarus | AK161: Belarus
A162: Energy consumption (MWh /Einwohner and Year) - Residential building (Households) | M162: Test: | N162: =A162 -> Energy consumption (MWh /Einwohner and Year) - Residential building (Households) | Y162: CO2 emission Factor (t /Mwh)
A163: Energieträger | B163: 2000 | C163: 2001 | D163: 2002 | E163: 2003 | F163: 2004 | G163: 2005 | H163: 2006 | I163: 2007 | J163: 2008 | K163: 2009 | M163: Energieträger | N163: 2000 | O163: 2001 | P163: 2002 | Q163: 2003 | R163: 2004 | S163: 2005 | T163: 2006 | U163: 2007 | V163: 2008 | W163: 2009 | Y163: Energieträger | Z163: 2000 | AA163: 2001 | AB163: 2002 | AC163: 2003 | AD163: 2004 | AE163: 2005 | AF163: 2006 | AG163: 2007 | AH163: 2008 | AI163: 2009 | AL163: Year: | AM163: ='DATA-OUTPUT Co2 absolute'!$B$8 -> 0 | AO163: CO2 | AP163: Test
A164: Electricity | B164: 0.5562218891 | C164: 0.5592743932 | D164: 0.5821718444 | E164: 0.6135380989 | F164: 0.6160072819 | G164: 0.6095681467 | H164: 0.5895767332 | I164: 0.6193453813 | J164: 0.658716934 | K164: 0.6801421175 | M164: Electricity | N164: =IFERROR(B164/_data!B164-1,"") -> 0 | O164: =IFERROR(C164/_data!C164-1,"") -> 0 | P164: =IFERROR(D164/_data!D164-1,"") -> 0 | Q164: =IFERROR(E164/_data!E164-1,"") -> 0 | R164: =IFERROR(F164/_data!F164-1,"") -> 0 | S164: =IFERROR(G164/_data!G164-1,"") -> 0 | T164: =IFERROR(H164/_data!H164-1,"") -> 0 | U164: =IFERROR(I164/_data!I164-1,"") -> 0 | V164: =IFERROR(J164/_data!J164-1,"") -> 0 | W164: =IFERROR(K164/_data!K164-1,"") -> 0 | Y164: Electricity | Z164: =_data!Z164 -> 0.78 | AA164: =_data!AA164 -> 0.752 | AB164: =_data!AB164 -> 0.805 | AC164: =_data!AC164 -> 0.801 | AD164: =_data!AD164 -> 0.902 | AE164: =_data!AE164 -> 0.901 | AF164: =_data!AF164 -> 0.898 | AG164: =_data!AG164 -> 0.899 | AH164: =_data!AH164 -> 0.961 | AI164: =_data!AI164 -> 0.961 | AM164: ='DATA-OUTPUT EC per capita'!$B$37 -> 0 | AN164: =IF(AM163=Z163,Z164,IF(AM163=AA163,AA164,IF(AM163=AB163,AB164,IF(AM163=AC163,AC164,IF(AM163=AD163,AD164,IF(AM163=AE163,AE164,IF(AM163=AF163,AF164,IF(AM163=AG163,AG164,IF(AM163=AH163,AH164,IF(AM163=AI163,AI164,"Fehler")))))))))) -> Fehler | AO164: =AN164*AM164 ->  | AP164: =AO164/'DATA-OUTPUT Co2 per capita'!$B$37-1 -> 
A165: Heat and Cold | B165: 2.738186462 | C165: 3.121366277 | D165: 2.81063532 | E165: 3.143872858 | F165: 2.991453731 | G165: 2.903802838 | H165: 2.927134172 | I165: 2.673503745 | J165: 2.540819042 | K165: 2.699969613 | M165: Heat and Cold | N165: =IFERROR(B165/_data!B165-1,"") -> 0 | O165: =IFERROR(C165/_data!C165-1,"") -> 0 | P165: =IFERROR(D165/_data!D165-1,"") -> 0 | Q165: =IFERROR(E165/_data!E165-1,"") -> 0 | R165: =IFERROR(F165/_data!F165-1,"") -> 0 | S165: =IFERROR(G165/_data!G165-1,"") -> 0 | T165: =IFERROR(H165/_data!H165-1,"") -> 0 | U165: =IFERROR(I165/_data!I165-1,"") -> 0 | V165: =IFERROR(J165/_data!J165-1,"") -> 0 | W165: =IFERROR(K165/_data!K165-1,"") -> 0 | Y165: Heat and Cold | Z165: =_data!Z165 -> 0.1875353786 | AA165: =_data!AA165 -> 0.1875353786 | AB165: =_data!AB165 -> 0.1875353786 | AC165: =_data!AC165 -> 0.1875353786 | AD165: =_data!AD165 -> 0.1875353786 | AE165: =_data!AE165 -> 0.1875353786 | AF165: =_data!AF165 -> 0.1875353786 | AG165: =_data!AG165 -> 0.1875353786 | AH165: =_data!AH165 -> 0.1752597911 | AI165: =_data!AI165 -> 0.1752597911 | AM165: ='DATA-OUTPUT EC per capita'!$C$37 -> 0 | AN165: =IF(AM163=Z163,Z165,IF(AM163=AA163,AA165,IF(AM163=AB163,AB165,IF(AM163=AC163,AC165,IF(AM163=AD163,AD165,IF(AM163=AE163,AE165,IF(AM163=AF163,AF165,IF(AM163=AG163, AG165,IF(AM163=AH163,AH165,IF(AM163=AI163,AI165,"Fehler")))))))))) -> Fehler | AO165: =AM165*AN165 ->  | AP165: =AO165/'DATA-OUTPUT Co2 per capita'!$C$37-1 -> 
A166: natural gas | B166: 1.296407352 | C166: 1.431117254 | D166: 1.477637839 | E166: 1.465722798 | F166: 1.491061643 | G166: 1.53974777 | H166: 1.580728944 | I166: 1.597866419 | J166: 1.612279849 | K166: 1.76039877 | M166: natural gas | N166: =IFERROR(B166/_data!B166-1,"") -> 0 | O166: =IFERROR(C166/_data!C166-1,"") -> 0 | P166: =IFERROR(D166/_data!D166-1,"") -> 0 | Q166: =IFERROR(E166/_data!E166-1,"") -> 0 | R166: =IFERROR(F166/_data!F166-1,"") -> 0 | S166: =IFERROR(G166/_data!G166-1,"") -> 0 | T166: =IFERROR(H166/_data!H166-1,"") -> 0 | U166: =IFERROR(I166/_data!I166-1,"") -> 0 | V166: =IFERROR(J166/_data!J166-1,"") -> 0 | W166: =IFERROR(K166/_data!K166-1,"") -> 0 | Y166: natural gas | Z166: =_data!Z166 -> 0.202 | AA166: =_data!AA166 -> 0.202 | AB166: =_data!AB166 -> 0.202 | AC166: =_data!AC166 -> 0.202 | AD166: =_data!AD166 -> 0.202 | AE166: =_data!AE166 -> 0.202 | AF166: =_data!AF166 -> 0.202 | AG166: =_data!AG166 -> 0.202 | AH166: =_data!AH166 -> 0.202 | AI166: =_data!AI166 -> 0.202 | AM166: ='DATA-OUTPUT EC per capita'!$D$37 -> 0 | AN166: =IF(AM163=Z163,Z166,IF(AM163=AA163,AA166,IF(AM163=AB163,AB166,IF(AM163=AC163,AC166,IF(AM163=AD163,AD166,IF(AM163=AE163,AE166,IF(AM163=AF163,AF166,IF(AM163=AG163, AG166,IF(AM163=AH163,AH166,IF(AM163=AI163,AI166,"Fehler")))))))))) -> Fehler | AO166: =AM166*AN166 ->  | AP166: =AO166/'DATA-OUTPUT Co2 per capita'!$D$37-1 -> 
A167: Liquid gas | B167: 0 | C167: 0 | D167: 0 | E167: 0 | F167: 0 | G167: 0 | H167: 0 | I167: 0 | J167: 0 | K167: 0 | M167: Liquid gas | N167: =IFERROR(B167/_data!B167-1,"") ->  | O167: =IFERROR(C167/_data!C167-1,"") ->  | P167: =IFERROR(D167/_data!D167-1,"") ->  | Q167: =IFERROR(E167/_data!E167-1,"") ->  | R167: =IFERROR(F167/_data!F167-1,"") ->  | S167: =IFERROR(G167/_data!G167-1,"") ->  | T167: =IFERROR(H167/_data!H167-1,"") ->  | U167: =IFERROR(I167/_data!I167-1,"") ->  | V167: =IFERROR(J167/_data!J167-1,"") ->  | W167: =IFERROR(K167/_data!K167-1,"") ->  | Y167: Liquid gas | Z167: =_data!Z167 -> 0.231 | AA167: =_data!AA167 -> 0.231 | AB167: =_data!AB167 -> 0.231 | AC167: =_data!AC167 -> 0.231 | AD167: =_data!AD167 -> 0.231 | AE167: =_data!AE167 -> 0.231 | AF167: =_data!AF167 -> 0.231 | AG167: =_data!AG167 -> 0.231 | AH167: =_data!AH167 -> 0.231 | AI167: =_data!AI167 -> 0.231 | AM167: ='DATA-OUTPUT EC per capita'!$E$37 -> 0 | AN167: =IF(AM163=Z163,Z167,IF(AM163=AA163,AA167,IF(AM163=AB163,AB167,IF(AM163=AC163,AC167,IF(AM163=AD163,AD167,IF(AM163=AE163,AE167,IF(AM163=AF163,AF167,IF(AM163=AG163, AG167,IF(AM163=AH163,AH167,IF(AM163=AI163,AI167,"Fehler")))))))))) -> Fehler | AP167: =AO167/'DATA-OUTPUT Co2 per capita'!$E$37-1 -> 
A168: heating oil / diesel | B168: 0.1427619524 | C168: 0.1764135428 | D168: 0.152225021 | E168: 0.2666101409 | F168: 0.2403013673 | G168: 0.3670991463 | H168: 0.5421697063 | I168: 0.485466914 | J168: 0.646653475 | K168: 0.3910861003 | M168: heating oil / diesel | N168: =IFERROR(B168/_data!B168-1,"") -> 0 | O168: =IFERROR(C168/_data!C168-1,"") -> 0 | P168: =IFERROR(D168/_data!D168-1,"") -> 0 | Q168: =IFERROR(E168/_data!E168-1,"") -> 0 | R168: =IFERROR(F168/_data!F168-1,"") -> 0 | S168: =IFERROR(G168/_data!G168-1,"") -> 0 | T168: =IFERROR(H168/_data!H168-1,"") -> 0 | U168: =IFERROR(I168/_data!I168-1,"") -> 0 | V168: =IFERROR(J168/_data!J168-1,"") -> 0 | W168: =IFERROR(K168/_data!K168-1,"") -> 0 | Y168: heating oil / diesel | Z168: =_data!Z168 -> 0.267 | AA168: =_data!AA168 -> 0.267 | AB168: =_data!AB168 -> 0.267 | AC168: =_data!AC168 -> 0.267 | AD168: =_data!AD168 -> 0.267 | AE168: =_data!AE168 -> 0.267 | AF168: =_data!AF168 -> 0.267 | AG168: =_data!AG168 -> 0.267 | AH168: =_data!AH168 -> 0.267 | AI168: =_data!AI168 -> 0.267 | AM168: ='DATA-OUTPUT EC per capita'!$F$37 -> 0 | AN168: =IF(AM163=Z163,Z168,IF(AM163=AA163,AA168,IF(AM163=AB163,AB168,IF(AM163=AC163,AC168,IF(AM163=AD163,AD168,IF(AM163=AE163,AE168,IF(AM163=AF163,AF168,IF(AM163=AG163, AG168,IF(AM163=AH163,AH168,IF(AM163=AI163,AI168,"Fehler")))))))))) -> Fehler | AP168: =AO168/'DATA-OUTPUT Co2 per capita'!$F$37-1 -> 
A169: gasoline | B169: 0 | C169: 0 | D169: 0.002406940946 | E169: 0.004866893994 | F169: 0.4971430687 | G169: 0.5833122746 | H169: 0.7050831978 | I169: 0.7009723081 | J169: 0.7553403226 | K169: 0.7834285848 | M169: gasoline | N169: =IFERROR(B169/_data!B169-1,"") ->  | O169: =IFERROR(C169/_data!C169-1,"") ->  | P169: =IFERROR(D169/_data!D169-1,"") -> 0 | Q169: =IFERROR(E169/_data!E169-1,"") -> 0 | R169: =IFERROR(F169/_data!F169-1,"") -> 0 | S169: =IFERROR(G169/_data!G169-1,"") -> 0 | T169: =IFERROR(H169/_data!H169-1,"") -> 0 | U169: =IFERROR(I169/_data!I169-1,"") -> 0 | V169: =IFERROR(J169/_data!J169-1,"") -> 0 | W169: =IFERROR(K169/_data!K169-1,"") -> 0 | Y169: gasoline | Z169: =_data!Z169 -> 0.249 | AA169: =_data!AA169 -> 0.249 | AB169: =_data!AB169 -> 0.249 | AC169: =_data!AC169 -> 0.249 | AD169: =_data!AD169 -> 0.249 | AE169: =_data!AE169 -> 0.249 | AF169: =_data!AF169 -> 0.249 | AG169: =_data!AG169 -> 0.249 | AH169: =_data!AH169 -> 0.249 | AI169: =_data!AI169 -> 0.249 | AM169: ='DATA-OUTPUT EC per capita'!$G$37 -> 0 | AN169: =IF(AM163=Z163,Z169,IF(AM163=AA163,AA169,IF(AM163=AB163,AB169,IF(AM163=AC163,AC169,IF(AM163=AD163,AD169,IF(AM163=AE163,AE169,IF(AM163=AF163,AF169,IF(AM163=AG163, AG169,IF(AM163=AH163,AH169,IF(AM163=AI163,AI169,"Fehler")))))))))) -> Fehler | AP169: =AO169/'DATA-OUTPUT Co2 per capita'!$G$37-1 -> 
A170: Lignite / Coal | B170: 0.5721861292 | C170: 0.4244289183 | D170: 0.3947663028 | E170: 0.3678302831 | F170: 0.326395927 | G170: 0.3760500118 | H170: 0.3929274767 | I170: 0.357343274 | J170: 0.3227047606 | K170: 0.2877704148 | M170: Lignite / Coal | N170: =IFERROR(B170/_data!B170-1,"") -> 0 | O170: =IFERROR(C170/_data!C170-1,"") -> 0 | P170: =IFERROR(D170/_data!D170-1,"") -> 0 | Q170: =IFERROR(E170/_data!E170-1,"") -> 0 | R170: =IFERROR(F170/_data!F170-1,"") -> 0 | S170: =IFERROR(G170/_data!G170-1,"") -> 0 | T170: =IFERROR(H170/_data!H170-1,"") -> 0 | U170: =IFERROR(I170/_data!I170-1,"") -> 0 | V170: =IFERROR(J170/_data!J170-1,"") -> 0 | W170: =IFERROR(K170/_data!K170-1,"") -> 0 | Y170: Lignite / Coal | Z170: =_data!Z170 -> 0.364 | AA170: =_data!AA170 -> 0.364 | AB170: =_data!AB170 -> 0.364 | AC170: =_data!AC170 -> 0.364 | AD170: =_data!AD170 -> 0.364 | AE170: =_data!AE170 -> 0.364 | AF170: =_data!AF170 -> 0.364 | AG170: =_data!AG170 -> 0.364 | AH170: =_data!AH170 -> 0.364 | AI170: =_data!AI170 -> 0.364 | AM170: ='DATA-OUTPUT EC per capita'!$H$37 -> 0 | AN170: =IF(AM163=Z163,Z170,IF(AM163=AA163,AA170,IF(AM163=AB163,AB170,IF(AM163=AC163,AC170,IF(AM163=AD163,AD170,IF(AM163=AE163,AE170,IF(AM163=AF163,AF170,IF(AM163=AG163, AG170,IF(AM163=AH163,AH170,IF(AM163=AI163,AI170,"Fehler")))))))))) -> Fehler | AP170: =AO170/'DATA-OUTPUT Co2 per capita'!$H$37-1 -> 
A171: other fossil fuels | B171: 0.3009328669 | C171: 0.2753466587 | D171: 0.2434648755 | E171: 0.2267747542 | F171: 0.2253443813 | G171: 0.2394285477 | H171: 0.245683135 | I171: 0.2646934195 | J171: 0.2621849615 | K171: 0.2381870668 | M171: other fossil fuels | N171: =IFERROR(B171/_data!B171-1,"") -> 0 | O171: =IFERROR(C171/_data!C171-1,"") -> 0 | P171: =IFERROR(D171/_data!D171-1,"") -> 0 | Q171: =IFERROR(E171/_data!E171-1,"") -> 0 | R171: =IFERROR(F171/_data!F171-1,"") -> 0 | S171: =IFERROR(G171/_data!G171-1,"") -> 0 | T171: =IFERROR(H171/_data!H171-1,"") -> 0 | U171: =IFERROR(I171/_data!I171-1,"") -> 0 | V171: =IFERROR(J171/_data!J171-1,"") -> 0 | W171: =IFERROR(K171/_data!K171-1,"") -> 0 | Y171: other fossil fuels | Z171: =_data!Z171 -> 0.382 | AA171: =_data!AA171 -> 0.382 | AB171: =_data!AB171 -> 0.382 | AC171: =_data!AC171 -> 0.382 | AD171: =_data!AD171 -> 0.382 | AE171: =_data!AE171 -> 0.382 | AF171: =_data!AF171 -> 0.382 | AG171: =_data!AG171 -> 0.382 | AH171: =_data!AH171 -> 0.382 | AI171: =_data!AI171 -> 0.382 | AM171: ='DATA-OUTPUT EC per capita'!$I$37 -> 0 | AN171: =IF(AM163=Z163,Z171,IF(AM163=AA163,AA171,IF(AM163=AB163,AB171,IF(AM163=AC163,AC171,IF(AM163=AD163,AD171,IF(AM163=AE163,AE171,IF(AM163=AF163,AF171,IF(AM163=AG163, AG171,IF(AM163=AH163,AH171,IF(AM163=AI163,AI171,"Fehler")))))))))) -> Fehler | AP171: =AO171/'DATA-OUTPUT Co2 per capita'!$I$37-1 -> 
A172: Plant oil, biofuel | B172: 0.5801543673 | C172: 0.6409617759 | D172: 0.6586621886 | E172: 0.6018913121 | F172: 0.6073271407 | G172: 0.6673083329 | H172: 0.7393612467 | I172: 0.7627865961 | J172: 0.7976058229 | K172: 0.7454156586 | M172: Plant oil, biofuel | N172: =IFERROR(B172/_data!B172-1,"") -> 0 | O172: =IFERROR(C172/_data!C172-1,"") -> 0 | P172: =IFERROR(D172/_data!D172-1,"") -> 0 | Q172: =IFERROR(E172/_data!E172-1,"") -> 0 | R172: =IFERROR(F172/_data!F172-1,"") -> 0 | S172: =IFERROR(G172/_data!G172-1,"") -> 0 | T172: =IFERROR(H172/_data!H172-1,"") -> 0 | U172: =IFERROR(I172/_data!I172-1,"") -> 0 | V172: =IFERROR(J172/_data!J172-1,"") -> 0 | W172: =IFERROR(K172/_data!K172-1,"") -> 0 | Y172: Plant oil, biofuel | Z172: =_data!Z172 -> 0 | AA172: =_data!AA172 -> 0 | AB172: =_data!AB172 -> 0 | AC172: =_data!AC172 -> 0 | AD172: =_data!AD172 -> 0 | AE172: =_data!AE172 -> 0 | AF172: =_data!AF172 -> 0 | AG172: =_data!AG172 -> 0 | AH172: =_data!AH172 -> 0 | AI172: =_data!AI172 -> 0 | AM172: ='DATA-OUTPUT EC per capita'!$J$37 -> 0 | AN172: =IF(AM163=Z163,Z172,IF(AM163=AA163,AA172,IF(AM163=AB163,AB172,IF(AM163=AC163,AC172,IF(AM163=AD163,AD172,IF(AM163=AE163,AE172,IF(AM163=AF163,AF172,IF(AM163=AG163, AG172,IF(AM163=AH163,AH172,IF(AM163=AI163,AI172,"Fehler")))))))))) -> Fehler | AP172: =AO172/'DATA-OUTPUT Co2 per capita'!$J$37-1 -> 
A173: Summe | B173: 6.186851019 | C173: 6.628908819 | D173: 6.321970333 | E173: 6.691107139 | F173: 6.995034541 | G173: 7.286317068 | H173: 7.722664612 | I173: 7.461978057 | J173: 7.596305168 | K173: 7.586398326 | M173: Summe | N173: =IFERROR(B173/_data!B173-1,"") -> 0 | O173: =IFERROR(C173/_data!C173-1,"") -> 0 | P173: =IFERROR(D173/_data!D173-1,"") -> 0 | Q173: =IFERROR(E173/_data!E173-1,"") -> 0 | R173: =IFERROR(F173/_data!F173-1,"") -> 0 | S173: =IFERROR(G173/_data!G173-1,"") -> 0 | T173: =IFERROR(H173/_data!H173-1,"") -> 0 | U173: =IFERROR(I173/_data!I173-1,"") -> 0 | V173: =IFERROR(J173/_data!J173-1,"") -> 0 | W173: =IFERROR(K173/_data!K173-1,"") -> 0 | AL173: Total | AO173: =SUM(AO164:AO172) ->  | AP173: =AO173/'DATA-OUTPUT Co2 per capita'!$K$37-1 -> 
A175: Energy consumption (MWh /Einwohner and Year) - Primary sector (Agriculture) | M175: Test: | N175: =A175 -> Energy consumption (MWh /Einwohner and Year) - Primary sector (Agriculture)
A176: Energieträger | B176: 2000 | C176: 2001 | D176: 2002 | E176: 2003 | F176: 2004 | G176: 2005 | H176: 2006 | I176: 2007 | J176: 2008 | K176: 2009 | M176: Energieträger | N176: 2000 | O176: 2001 | P176: 2002 | Q176: 2003 | R176: 2004 | S176: 2005 | T176: 2006 | U176: 2007 | V176: 2008 | W176: 2009
A177: Electricity | B177: 0.1842967405 | C177: 0.1730145453 | D177: 0.1588860901 | E177: 0.1460349522 | F177: 0.140154592 | G177: 0.1445493736 | H177: 0.1584325142 | I177: 0.1469914565 | J177: 0.1492455276 | K177: 0.1544183818 | M177: Electricity | N177: =IFERROR(B177/_data!B177-1,"") -> 0 | O177: =IFERROR(C177/_data!C177-1,"") -> 0 | P177: =IFERROR(D177/_data!D177-1,"") -> 0 | Q177: =IFERROR(E177/_data!E177-1,"") -> 0 | R177: =IFERROR(F177/_data!F177-1,"") -> 0 | S177: =IFERROR(G177/_data!G177-1,"") -> 0 | T177: =IFERROR(H177/_data!H177-1,"") -> 0 | U177: =IFERROR(I177/_data!I177-1,"") -> 0 | V177: =IFERROR(J177/_data!J177-1,"") -> 0 | W177: =IFERROR(K177/_data!K177-1,"") -> 0
A178: Heat and Cold | B178: 0 | C178: 0 | D178: 0 | E178: 0 | F178: 0.1911610241 | G178: 0.1953846064 | H178: 0.1972200816 | I178: 0.1881341762 | J178: 0.194664306 | K178: 0.202920655 | M178: Heat and Cold | N178: =IFERROR(B178/_data!B178-1,"") ->  | O178: =IFERROR(C178/_data!C178-1,"") ->  | P178: =IFERROR(D178/_data!D178-1,"") ->  | Q178: =IFERROR(E178/_data!E178-1,"") ->  | R178: =IFERROR(F178/_data!F178-1,"") -> 0 | S178: =IFERROR(G178/_data!G178-1,"") -> 0 | T178: =IFERROR(H178/_data!H178-1,"") -> 0 | U178: =IFERROR(I178/_data!I178-1,"") -> 0 | V178: =IFERROR(J178/_data!J178-1,"") -> 0 | W178: =IFERROR(K178/_data!K178-1,"") -> 0
A179: natural gas | B179: 0.02681992337 | C179: 0.02797207785 | D179: 0.02594458438 | E179: 0.02498151368 | F179: 0.03166696451 | G179: 0.03293350187 | H179: 0.03858777863 | I179: 0.0530818388 | J179: 0.07596796964 | K179: 0.09820249407 | M179: natural gas | N179: =IFERROR(B179/_data!B179-1,"") -> 0 | O179: =IFERROR(C179/_data!C179-1,"") -> 0 | P179: =IFERROR(D179/_data!D179-1,"") -> 0 | Q179: =IFERROR(E179/_data!E179-1,"") -> 0 | R179: =IFERROR(F179/_data!F179-1,"") -> 0 | S179: =IFERROR(G179/_data!G179-1,"") -> 0 | T179: =IFERROR(H179/_data!H179-1,"") -> 0 | U179: =IFERROR(I179/_data!I179-1,"") -> 0 | V179: =IFERROR(J179/_data!J179-1,"") -> 0 | W179: =IFERROR(K179/_data!K179-1,"") -> 0
A180: Liquid gas | B180: 0 | C180: 0 | D180: 0 | E180: 0 | F180: 0 | G180: 0 | H180: 0 | I180: 0 | J180: 0 | K180: 0 | M180: Liquid gas | N180: =IFERROR(B180/_data!B180-1,"") ->  | O180: =IFERROR(C180/_data!C180-1,"") ->  | P180: =IFERROR(D180/_data!D180-1,"") ->  | Q180: =IFERROR(E180/_data!E180-1,"") ->  | R180: =IFERROR(F180/_data!F180-1,"") ->  | S180: =IFERROR(G180/_data!G180-1,"") ->  | T180: =IFERROR(H180/_data!H180-1,"") ->  | U180: =IFERROR(I180/_data!I180-1,"") ->  | V180: =IFERROR(J180/_data!J180-1,"") ->  | W180: =IFERROR(K180/_data!K180-1,"") -> 
A181: heating oil / diesel | B181: 0.697234716 | C181: 0.6405160057 | D181: 0.6291071928 | E181: 0.6550895581 | F181: 0.6968711377 | G181: 0.759516455 | H181: 0.822330679 | I181: 0.8650850913 | J181: 0.9802934574 | K181: 0.8360506294 | M181: heating oil / diesel | N181: =IFERROR(B181/_data!B181-1,"") -> 0 | O181: =IFERROR(C181/_data!C181-1,"") -> 0 | P181: =IFERROR(D181/_data!D181-1,"") -> 0 | Q181: =IFERROR(E181/_data!E181-1,"") -> 0 | R181: =IFERROR(F181/_data!F181-1,"") -> 0 | S181: =IFERROR(G181/_data!G181-1,"") -> 0 | T181: =IFERROR(H181/_data!H181-1,"") -> 0 | U181: =IFERROR(I181/_data!I181-1,"") -> 0 | V181: =IFERROR(J181/_data!J181-1,"") -> 0 | W181: =IFERROR(K181/_data!K181-1,"") -> 0
A182: gasoline | B182: 0.08420789605 | C182: 0.05265660073 | D182: 0.05535964176 | E182: 0.04329566391 | F182: 0.0422697428 | G182: 0.04123081209 | H182: 0.0426691783 | I182: 0.04406307978 | J182: 0.04324909162 | K182: 0.008969998714 | M182: gasoline | N182: =IFERROR(B182/_data!B182-1,"") -> 0 | O182: =IFERROR(C182/_data!C182-1,"") -> 0 | P182: =IFERROR(D182/_data!D182-1,"") -> 0 | Q182: =IFERROR(E182/_data!E182-1,"") -> 0 | R182: =IFERROR(F182/_data!F182-1,"") -> 0 | S182: =IFERROR(G182/_data!G182-1,"") -> 0 | T182: =IFERROR(H182/_data!H182-1,"") -> 0 | U182: =IFERROR(I182/_data!I182-1,"") -> 0 | V182: =IFERROR(J182/_data!J182-1,"") -> 0 | W182: =IFERROR(K182/_data!K182-1,"") -> 0
A183: Lignite / Coal | B183: 0.001887944916 | C183: 0.0008358190592 | D183: 0.002183039463 | E183: 0.00441677663 | F183: 0.004128015016 | G183: 0.003779254313 | H183: 0.004509518509 | I183: 0.004294647152 | J183: 0.004512948691 | K183: 0.005843647371 | M183: Lignite / Coal | N183: =IFERROR(B183/_data!B183-1,"") -> 0 | O183: =IFERROR(C183/_data!C183-1,"") -> 0 | P183: =IFERROR(D183/_data!D183-1,"") -> 0 | Q183: =IFERROR(E183/_data!E183-1,"") -> 0 | R183: =IFERROR(F183/_data!F183-1,"") -> 0 | S183: =IFERROR(G183/_data!G183-1,"") -> 0 | T183: =IFERROR(H183/_data!H183-1,"") -> 0 | U183: =IFERROR(I183/_data!I183-1,"") -> 0 | V183: =IFERROR(J183/_data!J183-1,"") -> 0 | W183: =IFERROR(K183/_data!K183-1,"") -> 0
A184: other fossil fuels | B184: 0.001277139208 | C184: 0.003816907037 | D184: 0.001287433529 | E184: 0 | F184: 0 | G184: 0 | H184: 0 | I184: 0 | J184: 0 | K184: 0 | M184: other fossil fuels | N184: =IFERROR(B184/_data!B184-1,"") -> 0 | O184: =IFERROR(C184/_data!C184-1,"") -> 0 | P184: =IFERROR(D184/_data!D184-1,"") -> 0 | Q184: =IFERROR(E184/_data!E184-1,"") ->  | R184: =IFERROR(F184/_data!F184-1,"") ->  | S184: =IFERROR(G184/_data!G184-1,"") ->  | T184: =IFERROR(H184/_data!H184-1,"") ->  | U184: =IFERROR(I184/_data!I184-1,"") ->  | V184: =IFERROR(J184/_data!J184-1,"") ->  | W184: =IFERROR(K184/_data!K184-1,"") -> 
A185: Plant oil, biofuel | B185: 0.01382642012 | C185: 0.01632633229 | D185: 0.01805205709 | E185: 0.02886377594 | F185: 0.02912229772 | G185: 0.0316548068 | H185: 0.03456346148 | I185: 0.03478664193 | J185: 0.03439676919 | K185: 0.03891869149 | M185: Plant oil, biofuel | N185: =IFERROR(B185/_data!B185-1,"") -> 0 | O185: =IFERROR(C185/_data!C185-1,"") -> 0 | P185: =IFERROR(D185/_data!D185-1,"") -> 0 | Q185: =IFERROR(E185/_data!E185-1,"") -> 0 | R185: =IFERROR(F185/_data!F185-1,"") -> 0 | S185: =IFERROR(G185/_data!G185-1,"") -> 0 | T185: =IFERROR(H185/_data!H185-1,"") -> 0 | U185: =IFERROR(I185/_data!I185-1,"") -> 0 | V185: =IFERROR(J185/_data!J185-1,"") -> 0 | W185: =IFERROR(K185/_data!K185-1,"") -> 0
A186: Summe | B186: 1.00955078 | C186: 0.9151382879 | D186: 0.8908200392 | E186: 0.9026822404 | F186: 1.135373774 | G186: 1.20904881 | H186: 1.298313212 | I186: 1.336436932 | J186: 1.48233007 | K186: 1.345324498 | M186: Summe | N186: =IFERROR(B186/_data!B186-1,"") -> 0 | O186: =IFERROR(C186/_data!C186-1,"") -> 0 | P186: =IFERROR(D186/_data!D186-1,"") -> 0 | Q186: =IFERROR(E186/_data!E186-1,"") -> 0 | R186: =IFERROR(F186/_data!F186-1,"") -> 0 | S186: =IFERROR(G186/_data!G186-1,"") -> 0 | T186: =IFERROR(H186/_data!H186-1,"") -> 0 | U186: =IFERROR(I186/_data!I186-1,"") -> 0 | V186: =IFERROR(J186/_data!J186-1,"") -> 0 | W186: =IFERROR(K186/_data!K186-1,"") -> 0
A188: Energy consumption (MWh /Einwohner and Year) - Secondary sector (Industrie) | M188: Test: | N188: =A188 -> Energy consumption (MWh /Einwohner and Year) - Secondary sector (Industrie)
A189: Energieträger | B189: 2000 | C189: 2001 | D189: 2002 | E189: 2003 | F189: 2004 | G189: 2005 | H189: 2006 | I189: 2007 | J189: 2008 | K189: 2009 | M189: Energieträger | N189: 2000 | O189: 2001 | P189: 2002 | Q189: 2003 | R189: 2004 | S189: 2005 | T189: 2006 | U189: 2007 | V189: 2008 | W189: 2009
A190: Electricity | B190: 1.291854073 | C190: 1.291033979 | D190: 1.224993003 | E190: 1.256643282 | F190: 1.325262465 | G190: 1.360645214 | H190: 1.429945486 | I190: 1.454854669 | J190: 1.511982457 | K190: 1.297143625 | M190: Electricity | N190: =IFERROR(B190/_data!B190-1,"") -> 0 | O190: =IFERROR(C190/_data!C190-1,"") -> 0 | P190: =IFERROR(D190/_data!D190-1,"") -> 0 | Q190: =IFERROR(E190/_data!E190-1,"") -> 0 | R190: =IFERROR(F190/_data!F190-1,"") -> 0 | S190: =IFERROR(G190/_data!G190-1,"") -> 0 | T190: =IFERROR(H190/_data!H190-1,"") -> 0 | U190: =IFERROR(I190/_data!I190-1,"") -> 0 | V190: =IFERROR(J190/_data!J190-1,"") -> 0 | W190: =IFERROR(K190/_data!K190-1,"") -> 0
A191: Heat and Cold | B191: 2.46329613 | C191: 2.466613486 | D191: 2.407948503 | E191: 2.326825446 | F191: 2.383193546 | G191: 2.406674611 | H191: 2.447327111 | I191: 2.373937791 | J191: 2.409336018 | K191: 2.00185828 | M191: Heat and Cold | N191: =IFERROR(B191/_data!B191-1,"") -> 0 | O191: =IFERROR(C191/_data!C191-1,"") -> 0 | P191: =IFERROR(D191/_data!D191-1,"") -> 0 | Q191: =IFERROR(E191/_data!E191-1,"") -> 0 | R191: =IFERROR(F191/_data!F191-1,"") -> 0 | S191: =IFERROR(G191/_data!G191-1,"") -> 0 | T191: =IFERROR(H191/_data!H191-1,"") -> 0 | U191: =IFERROR(I191/_data!I191-1,"") -> 0 | V191: =IFERROR(J191/_data!J191-1,"") -> 0 | W191: =IFERROR(K191/_data!K191-1,"") -> 0
A192: natural gas | B192: 2.735410073 | C192: 1.380550201 | D192: 1.565183319 | E192: 1.836253785 | F192: 1.892440418 | G192: 2.042360178 | H192: 2.050318235 | I192: 2.243666827 | J192: 2.399934042 | K192: 2.220819747 | M192: natural gas | N192: =IFERROR(B192/_data!B192-1,"") -> 0 | O192: =IFERROR(C192/_data!C192-1,"") -> 0 | P192: =IFERROR(D192/_data!D192-1,"") -> 0 | Q192: =IFERROR(E192/_data!E192-1,"") -> 0 | R192: =IFERROR(F192/_data!F192-1,"") -> 0 | S192: =IFERROR(G192/_data!G192-1,"") -> 0 | T192: =IFERROR(H192/_data!H192-1,"") -> 0 | U192: =IFERROR(I192/_data!I192-1,"") -> 0 | V192: =IFERROR(J192/_data!J192-1,"") -> 0 | W192: =IFERROR(K192/_data!K192-1,"") -> 0
A193: Liquid gas | B193: 0 | C193: 0 | D193: 0 | E193: 0 | F193: 0 | G193: 0 | H193: 0 | I193: 0 | J193: 0 | K193: 0 | M193: Liquid gas | N193: =IFERROR(B193/_data!B193-1,"") ->  | O193: =IFERROR(C193/_data!C193-1,"") ->  | P193: =IFERROR(D193/_data!D193-1,"") ->  | Q193: =IFERROR(E193/_data!E193-1,"") ->  | R193: =IFERROR(F193/_data!F193-1,"") ->  | S193: =IFERROR(G193/_data!G193-1,"") ->  | T193: =IFERROR(H193/_data!H193-1,"") ->  | U193: =IFERROR(I193/_data!I193-1,"") ->  | V193: =IFERROR(J193/_data!J193-1,"") ->  | W193: =IFERROR(K193/_data!K193-1,"") -> 
A194: heating oil / diesel | B194: 0.6101393748 | C194: 0.5311630121 | D194: 0.5148334733 | E194: 0.5373557351 | F194: 0.6165444893 | G194: 0.6233780534 | H194: 0.225875503 | I194: 0.2279026089 | J194: 0.2354833484 | K194: 0.141240957 | M194: heating oil / diesel | N194: =IFERROR(B194/_data!B194-1,"") -> 0 | O194: =IFERROR(C194/_data!C194-1,"") -> 0 | P194: =IFERROR(D194/_data!D194-1,"") -> 0 | Q194: =IFERROR(E194/_data!E194-1,"") -> 0 | R194: =IFERROR(F194/_data!F194-1,"") -> 0 | S194: =IFERROR(G194/_data!G194-1,"") -> 0 | T194: =IFERROR(H194/_data!H194-1,"") -> 0 | U194: =IFERROR(I194/_data!I194-1,"") -> 0 | V194: =IFERROR(J194/_data!J194-1,"") -> 0 | W194: =IFERROR(K194/_data!K194-1,"") -> 0
A195: gasoline | B195: 0.02904103504 | C195: 0.02064473076 | D195: 0.01472152253 | E195: 0.01355978558 | F195: 0.0111682598 | G195: 0.01369624495 | H195: 0.01375688558 | I195: 0.01380013285 | J195: 0.01267097133 | K195: 0.008940780478 | M195: gasoline | N195: =IFERROR(B195/_data!B195-1,"") -> 0 | O195: =IFERROR(C195/_data!C195-1,"") -> 0 | P195: =IFERROR(D195/_data!D195-1,"") -> 0 | Q195: =IFERROR(E195/_data!E195-1,"") -> 0 | R195: =IFERROR(F195/_data!F195-1,"") -> 0 | S195: =IFERROR(G195/_data!G195-1,"") -> 0 | T195: =IFERROR(H195/_data!H195-1,"") -> 0 | U195: =IFERROR(I195/_data!I195-1,"") -> 0 | V195: =IFERROR(J195/_data!J195-1,"") -> 0 | W195: =IFERROR(K195/_data!K195-1,"") -> 0
A196: Lignite / Coal | B196: 0.06952079516 | C196: 0.06906651493 | D196: 0.06879373076 | E196: 0.0663641788 | F196: 0.07291884059 | G196: 0.06464513956 | H196: 0.06358991923 | I196: 0.06459149316 | J196: 0.06127195723 | K196: 0.05793976368 | M196: Lignite / Coal | N196: =IFERROR(B196/_data!B196-1,"") -> 0 | O196: =IFERROR(C196/_data!C196-1,"") -> 0 | P196: =IFERROR(D196/_data!D196-1,"") -> 0 | Q196: =IFERROR(E196/_data!E196-1,"") -> 0 | R196: =IFERROR(F196/_data!F196-1,"") -> 0 | S196: =IFERROR(G196/_data!G196-1,"") -> 0 | T196: =IFERROR(H196/_data!H196-1,"") -> 0 | U196: =IFERROR(I196/_data!I196-1,"") -> 0 | V196: =IFERROR(J196/_data!J196-1,"") -> 0 | W196: =IFERROR(K196/_data!K196-1,"") -> 0
A197: other fossil fuels | B197: 0.003803653729 | C197: 0.007605953439 | D197: 0.007640638119 | E197: 0.01024017002 | F197: 0.01029176346 | G197: 0.006478721679 | H197: 0.003910152125 | I197: 0.003922444399 | J197: 0.003963294684 | K197: 0.006661758003 | M197: other fossil fuels | N197: =IFERROR(B197/_data!B197-1,"") -> 0 | O197: =IFERROR(C197/_data!C197-1,"") -> 0 | P197: =IFERROR(D197/_data!D197-1,"") -> 0 | Q197: =IFERROR(E197/_data!E197-1,"") -> 0 | R197: =IFERROR(F197/_data!F197-1,"") -> 0 | S197: =IFERROR(G197/_data!G197-1,"") -> 0 | T197: =IFERROR(H197/_data!H197-1,"") -> 0 | U197: =IFERROR(I197/_data!I197-1,"") -> 0 | V197: =IFERROR(J197/_data!J197-1,"") -> 0 | W197: =IFERROR(K197/_data!K197-1,"") -> 0
A198: Plant oil, biofuel | B198: 0.1782442112 | C198: 0.1690304744 | D198: 0.1599776099 | E198: 0.1714947155 | F198: 0.1662232896 | G198: 0.1728511578 | H198: 0.1832063247 | I198: 0.1932877528 | J198: 0.2366115855 | K198: 0.3003634749 | M198: Plant oil, biofuel | N198: =IFERROR(B198/_data!B198-1,"") -> 0 | O198: =IFERROR(C198/_data!C198-1,"") -> 0 | P198: =IFERROR(D198/_data!D198-1,"") -> 0 | Q198: =IFERROR(E198/_data!E198-1,"") -> 0 | R198: =IFERROR(F198/_data!F198-1,"") -> 0 | S198: =IFERROR(G198/_data!G198-1,"") -> 0 | T198: =IFERROR(H198/_data!H198-1,"") -> 0 | U198: =IFERROR(I198/_data!I198-1,"") -> 0 | V198: =IFERROR(J198/_data!J198-1,"") -> 0 | W198: =IFERROR(K198/_data!K198-1,"") -> 0
A199: Summe | B199: 7.381309345 | C199: 5.935708352 | D199: 5.9640918 | E199: 6.218737099 | F199: 6.478043071 | G199: 6.690729321 | H199: 6.417929617 | I199: 6.575963719 | J199: 6.871253674 | K199: 6.034968386 | M199: Summe | N199: =IFERROR(B199/_data!B199-1,"") -> 0 | O199: =IFERROR(C199/_data!C199-1,"") -> 0 | P199: =IFERROR(D199/_data!D199-1,"") -> 0 | Q199: =IFERROR(E199/_data!E199-1,"") -> 0 | R199: =IFERROR(F199/_data!F199-1,"") -> 0 | S199: =IFERROR(G199/_data!G199-1,"") -> 0 | T199: =IFERROR(H199/_data!H199-1,"") -> 0 | U199: =IFERROR(I199/_data!I199-1,"") -> 0 | V199: =IFERROR(J199/_data!J199-1,"") -> 0 | W199: =IFERROR(K199/_data!K199-1,"") -> 0
A201: Energy consumption (MWh /Einwohner and Year) - Tertiary sector (Services) | M201: Test: | N201: =A201 -> Energy consumption (MWh /Einwohner and Year) - Tertiary sector (Services)
A202: Energieträger | B202: 2000 | C202: 2001 | D202: 2002 | E202: 2003 | F202: 2004 | G202: 2005 | H202: 2006 | I202: 2007 | J202: 2008 | K202: 2009 | M202: Energieträger | N202: 2000 | O202: 2001 | P202: 2002 | Q202: 2003 | R202: 2004 | S202: 2005 | T202: 2006 | U202: 2007 | V202: 2008 | W202: 2009
A203: Electricity | B203: 0.4536620579 | C203: 0.4558557149 | D203: 0.4657990484 | E203: 0.4651681629 | F203: 0.4722901563 | G203: 0.5015610366 | H203: 0.5384022605 | I203: 0.5481401315 | J203: 0.5562498554 | K203: 0.6108072414 | M203: Electricity | N203: =IFERROR(B203/_data!B203-1,"") -> 0 | O203: =IFERROR(C203/_data!C203-1,"") -> 0 | P203: =IFERROR(D203/_data!D203-1,"") -> 0 | Q203: =IFERROR(E203/_data!E203-1,"") -> 0 | R203: =IFERROR(F203/_data!F203-1,"") -> 0 | S203: =IFERROR(G203/_data!G203-1,"") -> 0 | T203: =IFERROR(H203/_data!H203-1,"") -> 0 | U203: =IFERROR(I203/_data!I203-1,"") -> 0 | V203: =IFERROR(J203/_data!J203-1,"") -> 0 | W203: =IFERROR(K203/_data!K203-1,"") -> 0
A204: Heat and Cold | B204: 0 | C204: 0 | D204: 0 | E204: 0 | F204: 0 | G204: 0 | H204: 0 | I204: 0 | J204: 0 | K204: 0 | M204: Heat and Cold | N204: =IFERROR(B204/_data!B204-1,"") ->  | O204: =IFERROR(C204/_data!C204-1,"") ->  | P204: =IFERROR(D204/_data!D204-1,"") ->  | Q204: =IFERROR(E204/_data!E204-1,"") ->  | R204: =IFERROR(F204/_data!F204-1,"") ->  | S204: =IFERROR(G204/_data!G204-1,"") ->  | T204: =IFERROR(H204/_data!H204-1,"") ->  | U204: =IFERROR(I204/_data!I204-1,"") ->  | V204: =IFERROR(J204/_data!J204-1,"") ->  | W204: =IFERROR(K204/_data!K204-1,"") -> 
A205: natural gas | B205: 0.1018657338 | C205: 0.1657150588 | D205: 0.05838231178 | E205: 0.05758689021 | F205: 0.1932815798 | G205: 0.1360815707 | H205: 0.0507178126 | I205: 0.03644723883 | J205: 0.04862991506 | K205: 0.0711171885 | M205: natural gas | N205: =IFERROR(B205/_data!B205-1,"") -> 0 | O205: =IFERROR(C205/_data!C205-1,"") -> 0 | P205: =IFERROR(D205/_data!D205-1,"") -> 0 | Q205: =IFERROR(E205/_data!E205-1,"") -> 0 | R205: =IFERROR(F205/_data!F205-1,"") -> 0 | S205: =IFERROR(G205/_data!G205-1,"") -> 0 | T205: =IFERROR(H205/_data!H205-1,"") -> 0 | U205: =IFERROR(I205/_data!I205-1,"") -> 0 | V205: =IFERROR(J205/_data!J205-1,"") -> 0 | W205: =IFERROR(K205/_data!K205-1,"") -> 0
A206: Liquid gas | B206: 0 | C206: 0 | D206: 0 | E206: 0 | F206: 0 | G206: 0 | H206: 0 | I206: 0 | J206: 0 | K206: 0 | M206: Liquid gas | N206: =IFERROR(B206/_data!B206-1,"") ->  | O206: =IFERROR(C206/_data!C206-1,"") ->  | P206: =IFERROR(D206/_data!D206-1,"") ->  | Q206: =IFERROR(E206/_data!E206-1,"") ->  | R206: =IFERROR(F206/_data!F206-1,"") ->  | S206: =IFERROR(G206/_data!G206-1,"") ->  | T206: =IFERROR(H206/_data!H206-1,"") ->  | U206: =IFERROR(I206/_data!I206-1,"") ->  | V206: =IFERROR(J206/_data!J206-1,"") ->  | W206: =IFERROR(K206/_data!K206-1,"") -> 
A207: heating oil / diesel | B207: 0.03040146593 | C207: 0.03045167439 | D207: 0.02001119507 | E207: 0.01896119394 | F207: 0.01786921569 | G207: 0.04034993326 | H207: 0.0632188829 | I207: 0.05514326943 | J207: 0.0665659932 | K207: 0.09881607704 | M207: heating oil / diesel | N207: =IFERROR(B207/_data!B207-1,"") -> 0 | O207: =IFERROR(C207/_data!C207-1,"") -> 0 | P207: =IFERROR(D207/_data!D207-1,"") -> 0 | Q207: =IFERROR(E207/_data!E207-1,"") -> 0 | R207: =IFERROR(F207/_data!F207-1,"") -> 0 | S207: =IFERROR(G207/_data!G207-1,"") -> 0 | T207: =IFERROR(H207/_data!H207-1,"") -> 0 | U207: =IFERROR(I207/_data!I207-1,"") -> 0 | V207: =IFERROR(J207/_data!J207-1,"") -> 0 | W207: =IFERROR(K207/_data!K207-1,"") -> 0
A208: gasoline | B208: 0 | C208: 0 | D208: 0.001203470473 | E208: 0.004923158664 | F208: 0.008680141164 | G208: 0.006222982665 | H208: 0.003767445843 | I208: 0.01133786848 | J208: 0.01527459557 | K208: 0.005142409686 | M208: gasoline | N208: =IFERROR(B208/_data!B208-1,"") ->  | O208: =IFERROR(C208/_data!C208-1,"") ->  | P208: =IFERROR(D208/_data!D208-1,"") -> 0 | Q208: =IFERROR(E208/_data!E208-1,"") -> 0 | R208: =IFERROR(F208/_data!F208-1,"") -> 0 | S208: =IFERROR(G208/_data!G208-1,"") -> 0 | T208: =IFERROR(H208/_data!H208-1,"") -> 0 | U208: =IFERROR(I208/_data!I208-1,"") -> 0 | V208: =IFERROR(J208/_data!J208-1,"") -> 0 | W208: =IFERROR(K208/_data!K208-1,"") -> 0
A209: Lignite / Coal | B209: 0.2085623855 | C209: 0.179756819 | D209: 0.1551917156 | E209: 0.1496640234 | F209: 0.127798821 | G209: 0.1068989077 | H209: 0.1032622656 | I209: 0.08907098193 | J209: 0.08479136291 | K209: 0.08861891238 | M209: Lignite / Coal | N209: =IFERROR(B209/_data!B209-1,"") -> 0 | O209: =IFERROR(C209/_data!C209-1,"") -> 0 | P209: =IFERROR(D209/_data!D209-1,"") -> 0 | Q209: =IFERROR(E209/_data!E209-1,"") -> 0 | R209: =IFERROR(F209/_data!F209-1,"") -> 0 | S209: =IFERROR(G209/_data!G209-1,"") -> 0 | T209: =IFERROR(H209/_data!H209-1,"") -> 0 | U209: =IFERROR(I209/_data!I209-1,"") -> 0 | V209: =IFERROR(J209/_data!J209-1,"") -> 0 | W209: =IFERROR(K209/_data!K209-1,"") -> 0
A210: other fossil fuels | B210: 0.02401576989 | C210: 0.01014127125 | D210: 0.008928071648 | E210: 0.02306851488 | F210: 0.02445707527 | G210: 0.007757416747 | H210: 0.009104660787 | I210: 0.01434412149 | J210: 0.03031775787 | K210: 0 | M210: other fossil fuels | N210: =IFERROR(B210/_data!B210-1,"") -> 0 | O210: =IFERROR(C210/_data!C210-1,"") -> 0 | P210: =IFERROR(D210/_data!D210-1,"") -> 0 | Q210: =IFERROR(E210/_data!E210-1,"") -> 0 | R210: =IFERROR(F210/_data!F210-1,"") -> 0 | S210: =IFERROR(G210/_data!G210-1,"") -> 0 | T210: =IFERROR(H210/_data!H210-1,"") -> 0 | U210: =IFERROR(I210/_data!I210-1,"") -> 0 | V210: =IFERROR(J210/_data!J210-1,"") -> 0 | W210: =IFERROR(K210/_data!K210-1,"") -> 
A211: Plant oil, biofuel | B211: 0.3778110945 | C211: 0.3492609242 | D211: 0.3527287993 | E211: 0.392333547 | F211: 0.3948474637 | G211: 0.1546368569 | H211: 0.1748437366 | I211: 0.1755079136 | J211: 0.1717813419 | K211: 0.1945934575 | M211: Plant oil, biofuel | N211: =IFERROR(B211/_data!B211-1,"") -> 0 | O211: =IFERROR(C211/_data!C211-1,"") -> 0 | P211: =IFERROR(D211/_data!D211-1,"") -> 0 | Q211: =IFERROR(E211/_data!E211-1,"") -> 0 | R211: =IFERROR(F211/_data!F211-1,"") -> 0 | S211: =IFERROR(G211/_data!G211-1,"") -> 0 | T211: =IFERROR(H211/_data!H211-1,"") -> 0 | U211: =IFERROR(I211/_data!I211-1,"") -> 0 | V211: =IFERROR(J211/_data!J211-1,"") -> 0 | W211: =IFERROR(K211/_data!K211-1,"") -> 0
A212: Summe | B212: 1.196318507 | C212: 1.191181463 | D212: 1.062244612 | E212: 1.111705491 | F212: 1.239224453 | G212: 0.9535087046 | H212: 0.9433170648 | I212: 0.9299915252 | J212: 0.9736108218 | K212: 1.069095287 | M212: Summe | N212: =IFERROR(B212/_data!B212-1,"") -> 0 | O212: =IFERROR(C212/_data!C212-1,"") -> 0 | P212: =IFERROR(D212/_data!D212-1,"") -> 0 | Q212: =IFERROR(E212/_data!E212-1,"") -> 0 | R212: =IFERROR(F212/_data!F212-1,"") -> 0 | S212: =IFERROR(G212/_data!G212-1,"") -> 0 | T212: =IFERROR(H212/_data!H212-1,"") -> 0 | U212: =IFERROR(I212/_data!I212-1,"") -> 0 | V212: =IFERROR(J212/_data!J212-1,"") -> 0 | W212: =IFERROR(K212/_data!K212-1,"") -> 0
A214: Energy consumption (MWh /Einwohner and Year) - Road | M214: Test: | N214: =A214 -> Energy consumption (MWh /Einwohner and Year) - Road
A215: Energieträger | B215: 2000 | C215: 2001 | D215: 2002 | E215: 2003 | F215: 2004 | G215: 2005 | H215: 2006 | I215: 2007 | J215: 2008 | K215: 2009 | M215: Energieträger | N215: 2000 | O215: 2001 | P215: 2002 | Q215: 2003 | R215: 2004 | S215: 2005 | T215: 2006 | U215: 2007 | V215: 2008 | W215: 2009
A216: Electricity | B216: 0 | C216: 0 | D216: 0 | E216: 0 | F216: 0 | G216: 0 | H216: 0 | I216: 0 | J216: 0 | K216: 0 | M216: Electricity | N216: =IFERROR(B216/_data!B216-1,"") ->  | O216: =IFERROR(C216/_data!C216-1,"") ->  | P216: =IFERROR(D216/_data!D216-1,"") ->  | Q216: =IFERROR(E216/_data!E216-1,"") ->  | R216: =IFERROR(F216/_data!F216-1,"") ->  | S216: =IFERROR(G216/_data!G216-1,"") ->  | T216: =IFERROR(H216/_data!H216-1,"") ->  | U216: =IFERROR(I216/_data!I216-1,"") ->  | V216: =IFERROR(J216/_data!J216-1,"") ->  | W216: =IFERROR(K216/_data!K216-1,"") -> 
... 613 more rows
